Workbook

Sheet Český pohár - všichni
A1: 7P | B1: Abs | C1: 2018 | D1: Pouze členi | E1: N | J1: Věk min: | N1: Rok: | X1: created by: Zdeněk Vykydal
A2: 7 | C2: koeficient pro logaritmické body | J2: Věk max:
A4: Bic Techno 293 - Český pohár 2018 Všichni + mezinárodní | F4: 181603 | G4: 182115 | H4: 181803 | I4: 182005 | J4: 181616 | K4: 182156 | P4: Cena YCN | Q4: Věstonická Venuše | R4: Pohár Rozkoše | S4: Závod mladých nadějí | T4: Nechranická buchta | U4: Czech Supercup
E5: Poč. záv./CTL | F5: 27 | G5: 27 | H5: 22 | I5: 35 | J5: 29 | K5: 33 | P5: 181603 | Q5: 182115 | R5: 181803 | S5: 182005 | T5: 181616 | U5: 182156 | Y5: =IF(O4,O4,"") -> 
A6: Poř. celk. | B6: Poř. k. | C6: Kat. | D6: Reg. číslo | E6: Jméno | F6: Poř. | G6: Poř. | H6: Poř. | I6: Poř. | J6: Poř. | K6: Poř. | L6: Poř. | M6: Poř. | N6: Poř. | O6: Poř. | P6: Body | Q6: Body | R6: Body | S6: Body | T6: Body | U6: Body | V6: Body | W6: Body | X6: Body | Y6: Body | Z6: Celkem
A7: 1 | B7: 1 | C7: M | D7: 2110-0172 | E7: Mikulec Martin | F7: 1 | G7: 2 | H7: 1 | I7: 4 | J7: 2 | K7: 4 | P7: =IF((F7>0),ROUND((101+1000*(LOG10($F$5)-LOG10(F7)))*$A$2,0),0) -> 10727 | Q7: =IF((G7>0),ROUND((101+1000*(LOG10($G$5)-LOG10(G7)))*$A$2,0),0) -> 8619 | R7: =IF((H7>0),ROUND((101+1000*(LOG10($H$5)-LOG10(H7)))*$A$2,0),0) -> 10104 | S7: =IF((I7>0),ROUND((101+1000*(LOG10($I$5)-LOG10(I7)))*$A$2,0),0) -> 7301 | T7: =IF((J7>0),ROUND((101+1000*(LOG10($J$5)-LOG10(J7)))*$A$2,0),0) -> 8837 | U7: =IF((K7>0),ROUND((101+1000*(LOG10($K$5)-LOG10(K7)))*$A$2,0),0) -> 7122 | V7: =IF((L7>0),ROUND((101+1000*(LOG10($L$5)-LOG10(L7)))*$A$2,0),0) -> 0 | W7: =IF((M7>0),ROUND((101+1000*(LOG10($M$5)-LOG10(M7)))*$A$2,0),0) -> 0 | X7: =IF((N7>0),ROUND((101+1000*(LOG10($N$5)-LOG10(N7)))*$A$2,0),0) -> 0 | Y7: =IF((O7>0),ROUND((101+1000*(LOG10($O$5)-LOG10(O7)))*$A$2,0),0) -> 0 | Z7: =SUM(LARGE(P7:Y7,1),LARGE(P7:Y7,2),LARGE(P7:Y7,3),LARGE(P7:Y7,4)) -> 38287
A8: 2 | B8: 2 | C8: M | D8: 1609-0255 | E8: Nevelöš Adam | F8: 4 | G8: 1 | H8: 2 | I8: 3 | J8: 1 | P8: 6512 | Q8: 10727 | R8: 7997 | S8: 8176 | T8: 10944 | U8: 0 | V8: 0 | W8: 0 | X8: 0 | Y8: 0 | Z8: 37844
A9: 3 | B9: 1 | C9: F | D9: 2110-0182 | E9: Chalupníková Kristýna | F9: 3 | G9: 5 | H9: 3 | I9: 5 | J9: 3 | P9: 7387 | Q9: 5834 | R9: 6764 | S9: 6623 | T9: 7604 | U9: 0 | V9: 0 | W9: 0 | X9: 0 | Y9: 0 | Z9: 28378
A10: 4 | B10: 2 | C10: F | D10: 7019-0377 | E10: Rašková Adéla | F10: 2 | G10: 3 | H10: 11 | K10: 6 | P10: 8619 | Q10: 7387 | R10: 2814 | S10: 0 | T10: 0 | U10: 5890 | V10: 0 | W10: 0 | X10: 0 | Y10: 0 | Z10: 24710
A11: 5 | B11: 3 | C11: M | D11: 1801-0167 | E11: Štěpánský Adam | G11: 6 | H11: 6 | I11: 2 | K11: 14 | P11: 0 | Q11: 5279 | R11: 4657 | S11: 9408 | T11: 0 | U11: 3314 | V11: 0 | W11: 0 | X11: 0 | Y11: 0 | Z11: 22658
A12: 6 | B12: 4 | C12: M | D12: 1609-0256 | E12: Nevelöš Tibor | F12: 11 | G12: 4 | H12: 7 | I12: 8 | J12: 4 | P12: 3437 | Q12: 6512 | R12: 4188 | S12: 5194 | T12: 6729 | U12: 0 | V12: 0 | W12: 0 | X12: 0 | Y12: 0 | Z12: 22623
A13: 7 | B13: 5 | C13: M | D13: 1705-0090 | E13: Drda David | F13: 6 | G13: 8 | H13: 5 | I13: 7 | J13: 8 | K13: 19 | P13: 5279 | Q13: 4405 | R13: 5211 | S13: 5600 | T13: 4622 | U13: 2385 | V13: 0 | W13: 0 | X13: 0 | Y13: 0 | Z13: 20712
A14: 8 | B14: 3 | C14: F | D14: 2110-0194 | E14: Piňosová Kristýna | F14: 10 | G14: 13 | H14: 4 | I14: 9 | J14: 7 | K14: 13 | P14: 3727 | Q14: 2929 | R14: 5890 | S14: 4836 | T14: 5028 | U14: 3539 | V14: 0 | W14: 0 | X14: 0 | Y14: 0 | Z14: 19481
A15: 9 | B15: 4 | C15: F | D15: 1130-0352 | E15: Švíková Bára | F15: 12 | G15: 7 | J15: 10 | K15: 10 | P15: 3172 | Q15: 4811 | R15: 0 | S15: 0 | T15: 3944 | U15: 4337 | V15: 0 | W15: 0 | X15: 0 | Y15: 0 | Z15: 16264
A16: 10 | B16: 6 | C16: M | D16: 1607-0169 | E16: Parchomenko Ondřej | F16: 15 | G16: 9 | H16: 9 | I16: 14 | J16: 9 | K16: 12 | P16: 2494 | Q16: 4047 | R16: 3424 | S16: 3493 | T16: 4264 | U16: 3782 | V16: 0 | W16: 0 | X16: 0 | Y16: 0 | Z16: 15586
A17: 11 | B17: 5 | C17: F | D17: 1609-0278 | E17: Říčanová Nicol | F17: 8 | G17: 11 | H17: 10 | I17: 11 | J17: 21 | K17: 17 | P17: 4405 | Q17: 3437 | R17: 3104 | S17: 4226 | T17: 1688 | U17: 2723 | V17: 0 | W17: 0 | X17: 0 | Y17: 0 | Z17: 15172
A18: 12 | B18: 6 | C18: F | D18: 1401-0459 | E18: Altmannová Kateřina | F18: 17 | G18: 10 | H18: 12 | I18: 17 | J18: 6 | K18: 16 | P18: 2113 | Q18: 3727 | R18: 2550 | S18: 2902 | T18: 5497 | U18: 2908 | V18: 0 | W18: 0 | X18: 0 | Y18: 0 | Z18: 15034
A19: 13 | B19: 7 | C19: M | D19: 1402-0384 | E19: Šplíchal Filip | F19: 14 | I19: 10 | J19: 5 | P19: 2704 | Q19: 0 | R19: 0 | S19: 4515 | T19: 6051 | U19: 0 | V19: 0 | W19: 0 | X19: 0 | Y19: 0 | Z19: 13270
A20: 14 | B20: 7 | C20: F | D20: 1130-0276 | E20: Švíková Kateřina | F20: 5 | I20: 6 | P20: 5834 | Q20: 0 | R20: 0 | S20: 6068 | T20: 0 | U20: 0 | V20: 0 | W20: 0 | X20: 0 | Y20: 0 | Z20: 11902
A21: 15 | B21: 8 | C21: M | D21: 2110-0185 | E21: Diviš Lukáš | G21: 15 | I21: 12 | J21: 12 | K21: 23 | P21: 0 | Q21: 2494 | R21: 0 | S21: 3961 | T21: 3390 | U21: 1805 | V21: 0 | W21: 0 | X21: 0 | Y21: 0 | Z21: 11650
A22: 16 | B22: 9 | C22: M | D22: 2101-0375 | E22: Pospíšil Martin | I22: 1 | P22: 0 | Q22: 0 | R22: 0 | S22: 11515 | T22: 0 | U22: 0 | V22: 0 | W22: 0 | X22: 0 | Y22: 0 | Z22: 11515
A23: 17 | B23: 10 | C23: M | D23: 9905-0003 | E23: Palinkas Tamas | K23: 1 | P23: 0 | Q23: 0 | R23: 0 | S23: 0 | T23: 0 | U23: 11337 | V23: 0 | W23: 0 | X23: 0 | Y23: 0 | Z23: 11337
A24: 18 | B24: 8 | C24: F | D24: 1705-0086 | E24: Sadílková Nela | F24: 13 | G24: 16 | H24: 13 | I24: 16 | J24: 14 | K24: 24 | P24: 2929 | Q24: 2298 | R24: 2306 | S24: 3087 | T24: 2921 | U24: 1675 | V24: 0 | W24: 0 | X24: 0 | Y24: 0 | Z24: 11243
A25: 19 | B25: 9 | C25: F | D25: 2110-0191 | E25: Neckařová Martina | F25: 16 | G25: 14 | H25: 14 | I25: 15 | J25: 15 | K25: 20 | P25: 2298 | Q25: 2704 | R25: 2081 | S25: 3283 | T25: 2711 | U25: 2229 | V25: 0 | W25: 0 | X25: 0 | Y25: 0 | Z25: 10996
A26: 20 | B26: 11 | C26: M | D26: 9905-0002 | E26: Morvai Balint | K26: 2 | P26: 0 | Q26: 0 | R26: 0 | S26: 0 | T26: 0 | U26: 9229 | V26: 0 | W26: 0 | X26: 0 | Y26: 0 | Z26: 9229
A27: 21 | B27: 12 | C27: M | D27: 1607-0165 | E27: Himmel Jiří | F27: 9 | G27: 12 | J27: 19 | P27: 4047 | Q27: 3172 | R27: 0 | S27: 0 | T27: 1993 | U27: 0 | V27: 0 | W27: 0 | X27: 0 | Y27: 0 | Z27: 9212
A28: 22 | B28: 10 | C28: F | D28: 1705-0074 | E28: Štěpánková Markéta | F28: 18 | G28: 21 | H28: 17 | I28: 23 | J28: 11 | K28: 26 | P28: 1940 | Q28: 1471 | R28: 1491 | S28: 1983 | T28: 3654 | U28: 1432 | V28: 0 | W28: 0 | X28: 0 | Y28: 0 | Z28: 9068
A29: 23 | B29: 13 | C29: M | D29: 2110-0178 | E29: Skřepek Šimon | F29: 19 | G29: 20 | I29: 18 | J29: 16 | K29: 29 | P29: 1775 | Q29: 1619 | R29: 0 | S29: 2729 | T29: 2515 | U29: 1100 | V29: 0 | W29: 0 | X29: 0 | Y29: 0 | Z29: 8638
A30: 24 | B30: 14 | C30: M | D30: 9901-0015 | E30: Beránková Karolina | K30: 3 | P30: 0 | Q30: 0 | R30: 0 | S30: 0 | T30: 0 | U30: 7997 | V30: 0 | W30: 0 | X30: 0 | Y30: 0 | Z30: 7997
A31: 25 | B31: 15 | C31: M | D31: 1705-0085 | E31: Sadílek Adam | G31: 17 | H31: 16 | I31: 13 | P31: 0 | Q31: 2113 | R31: 1675 | S31: 3718 | T31: 0 | U31: 0 | V31: 0 | W31: 0 | X31: 0 | Y31: 0 | Z31: 7506
A32: 26 | B32: 11 | C32: F | D32: 2110-0183 | E32: Komendová Kateřina | G32: 18 | I32: 22 | J32: 22 | K32: 27 | P32: 0 | Q32: 1940 | R32: 0 | S32: 2119 | T32: 1547 | U32: 1317 | V32: 0 | W32: 0 | X32: 0 | Y32: 0 | Z32: 6923
A33: 27 | B33: 12 | C33: F | D33: 2110-0189 | E33: Samcová Klára | F33: 23 | G33: 24 | H33: 19 | I33: 19 | K33: 22 | P33: 1194 | Q33: 1065 | R33: 1153 | S33: 2564 | T33: 0 | U33: 1940 | V33: 0 | W33: 0 | X33: 0 | Y33: 0 | Z33: 6851
A34: 28 | B34: 13 | C34: F | D34: 1705-0169 | E34: Lojínová Alexandra | F34: 24 | G34: 22 | H34: 18 | I34: 24 | J34: 18 | K34: 28 | P34: 1065 | Q34: 1330 | R34: 1317 | S34: 1854 | T34: 2157 | U34: 1206 | V34: 0 | W34: 0 | X34: 0 | Y34: 0 | Z34: 6658
A35: 29 | B35: 16 | C35: M | D35: 1609-0298 | E35: Rais Michal | F35: 22 | G35: 23 | I35: 21 | J35: 20 | P35: 1330 | Q35: 1194 | R35: 0 | S35: 2260 | T35: 1837 | U35: 0 | V35: 0 | W35: 0 | X35: 0 | Y35: 0 | Z35: 6621
A36: 30 | B36: 17 | C36: M | D36: 9910-0003 | E36: Stipčič Nikola | K36: 5 | P36: 0 | Q36: 0 | R36: 0 | S36: 0 | T36: 0 | U36: 6444 | V36: 0 | W36: 0 | X36: 0 | Y36: 0 | Z36: 6444
A37: 31 | B37: 18 | C37: M | D37: 1609-0301 | E37: Tlapák Vojtěch | F37: 20 | I37: 20 | J37: 17 | P37: 1619 | Q37: 0 | R37: 0 | S37: 2408 | T37: 2331 | U37: 0 | V37: 0 | W37: 0 | X37: 0 | Y37: 0 | Z37: 6358
A38: 32 | B38: 19 | C38: M | D38: 2110-0173 | E38: Šeliga Teodor | F38: 25 | G38: 19 | H38: 20 | I38: 25 | J38: 24 | K38: 31 | P38: 941 | Q38: 1775 | R38: 997 | S38: 1730 | T38: 1282 | U38: 897 | V38: 0 | W38: 0 | X38: 0 | Y38: 0 | Z38: 5784
A39: 33 | B39: 14 | C39: F | D39: 7019-0391 | E39: Zemanová Nicole | F39: 21 | H39: 15 | K39: 21 | P39: =IF((F39>0),ROUND((101+1000*(LOG10($F$5)-LOG10(F39)))*$A$2,0),0) -> 1471 | Q39: =IF((G39>0),ROUND((101+1000*(LOG10($G$5)-LOG10(G39)))*$A$2,0),0) -> 0 | R39: =IF((H39>0),ROUND((101+1000*(LOG10($H$5)-LOG10(H39)))*$A$2,0),0) -> 1871 | S39: =IF((I39>0),ROUND((101+1000*(LOG10($I$5)-LOG10(I39)))*$A$2,0),0) -> 0 | T39: =IF((J39>0),ROUND((101+1000*(LOG10($J$5)-LOG10(J39)))*$A$2,0),0) -> 0 | U39: =IF((K39>0),ROUND((101+1000*(LOG10($K$5)-LOG10(K39)))*$A$2,0),0) -> 2081 | V39: =IF((L39>0),ROUND((101+1000*(LOG10($L$5)-LOG10(L39)))*$A$2,0),0) -> 0 | W39: =IF((M39>0),ROUND((101+1000*(LOG10($M$5)-LOG10(M39)))*$A$2,0),0) -> 0 | X39: =IF((N39>0),ROUND((101+1000*(LOG10($N$5)-LOG10(N39)))*$A$2,0),0) -> 0 | Y39: =IF((O39>0),ROUND((101+1000*(LOG10($O$5)-LOG10(O39)))*$A$2,0),0) -> 0 | Z39: =SUM(LARGE(P39:Y39,1),LARGE(P39:Y39,2),LARGE(P39:Y39,3),LARGE(P39:Y39,4)) -> 5423
A40: 34 | B40: 20 | C40: M | D40: 9901-0016 | E40: Beránková Lenka | K40: 7 | P40: 0 | Q40: 0 | R40: 0 | S40: 0 | T40: 0 | U40: 5421 | V40: 0 | W40: 0 | X40: 0 | Y40: 0 | Z40: 5421
A41: 35 | B41: 21 | C41: M | D41: 9910-0002 | E41: Paško Božan | K41: 8 | P41: 0 | Q41: 0 | R41: 0 | S41: 0 | T41: 0 | U41: 5015 | V41: 0 | W41: 0 | X41: 0 | Y41: 0 | Z41: 5015
A42: 36 | B42: 15 | C42: F | D42: 1607-0166 | E42: Himmelová Klára | F42: 7 | P42: 4811 | Q42: 0 | R42: 0 | S42: 0 | T42: 0 | U42: 0 | V42: 0 | W42: 0 | X42: 0 | Y42: 0 | Z42: 4811
A43: 37 | B43: 22 | C43: M | D43: 9905-0004 | E43: Morvai Anna | K43: 9 | P43: 0 | Q43: 0 | R43: 0 | S43: 0 | T43: 0 | U43: 4657 | V43: 0 | W43: 0 | X43: 0 | Y43: 0 | Z43: 4657
A44: 38 | B44: 23 | C44: M | D44: 1705-0182 | E44: Hasman Radim | F44: 27 | G44: 25 | I44: 27 | J44: 26 | P44: 707 | Q44: 941 | R44: 0 | S44: 1496 | T44: 1039 | U44: 0 | V44: 0 | W44: 0 | X44: 0 | Y44: 0 | Z44: 4183
A45: 39 | B45: 24 | C45: M | D45: 9901-0007 | E45: Kubín Robert | K45: 11 | P45: 0 | Q45: 0 | R45: 0 | S45: 0 | T45: 0 | U45: 4047 | V45: 0 | W45: 0 | X45: 0 | Y45: 0 | Z45: 4047
A46: 40 | B46: 25 | C46: M | D46: 1609-0212 | E46: Müller Ondřej | H46: 8 | P46: 0 | Q46: 0 | R46: 3782 | S46: 0 | T46: 0 | U46: 0 | V46: 0 | W46: 0 | X46: 0 | Y46: 0 | Z46: 3782
A47: 41 | B47: 26 | C47: M | D47: 7019-0401 | E47: Kuchař Jan | I47: 29 | J47: 23 | K47: 32 | P47: 0 | Q47: 0 | R47: 0 | S47: 1279 | T47: 1412 | U47: 801 | V47: 0 | W47: 0 | X47: 0 | Y47: 0 | Z47: 3492
A48: 42 | B48: 27 | C48: M | D48: 1609-0303 | E48: Kříž Jan | F48: 26 | G48: 27 | H48: 22 | I48: 34 | J48: 27 | P48: 822 | Q48: 707 | R48: 707 | S48: 795 | T48: 924 | U48: 0 | V48: 0 | W48: 0 | X48: 0 | Y48: 0 | Z48: 3248
A49: 43 | B49: 28 | C49: M | D49: 7019-0402 | E49: Matouš Martin | J49: 13 | P49: 0 | Q49: 0 | R49: 0 | S49: 0 | T49: 3146 | U49: 0 | V49: 0 | W49: 0 | X49: 0 | Y49: 0 | Z49: 3146
A50: 44 | B50: 29 | C50: M | D50: 9905-0007 | E50: Negyeliczky Brúno | K50: 15 | P50: 0 | Q50: 0 | R50: 0 | S50: 0 | T50: 0 | U50: 3104 | V50: 0 | W50: 0 | X50: 0 | Y50: 0 | Z50: 3104
A51: 45 | B51: 30 | C51: M | D51: 9905-0006 | E51: Kelemen Lili | K51: 18 | P51: 0 | Q51: 0 | R51: 0 | S51: 0 | T51: 0 | U51: 2550 | V51: 0 | W51: 0 | X51: 0 | Y51: 0 | Z51: 2550
A52: 46 | B52: 16 | C52: F | D52: 1609-0308 | E52: Tlapáková Zuzana | I52: 28 | J52: 29 | P52: 0 | Q52: 0 | R52: 0 | S52: 1385 | T52: 707 | U52: 0 | V52: 0 | W52: 0 | X52: 0 | Y52: 0 | Z52: 2092
A53: 47 | B53: 17 | C53: F | D53: 2110-0184 | E53: Richterová Ludmila | G53: 26 | I53: 30 | P53: 0 | Q53: 822 | R53: 0 | S53: 1176 | T53: 0 | U53: 0 | V53: 0 | W53: 0 | X53: 0 | Y53: 0 | Z53: 1998
A54: 48 | B54: 31 | C54: M | D54: 2110-0186 | E54: Marek Filip | I54: 32 | K54: 33 | P54: 0 | Q54: 0 | R54: 0 | S54: 979 | T54: 0 | U54: 707 | V54: 0 | W54: 0 | X54: 0 | Y54: 0 | Z54: 1686
A55: 49 | B55: 18 | C55: F | D55: 9999-0054 | E55: Kudláčková Zuzana Saxana | I55: 26 | P55: 0 | Q55: 0 | R55: 0 | S55: 1611 | T55: 0 | U55: 0 | V55: 0 | W55: 0 | X55: 0 | Y55: 0 | Z55: 1611
A56: 50 | B56: 32 | C56: M | D56: 1402-0460 | E56: Loužek Štěpán | H56: 22 | I56: 33 | P56: 0 | Q56: 0 | R56: 707 | S56: 886 | T56: 0 | U56: 0 | V56: 0 | W56: 0 | X56: 0 | Y56: 0 | Z56: 1593
A57: 51 | B57: 33 | C57: M | D57: 9901-0008 | E57: Jaš Peter | K57: 25 | P57: 0 | Q57: 0 | R57: 0 | S57: 0 | T57: 0 | U57: 1551 | V57: 0 | W57: 0 | X57: 0 | Y57: 0 | Z57: 1551
A58: 52 | B58: 19 | C58: F | D58: 7019-0403 | E58: Matoušová Alexandra | J58: 25 | P58: 0 | Q58: 0 | R58: 0 | S58: 0 | T58: 1158 | U58: 0 | V58: 0 | W58: 0 | X58: 0 | Y58: 0 | Z58: 1158
A59: 53 | B59: 20 | C59: F | D59: 9999-0055 | E59: Hraníková Andrea | I59: 31 | P59: 0 | Q59: 0 | R59: 0 | S59: 1076 | T59: 0 | U59: 0 | V59: 0 | W59: 0 | X59: 0 | Y59: 0 | Z59: 1076
A60: 54 | B60: 34 | C60: M | D60: 9905-0005 | E60: Kelemen Dorka | K60: 30 | P60: 0 | Q60: 0 | R60: 0 | S60: 0 | T60: 0 | U60: 997 | V60: 0 | W60: 0 | X60: 0 | Y60: 0 | Z60: 997
A61: 55 | B61: 21 | C61: F | D61: 7019-0404 | E61: Matoušová Štěpánka | J61: 28 | P61: 0 | Q61: 0 | R61: 0 | S61: 0 | T61: 814 | U61: 0 | V61: 0 | W61: 0 | X61: 0 | Y61: 0 | Z61: 814
A62: 56 | B62: 35 | C62: M | D62: 1705-0177 | E62: Drda Filip | I62: 35 | P62: 0 | Q62: 0 | R62: 0 | S62: 707 | T62: 0 | U62: 0 | V62: 0 | W62: 0 | X62: 0 | Y62: 0 | Z62: 707

Sheet Český pohár - absolutní
A1: 7P | B1: Abs | C1: 2018 | D1: Pouze členi | E1: A | J1: Věk min: | N1: Rok: | X1: created by: Zdeněk Vykydal
A2: 7 | C2: koeficient pro logaritmické body | J2: Věk max:
A4: Bic Techno 293 - Český pohár 2018 Všichni CZE | F4: 181603 | G4: 182115 | H4: 181803 | I4: 182005 | J4: 181616 | K4: 182156 | P4: Cena YCN | Q4: Věstonická Venuše | R4: Pohár Rozkoše | S4: Závod mladých nadějí | T4: Nechranická buchta | U4: Czech Supercup
E5: Poč. záv./CTL | F5: 27 | G5: 27 | H5: 22 | I5: 35 | J5: 29 | K5: 21 | P5: 181603 | Q5: 182115 | R5: 181803 | S5: 182005 | T5: 181616 | U5: 182156 | Y5: =IF(O4,O4,"") -> 
A6: Poř. celk. | B6: Poř. k. | C6: Kat. | D6: Reg. číslo | E6: Jméno | F6: Poř. | G6: Poř. | H6: Poř. | I6: Poř. | J6: Poř. | K6: Poř. | L6: Poř. | M6: Poř. | N6: Poř. | O6: Poř. | P6: Body | Q6: Body | R6: Body | S6: Body | T6: Body | U6: Body | V6: Body | W6: Body | X6: Body | Y6: Body | Z6: Celkem
A7: 1 | B7: 1 | C7: M | D7: 2110-0172 | E7: Mikulec Martin | F7: 1 | G7: 2 | H7: 1 | I7: 4 | J7: 2 | K7: 1 | P7: =IF((F7>0),ROUND((101+1000*(LOG10($F$5)-LOG10(F7)))*$A$2,0),0) -> 10727 | Q7: =IF((G7>0),ROUND((101+1000*(LOG10($G$5)-LOG10(G7)))*$A$2,0),0) -> 8619 | R7: =IF((H7>0),ROUND((101+1000*(LOG10($H$5)-LOG10(H7)))*$A$2,0),0) -> 10104 | S7: =IF((I7>0),ROUND((101+1000*(LOG10($I$5)-LOG10(I7)))*$A$2,0),0) -> 7301 | T7: =IF((J7>0),ROUND((101+1000*(LOG10($J$5)-LOG10(J7)))*$A$2,0),0) -> 8837 | U7: =IF((K7>0),ROUND((101+1000*(LOG10($K$5)-LOG10(K7)))*$A$2,0),0) -> 9963 | V7: =IF((L7>0),ROUND((101+1000*(LOG10($L$5)-LOG10(L7)))*$A$2,0),0) -> 0 | W7: =IF((M7>0),ROUND((101+1000*(LOG10($M$5)-LOG10(M7)))*$A$2,0),0) -> 0 | X7: =IF((N7>0),ROUND((101+1000*(LOG10($N$5)-LOG10(N7)))*$A$2,0),0) -> 0 | Y7: =IF((O7>0),ROUND((101+1000*(LOG10($O$5)-LOG10(O7)))*$A$2,0),0) -> 0 | Z7: =SUM(LARGE(P7:Y7,1),LARGE(P7:Y7,2),LARGE(P7:Y7,3),LARGE(P7:Y7,4)) -> 39631
A8: 2 | B8: 2 | C8: M | D8: 1609-0255 | E8: Nevelöš Adam | F8: 4 | G8: 1 | H8: 2 | I8: 3 | J8: 1 | P8: 6512 | Q8: 10727 | R8: 7997 | S8: 8176 | T8: 10944 | U8: 0 | V8: 0 | W8: 0 | X8: 0 | Y8: 0 | Z8: 37844
A9: 3 | B9: 1 | C9: F | D9: 2110-0182 | E9: Chalupníková Kristýna | F9: 3 | G9: 5 | H9: 3 | I9: 5 | J9: 3 | P9: 7387 | Q9: 5834 | R9: 6764 | S9: 6623 | T9: 7604 | U9: 0 | V9: 0 | W9: 0 | X9: 0 | Y9: 0 | Z9: 28378
A10: 4 | B10: 2 | C10: F | D10: 7019-0377 | E10: Rašková Adéla | F10: 2 | G10: 3 | H10: 11 | K10: 2 | P10: 8619 | Q10: 7387 | R10: 2814 | S10: 0 | T10: 0 | U10: 7855 | V10: 0 | W10: 0 | X10: 0 | Y10: 0 | Z10: 26675
A11: 5 | B11: 3 | C11: M | D11: 1801-0167 | E11: Štěpánský Adam | G11: 6 | H11: 6 | I11: 2 | K11: 6 | P11: 0 | Q11: 5279 | R11: 4657 | S11: 9408 | T11: 0 | U11: 4515 | V11: 0 | W11: 0 | X11: 0 | Y11: 0 | Z11: 23859
A12: 6 | B12: 4 | C12: M | D12: 1609-0256 | E12: Nevelöš Tibor | F12: 11 | G12: 4 | H12: 7 | I12: 8 | J12: 4 | P12: 3437 | Q12: 6512 | R12: 4188 | S12: 5194 | T12: 6729 | U12: 0 | V12: 0 | W12: 0 | X12: 0 | Y12: 0 | Z12: 22623
A13: 7 | B13: 3 | C13: F | D13: 2110-0194 | E13: Piňosová Kristýna | F13: 10 | G13: 13 | H13: 4 | I13: 9 | J13: 7 | K13: 5 | P13: 3727 | Q13: 2929 | R13: 5890 | S13: 4836 | T13: 5028 | U13: 5070 | V13: 0 | W13: 0 | X13: 0 | Y13: 0 | Z13: 20824
A14: 8 | B14: 5 | C14: M | D14: 1705-0090 | E14: Drda David | F14: 6 | G14: 8 | H14: 5 | I14: 7 | J14: 8 | K14: 9 | P14: 5279 | Q14: 4405 | R14: 5211 | S14: 5600 | T14: 4622 | U14: 3283 | V14: 0 | W14: 0 | X14: 0 | Y14: 0 | Z14: 20712
A15: 9 | B15: 4 | C15: F | D15: 1130-0352 | E15: Švíková Bára | F15: 12 | G15: 7 | J15: 10 | K15: 3 | P15: 3172 | Q15: 4811 | R15: 0 | S15: 0 | T15: 3944 | U15: 6623 | V15: 0 | W15: 0 | X15: 0 | Y15: 0 | Z15: 18550
A16: 10 | B16: 6 | C16: M | D16: 1607-0169 | E16: Parchomenko Ondřej | F16: 15 | G16: 9 | H16: 9 | I16: 14 | J16: 9 | K16: 4 | P16: 2494 | Q16: 4047 | R16: 3424 | S16: 3493 | T16: 4264 | U16: 5748 | V16: 0 | W16: 0 | X16: 0 | Y16: 0 | Z16: 17552
A17: 11 | B17: 5 | C17: F | D17: 1401-0459 | E17: Altmannová Kateřina | F17: 17 | G17: 10 | H17: 12 | I17: 17 | J17: 6 | K17: 7 | P17: 2113 | Q17: 3727 | R17: 2550 | S17: 2902 | T17: 5497 | U17: 4047 | V17: 0 | W17: 0 | X17: 0 | Y17: 0 | Z17: 16173
A18: 12 | B18: 6 | C18: F | D18: 1609-0278 | E18: Říčanová Nicol | F18: 8 | G18: 11 | H18: 10 | I18: 11 | J18: 21 | K18: 8 | P18: 4405 | Q18: 3437 | R18: 3104 | S18: 4226 | T18: 1688 | U18: 3641 | V18: 0 | W18: 0 | X18: 0 | Y18: 0 | Z18: 15709
A19: 13 | B19: 7 | C19: M | D19: 1402-0384 | E19: Šplíchal Filip | F19: 14 | I19: 10 | J19: 5 | P19: 2704 | Q19: 0 | R19: 0 | S19: 4515 | T19: 6051 | U19: 0 | V19: 0 | W19: 0 | X19: 0 | Y19: 0 | Z19: 13270
A20: 14 | B20: 8 | C20: M | D20: 2110-0185 | E20: Diviš Lukáš | G20: 15 | I20: 12 | J20: 12 | K20: 13 | P20: 0 | Q20: 2494 | R20: 0 | S20: 3961 | T20: 3390 | U20: 2165 | V20: 0 | W20: 0 | X20: 0 | Y20: 0 | Z20: 12010
A21: 15 | B21: 7 | C21: F | D21: 1130-0276 | E21: Švíková Kateřina | F21: 5 | I21: 6 | P21: 5834 | Q21: 0 | R21: 0 | S21: 6068 | T21: 0 | U21: 0 | V21: 0 | W21: 0 | X21: 0 | Y21: 0 | Z21: 11902
A22: 16 | B22: 8 | C22: F | D22: 2110-0191 | E22: Neckařová Martina | F22: 16 | G22: 14 | H22: 14 | I22: 15 | J22: 15 | K22: 10 | P22: 2298 | Q22: 2704 | R22: 2081 | S22: 3283 | T22: 2711 | U22: 2963 | V22: 0 | W22: 0 | X22: 0 | Y22: 0 | Z22: 11661
A23: 17 | B23: 9 | C23: M | D23: 2101-0375 | E23: Pospíšil Martin | I23: 1 | P23: 0 | Q23: 0 | R23: 0 | S23: 11515 | T23: 0 | U23: 0 | V23: 0 | W23: 0 | X23: 0 | Y23: 0 | Z23: 11515
A24: 18 | B24: 9 | C24: F | D24: 1705-0086 | E24: Sadílková Nela | F24: 13 | G24: 16 | H24: 13 | I24: 16 | J24: 14 | K24: 14 | P24: 2929 | Q24: 2298 | R24: 2306 | S24: 3087 | T24: 2921 | U24: 1940 | V24: 0 | W24: 0 | X24: 0 | Y24: 0 | Z24: 11243
A25: 19 | B25: 10 | C25: F | D25: 1705-0074 | E25: Štěpánková Markéta | F25: 18 | G25: 21 | H25: 17 | I25: 23 | J25: 11 | K25: 15 | P25: 1940 | Q25: 1471 | R25: 1491 | S25: 1983 | T25: 3654 | U25: 1730 | V25: 0 | W25: 0 | X25: 0 | Y25: 0 | Z25: 9307
A26: 20 | B26: 10 | C26: M | D26: 1607-0165 | E26: Himmel Jiří | F26: 9 | G26: 12 | J26: 19 | P26: 4047 | Q26: 3172 | R26: 0 | S26: 0 | T26: 1993 | U26: 0 | V26: 0 | W26: 0 | X26: 0 | Y26: 0 | Z26: 9212
A27: 21 | B27: 11 | C27: M | D27: 2110-0178 | E27: Skřepek Šimon | F27: 19 | G27: 20 | I27: 18 | J27: 16 | K27: 18 | P27: 1775 | Q27: 1619 | R27: 0 | S27: 2729 | T27: 2515 | U27: 1176 | V27: 0 | W27: 0 | X27: 0 | Y27: 0 | Z27: 8638
A28: 22 | B28: 12 | C28: M | D28: 1705-0085 | E28: Sadílek Adam | G28: 17 | H28: 16 | I28: 13 | P28: 0 | Q28: 2113 | R28: 1675 | S28: 3718 | T28: 0 | U28: 0 | V28: 0 | W28: 0 | X28: 0 | Y28: 0 | Z28: 7506
A29: 23 | B29: 11 | C29: F | D29: 2110-0189 | E29: Samcová Klára | F29: 23 | G29: 24 | H29: 19 | I29: 19 | K29: 12 | P29: 1194 | Q29: 1065 | R29: 1153 | S29: 2564 | T29: 0 | U29: 2408 | V29: 0 | W29: 0 | X29: 0 | Y29: 0 | Z29: 7319
A30: 24 | B30: 12 | C30: F | D30: 2110-0183 | E30: Komendová Kateřina | G30: 18 | I30: 22 | J30: 22 | K30: 16 | P30: 0 | Q30: 1940 | R30: 0 | S30: 2119 | T30: 1547 | U30: 1534 | V30: 0 | W30: 0 | X30: 0 | Y30: 0 | Z30: 7140
A31: 25 | B31: 13 | C31: F | D31: 1705-0169 | E31: Lojínová Alexandra | F31: 24 | G31: 22 | H31: 18 | I31: 24 | J31: 18 | K31: 17 | P31: 1065 | Q31: 1330 | R31: 1317 | S31: 1854 | T31: 2157 | U31: 1349 | V31: 0 | W31: 0 | X31: 0 | Y31: 0 | Z31: 6690
A32: 26 | B32: 13 | C32: M | D32: 1609-0298 | E32: Rais Michal | F32: 22 | G32: 23 | I32: 21 | J32: 20 | P32: 1330 | Q32: 1194 | R32: 0 | S32: 2260 | T32: 1837 | U32: 0 | V32: 0 | W32: 0 | X32: 0 | Y32: 0 | Z32: 6621
A33: 27 | B33: 14 | C33: M | D33: 1609-0301 | E33: Tlapák Vojtěch | F33: 20 | I33: 20 | J33: 17 | P33: 1619 | Q33: 0 | R33: 0 | S33: 2408 | T33: 2331 | U33: 0 | V33: 0 | W33: 0 | X33: 0 | Y33: 0 | Z33: 6358
A34: 28 | B34: 14 | C34: F | D34: 7019-0391 | E34: Zemanová Nicole | F34: 21 | H34: 15 | K34: 11 | P34: 1471 | Q34: 0 | R34: 1871 | S34: 0 | T34: 0 | U34: 2673 | V34: 0 | W34: 0 | X34: 0 | Y34: 0 | Z34: 6015
A35: 29 | B35: 15 | C35: M | D35: 2110-0173 | E35: Šeliga Teodor | F35: 25 | G35: 19 | H35: 20 | I35: 25 | J35: 24 | K35: 19 | P35: 941 | Q35: 1775 | R35: 997 | S35: 1730 | T35: 1282 | U35: 1011 | V35: 0 | W35: 0 | X35: 0 | Y35: 0 | Z35: 5798
A36: 30 | B36: 15 | C36: F | D36: 1607-0166 | E36: Himmelová Klára | F36: 7 | P36: 4811 | Q36: 0 | R36: 0 | S36: 0 | T36: 0 | U36: 0 | V36: 0 | W36: 0 | X36: 0 | Y36: 0 | Z36: 4811
A37: 31 | B37: 16 | C37: M | D37: 1705-0182 | E37: Hasman Radim | F37: 27 | G37: 25 | I37: 27 | J37: 26 | P37: 707 | Q37: 941 | R37: 0 | S37: 1496 | T37: 1039 | U37: 0 | V37: 0 | W37: 0 | X37: 0 | Y37: 0 | Z37: 4183
A38: 32 | B38: 17 | C38: M | D38: 1609-0212 | E38: Müller Ondřej | H38: 8 | P38: 0 | Q38: 0 | R38: 3782 | S38: 0 | T38: 0 | U38: 0 | V38: 0 | W38: 0 | X38: 0 | Y38: 0 | Z38: 3782
A39: 33 | B39: 18 | C39: M | D39: 7019-0401 | E39: Kuchař Jan | I39: 29 | J39: 23 | K39: 20 | P39: =IF((F39>0),ROUND((101+1000*(LOG10($F$5)-LOG10(F39)))*$A$2,0),0) -> 0 | Q39: =IF((G39>0),ROUND((101+1000*(LOG10($G$5)-LOG10(G39)))*$A$2,0),0) -> 0 | R39: =IF((H39>0),ROUND((101+1000*(LOG10($H$5)-LOG10(H39)))*$A$2,0),0) -> 0 | S39: =IF((I39>0),ROUND((101+1000*(LOG10($I$5)-LOG10(I39)))*$A$2,0),0) -> 1279 | T39: =IF((J39>0),ROUND((101+1000*(LOG10($J$5)-LOG10(J39)))*$A$2,0),0) -> 1412 | U39: =IF((K39>0),ROUND((101+1000*(LOG10($K$5)-LOG10(K39)))*$A$2,0),0) -> 855 | V39: =IF((L39>0),ROUND((101+1000*(LOG10($L$5)-LOG10(L39)))*$A$2,0),0) -> 0 | W39: =IF((M39>0),ROUND((101+1000*(LOG10($M$5)-LOG10(M39)))*$A$2,0),0) -> 0 | X39: =IF((N39>0),ROUND((101+1000*(LOG10($N$5)-LOG10(N39)))*$A$2,0),0) -> 0 | Y39: =IF((O39>0),ROUND((101+1000*(LOG10($O$5)-LOG10(O39)))*$A$2,0),0) -> 0 | Z39: =SUM(LARGE(P39:Y39,1),LARGE(P39:Y39,2),LARGE(P39:Y39,3),LARGE(P39:Y39,4)) -> 3546
A40: 34 | B40: 19 | C40: M | D40: 1609-0303 | E40: Kříž Jan | F40: 26 | G40: 27 | H40: 22 | I40: 34 | J40: 27 | P40: 822 | Q40: 707 | R40: 707 | S40: 795 | T40: 924 | U40: 0 | V40: 0 | W40: 0 | X40: 0 | Y40: 0 | Z40: 3248
A41: 35 | B41: 20 | C41: M | D41: 7019-0402 | E41: Matouš Martin | J41: 13 | P41: 0 | Q41: 0 | R41: 0 | S41: 0 | T41: 3146 | U41: 0 | V41: 0 | W41: 0 | X41: 0 | Y41: 0 | Z41: 3146
A42: 36 | B42: 16 | C42: F | D42: 1609-0308 | E42: Tlapáková Zuzana | I42: 28 | J42: 29 | P42: 0 | Q42: 0 | R42: 0 | S42: 1385 | T42: 707 | U42: 0 | V42: 0 | W42: 0 | X42: 0 | Y42: 0 | Z42: 2092
A43: 37 | B43: 17 | C43: F | D43: 2110-0184 | E43: Richterová Ludmila | G43: 26 | I43: 30 | P43: 0 | Q43: 822 | R43: 0 | S43: 1176 | T43: 0 | U43: 0 | V43: 0 | W43: 0 | X43: 0 | Y43: 0 | Z43: 1998
A44: 38 | B44: 21 | C44: M | D44: 2110-0186 | E44: Marek Filip | I44: 32 | K44: 21 | P44: 0 | Q44: 0 | R44: 0 | S44: 979 | T44: 0 | U44: 707 | V44: 0 | W44: 0 | X44: 0 | Y44: 0 | Z44: 1686
A45: 39 | B45: 18 | C45: F | D45: 9999-0054 | E45: Kudláčková Zuzana Saxana | I45: 26 | P45: 0 | Q45: 0 | R45: 0 | S45: 1611 | T45: 0 | U45: 0 | V45: 0 | W45: 0 | X45: 0 | Y45: 0 | Z45: 1611
A46: 40 | B46: 22 | C46: M | D46: 1402-0460 | E46: Loužek Štěpán | H46: 22 | I46: 33 | P46: 0 | Q46: 0 | R46: 707 | S46: 886 | T46: 0 | U46: 0 | V46: 0 | W46: 0 | X46: 0 | Y46: 0 | Z46: 1593
A47: 41 | B47: 19 | C47: F | D47: 7019-0403 | E47: Matoušová Alexandra | J47: 25 | P47: 0 | Q47: 0 | R47: 0 | S47: 0 | T47: 1158 | U47: 0 | V47: 0 | W47: 0 | X47: 0 | Y47: 0 | Z47: 1158
A48: 42 | B48: 20 | C48: F | D48: 9999-0055 | E48: Hraníková Andrea | I48: 31 | P48: 0 | Q48: 0 | R48: 0 | S48: 1076 | T48: 0 | U48: 0 | V48: 0 | W48: 0 | X48: 0 | Y48: 0 | Z48: 1076
A49: 43 | B49: 21 | C49: F | D49: 7019-0404 | E49: Matoušová Štěpánka | J49: 28 | P49: 0 | Q49: 0 | R49: 0 | S49: 0 | T49: 814 | U49: 0 | V49: 0 | W49: 0 | X49: 0 | Y49: 0 | Z49: 814
A50: 44 | B50: 23 | C50: M | D50: 1705-0177 | E50: Drda Filip | I50: 35 | P50: 0 | Q50: 0 | R50: 0 | S50: 707 | T50: 0 | U50: 0 | V50: 0 | W50: 0 | X50: 0 | Y50: 0 | Z50: 707
A51: 45 | P51: 0 | Q51: 0 | R51: 0 | S51: 0 | T51: 0 | U51: 0 | V51: 0 | W51: 0 | X51: 0 | Y51: 0 | Z51: 0
A52: 46 | P52: 0 | Q52: 0 | R52: 0 | S52: 0 | T52: 0 | U52: 0 | V52: 0 | W52: 0 | X52: 0 | Y52: 0 | Z52: 0
A53: 47 | P53: 0 | Q53: 0 | R53: 0 | S53: 0 | T53: 0 | U53: 0 | V53: 0 | W53: 0 | X53: 0 | Y53: 0 | Z53: 0
A54: 48 | P54: 0 | Q54: 0 | R54: 0 | S54: 0 | T54: 0 | U54: 0 | V54: 0 | W54: 0 | X54: 0 | Y54: 0 | Z54: 0
A55: 49 | P55: 0 | Q55: 0 | R55: 0 | S55: 0 | T55: 0 | U55: 0 | V55: 0 | W55: 0 | X55: 0 | Y55: 0 | Z55: 0
A56: 50 | P56: 0 | Q56: 0 | R56: 0 | S56: 0 | T56: 0 | U56: 0 | V56: 0 | W56: 0 | X56: 0 | Y56: 0 | Z56: 0
A57: 51 | P57: 0 | Q57: 0 | R57: 0 | S57: 0 | T57: 0 | U57: 0 | V57: 0 | W57: 0 | X57: 0 | Y57: 0 | Z57: 0
A58: 52 | P58: 0 | Q58: 0 | R58: 0 | S58: 0 | T58: 0 | U58: 0 | V58: 0 | W58: 0 | X58: 0 | Y58: 0 | Z58: 0
A59: 53
A60: 54
A61: 55

Sheet Český pohár - kategorie
A1: 7P | C1: 2018 | D1: Pouze členi | E1: A | J1: Věk min: | N1: Rok: | X1: created by: Zdeněk Vykydal
A2: 7 | C2: koeficient pro logaritmické body | J2: Věk max:
A4: Bic Techno 293 - Český pohár 2018 Všichni CZE | F4: 181603 | G4: 182115 | H4: 181803 | I4: 182005 | J4: 181616 | K4: 182156 | P4: Cena YCN | Q4: Věstonická Venuše | R4: Pohár Rozkoše | S4: Závod mladých nadějí | T4: Nechranická buchta | U4: Czech Supercup
F5: 27 | G5: 27 | H5: 22 | I5: 35 | J5: 29 | K5: 21 | P5: 181603 | Q5: 182115 | R5: 181803 | S5: 182005 | T5: 181616 | U5: 182156 | Y5: =IF(O4,O4,"") -> 
A6: Poř. celk. | B6: Poř. k. | C6: Kat. | D6: Reg. číslo | E6: Jméno | F6: Poř. | G6: Poř. | H6: Poř. | I6: Poř. | J6: Poř. | K6: Poř. | L6: Poř. | M6: Poř. | N6: Poř. | O6: Poř. | P6: Body | Q6: Body | R6: Body | S6: Body | T6: Body | U6: Body | V6: Body | W6: Body | X6: Body | Y6: Body | Z6: Celkem
A7: 1 | B7: 1 | C7: O17M | D7: 2110-0172 | E7: Mikulec Martin | F7: 1 | G7: 2 | H7: 1 | I7: 4 | J7: 2 | K7: 1 | P7: =IF((F7>0),ROUND((101+1000*(LOG10($F$5)-LOG10(F7)))*$A$2,0),0) -> 10727 | Q7: =IF((G7>0),ROUND((101+1000*(LOG10($G$5)-LOG10(G7)))*$A$2,0),0) -> 8619 | R7: =IF((H7>0),ROUND((101+1000*(LOG10($H$5)-LOG10(H7)))*$A$2,0),0) -> 10104 | S7: =IF((I7>0),ROUND((101+1000*(LOG10($I$5)-LOG10(I7)))*$A$2,0),0) -> 7301 | T7: =IF((J7>0),ROUND((101+1000*(LOG10($J$5)-LOG10(J7)))*$A$2,0),0) -> 8837 | U7: =IF((K7>0),ROUND((101+1000*(LOG10($K$5)-LOG10(K7)))*$A$2,0),0) -> 9963 | V7: =IF((L7>0),ROUND((101+1000*(LOG10($L$5)-LOG10(L7)))*$A$2,0),0) -> 0 | W7: =IF((M7>0),ROUND((101+1000*(LOG10($M$5)-LOG10(M7)))*$A$2,0),0) -> 0 | X7: =IF((N7>0),ROUND((101+1000*(LOG10($N$5)-LOG10(N7)))*$A$2,0),0) -> 0 | Y7: =IF((O7>0),ROUND((101+1000*(LOG10($O$5)-LOG10(O7)))*$A$2,0),0) -> 0 | Z7: =SUM(LARGE(P7:Y7,1),LARGE(P7:Y7,2),LARGE(P7:Y7,3),LARGE(P7:Y7,4)) -> 39631
A8: 2 | B8: 1 | C8: U17M | D8: 1609-0255 | E8: Nevelöš Adam | F8: 4 | G8: 1 | H8: 2 | I8: 3 | J8: 1 | P8: =IF((F8>0),ROUND((101+1000*(LOG10($F$5)-LOG10(F8)))*$A$2,0),0) -> 6512 | Q8: =IF((G8>0),ROUND((101+1000*(LOG10($G$5)-LOG10(G8)))*$A$2,0),0) -> 10727 | R8: =IF((H8>0),ROUND((101+1000*(LOG10($H$5)-LOG10(H8)))*$A$2,0),0) -> 7997 | S8: =IF((I8>0),ROUND((101+1000*(LOG10($I$5)-LOG10(I8)))*$A$2,0),0) -> 8176 | T8: =IF((J8>0),ROUND((101+1000*(LOG10($J$5)-LOG10(J8)))*$A$2,0),0) -> 10944 | U8: =IF((K8>0),ROUND((101+1000*(LOG10($K$5)-LOG10(K8)))*$A$2,0),0) -> 0 | V8: =IF((L8>0),ROUND((101+1000*(LOG10($L$5)-LOG10(L8)))*$A$2,0),0) -> 0 | W8: =IF((M8>0),ROUND((101+1000*(LOG10($M$5)-LOG10(M8)))*$A$2,0),0) -> 0 | X8: =IF((N8>0),ROUND((101+1000*(LOG10($N$5)-LOG10(N8)))*$A$2,0),0) -> 0 | Y8: =IF((O8>0),ROUND((101+1000*(LOG10($O$5)-LOG10(O8)))*$A$2,0),0) -> 0 | Z8: =SUM(LARGE(P8:Y8,1),LARGE(P8:Y8,2),LARGE(P8:Y8,3),LARGE(P8:Y8,4)) -> 37844
A9: 3 | B9: 1 | C9: U15F | D9: 2110-0182 | E9: Chalupníková Kristýna | F9: 3 | G9: 5 | H9: 3 | I9: 5 | J9: 3 | P9: =IF((F9>0),ROUND((101+1000*(LOG10($F$5)-LOG10(F9)))*$A$2,0),0) -> 7387 | Q9: =IF((G9>0),ROUND((101+1000*(LOG10($G$5)-LOG10(G9)))*$A$2,0),0) -> 5834 | R9: =IF((H9>0),ROUND((101+1000*(LOG10($H$5)-LOG10(H9)))*$A$2,0),0) -> 6764 | S9: =IF((I9>0),ROUND((101+1000*(LOG10($I$5)-LOG10(I9)))*$A$2,0),0) -> 6623 | T9: =IF((J9>0),ROUND((101+1000*(LOG10($J$5)-LOG10(J9)))*$A$2,0),0) -> 7604 | U9: =IF((K9>0),ROUND((101+1000*(LOG10($K$5)-LOG10(K9)))*$A$2,0),0) -> 0 | V9: =IF((L9>0),ROUND((101+1000*(LOG10($L$5)-LOG10(L9)))*$A$2,0),0) -> 0 | W9: =IF((M9>0),ROUND((101+1000*(LOG10($M$5)-LOG10(M9)))*$A$2,0),0) -> 0 | X9: =IF((N9>0),ROUND((101+1000*(LOG10($N$5)-LOG10(N9)))*$A$2,0),0) -> 0 | Y9: =IF((O9>0),ROUND((101+1000*(LOG10($O$5)-LOG10(O9)))*$A$2,0),0) -> 0 | Z9: =SUM(LARGE(P9:Y9,1),LARGE(P9:Y9,2),LARGE(P9:Y9,3),LARGE(P9:Y9,4)) -> 28378
A10: 4 | B10: 1 | C10: O17F | D10: 7019-0377 | E10: Rašková Adéla | F10: 2 | G10: 3 | H10: 11 | K10: 2 | P10: =IF((F10>0),ROUND((101+1000*(LOG10($F$5)-LOG10(F10)))*$A$2,0),0) -> 8619 | Q10: =IF((G10>0),ROUND((101+1000*(LOG10($G$5)-LOG10(G10)))*$A$2,0),0) -> 7387 | R10: =IF((H10>0),ROUND((101+1000*(LOG10($H$5)-LOG10(H10)))*$A$2,0),0) -> 2814 | S10: =IF((I10>0),ROUND((101+1000*(LOG10($I$5)-LOG10(I10)))*$A$2,0),0) -> 0 | T10: =IF((J10>0),ROUND((101+1000*(LOG10($J$5)-LOG10(J10)))*$A$2,0),0) -> 0 | U10: =IF((K10>0),ROUND((101+1000*(LOG10($K$5)-LOG10(K10)))*$A$2,0),0) -> 7855 | V10: =IF((L10>0),ROUND((101+1000*(LOG10($L$5)-LOG10(L10)))*$A$2,0),0) -> 0 | W10: =IF((M10>0),ROUND((101+1000*(LOG10($M$5)-LOG10(M10)))*$A$2,0),0) -> 0 | X10: =IF((N10>0),ROUND((101+1000*(LOG10($N$5)-LOG10(N10)))*$A$2,0),0) -> 0 | Y10: =IF((O10>0),ROUND((101+1000*(LOG10($O$5)-LOG10(O10)))*$A$2,0),0) -> 0 | Z10: =SUM(LARGE(P10:Y10,1),LARGE(P10:Y10,2),LARGE(P10:Y10,3),LARGE(P10:Y10,4)) -> 26675
A11: 5 | B11: 2 | C11: U17M | D11: 1801-0167 | E11: Štěpánský Adam | G11: 6 | H11: 6 | I11: 2 | K11: 6 | P11: =IF((F11>0),ROUND((101+1000*(LOG10($F$5)-LOG10(F11)))*$A$2,0),0) -> 0 | Q11: =IF((G11>0),ROUND((101+1000*(LOG10($G$5)-LOG10(G11)))*$A$2,0),0) -> 5279 | R11: =IF((H11>0),ROUND((101+1000*(LOG10($H$5)-LOG10(H11)))*$A$2,0),0) -> 4657 | S11: =IF((I11>0),ROUND((101+1000*(LOG10($I$5)-LOG10(I11)))*$A$2,0),0) -> 9408 | T11: =IF((J11>0),ROUND((101+1000*(LOG10($J$5)-LOG10(J11)))*$A$2,0),0) -> 0 | U11: =IF((K11>0),ROUND((101+1000*(LOG10($K$5)-LOG10(K11)))*$A$2,0),0) -> 4515 | V11: =IF((L11>0),ROUND((101+1000*(LOG10($L$5)-LOG10(L11)))*$A$2,0),0) -> 0 | W11: =IF((M11>0),ROUND((101+1000*(LOG10($M$5)-LOG10(M11)))*$A$2,0),0) -> 0 | X11: =IF((N11>0),ROUND((101+1000*(LOG10($N$5)-LOG10(N11)))*$A$2,0),0) -> 0 | Y11: =IF((O11>0),ROUND((101+1000*(LOG10($O$5)-LOG10(O11)))*$A$2,0),0) -> 0 | Z11: =SUM(LARGE(P11:Y11,1),LARGE(P11:Y11,2),LARGE(P11:Y11,3),LARGE(P11:Y11,4)) -> 23859
A12: 6 | B12: 1 | C12: U13M | D12: 1609-0256 | E12: Nevelöš Tibor | F12: 11 | G12: 4 | H12: 7 | I12: 8 | J12: 4 | P12: =IF((F12>0),ROUND((101+1000*(LOG10($F$5)-LOG10(F12)))*$A$2,0),0) -> 3437 | Q12: =IF((G12>0),ROUND((101+1000*(LOG10($G$5)-LOG10(G12)))*$A$2,0),0) -> 6512 | R12: =IF((H12>0),ROUND((101+1000*(LOG10($H$5)-LOG10(H12)))*$A$2,0),0) -> 4188 | S12: =IF((I12>0),ROUND((101+1000*(LOG10($I$5)-LOG10(I12)))*$A$2,0),0) -> 5194 | T12: =IF((J12>0),ROUND((101+1000*(LOG10($J$5)-LOG10(J12)))*$A$2,0),0) -> 6729 | U12: =IF((K12>0),ROUND((101+1000*(LOG10($K$5)-LOG10(K12)))*$A$2,0),0) -> 0 | V12: =IF((L12>0),ROUND((101+1000*(LOG10($L$5)-LOG10(L12)))*$A$2,0),0) -> 0 | W12: =IF((M12>0),ROUND((101+1000*(LOG10($M$5)-LOG10(M12)))*$A$2,0),0) -> 0 | X12: =IF((N12>0),ROUND((101+1000*(LOG10($N$5)-LOG10(N12)))*$A$2,0),0) -> 0 | Y12: =IF((O12>0),ROUND((101+1000*(LOG10($O$5)-LOG10(O12)))*$A$2,0),0) -> 0 | Z12: =SUM(LARGE(P12:Y12,1),LARGE(P12:Y12,2),LARGE(P12:Y12,3),LARGE(P12:Y12,4)) -> 22623
A13: 7 | B13: 2 | C13: U15F | D13: 2110-0194 | E13: Piňosová Kristýna | F13: 10 | G13: 13 | H13: 4 | I13: 9 | J13: 7 | K13: 5 | P13: =IF((F13>0),ROUND((101+1000*(LOG10($F$5)-LOG10(F13)))*$A$2,0),0) -> 3727 | Q13: =IF((G13>0),ROUND((101+1000*(LOG10($G$5)-LOG10(G13)))*$A$2,0),0) -> 2929 | R13: =IF((H13>0),ROUND((101+1000*(LOG10($H$5)-LOG10(H13)))*$A$2,0),0) -> 5890 | S13: =IF((I13>0),ROUND((101+1000*(LOG10($I$5)-LOG10(I13)))*$A$2,0),0) -> 4836 | T13: =IF((J13>0),ROUND((101+1000*(LOG10($J$5)-LOG10(J13)))*$A$2,0),0) -> 5028 | U13: =IF((K13>0),ROUND((101+1000*(LOG10($K$5)-LOG10(K13)))*$A$2,0),0) -> 5070 | V13: =IF((L13>0),ROUND((101+1000*(LOG10($L$5)-LOG10(L13)))*$A$2,0),0) -> 0 | W13: =IF((M13>0),ROUND((101+1000*(LOG10($M$5)-LOG10(M13)))*$A$2,0),0) -> 0 | X13: =IF((N13>0),ROUND((101+1000*(LOG10($N$5)-LOG10(N13)))*$A$2,0),0) -> 0 | Y13: =IF((O13>0),ROUND((101+1000*(LOG10($O$5)-LOG10(O13)))*$A$2,0),0) -> 0 | Z13: =SUM(LARGE(P13:Y13,1),LARGE(P13:Y13,2),LARGE(P13:Y13,3),LARGE(P13:Y13,4)) -> 20824
A14: 8 | B14: 1 | C14: U15M | D14: 1705-0090 | E14: Drda David | F14: 6 | G14: 8 | H14: 5 | I14: 7 | J14: 8 | K14: 9 | P14: =IF((F14>0),ROUND((101+1000*(LOG10($F$5)-LOG10(F14)))*$A$2,0),0) -> 5279 | Q14: =IF((G14>0),ROUND((101+1000*(LOG10($G$5)-LOG10(G14)))*$A$2,0),0) -> 4405 | R14: =IF((H14>0),ROUND((101+1000*(LOG10($H$5)-LOG10(H14)))*$A$2,0),0) -> 5211 | S14: =IF((I14>0),ROUND((101+1000*(LOG10($I$5)-LOG10(I14)))*$A$2,0),0) -> 5600 | T14: =IF((J14>0),ROUND((101+1000*(LOG10($J$5)-LOG10(J14)))*$A$2,0),0) -> 4622 | U14: =IF((K14>0),ROUND((101+1000*(LOG10($K$5)-LOG10(K14)))*$A$2,0),0) -> 3283 | V14: =IF((L14>0),ROUND((101+1000*(LOG10($L$5)-LOG10(L14)))*$A$2,0),0) -> 0 | W14: =IF((M14>0),ROUND((101+1000*(LOG10($M$5)-LOG10(M14)))*$A$2,0),0) -> 0 | X14: =IF((N14>0),ROUND((101+1000*(LOG10($N$5)-LOG10(N14)))*$A$2,0),0) -> 0 | Y14: =IF((O14>0),ROUND((101+1000*(LOG10($O$5)-LOG10(O14)))*$A$2,0),0) -> 0 | Z14: =SUM(LARGE(P14:Y14,1),LARGE(P14:Y14,2),LARGE(P14:Y14,3),LARGE(P14:Y14,4)) -> 20712
A15: 9 | B15: 1 | C15: U17F | D15: 1130-0352 | E15: Švíková Bára | F15: 12 | G15: 7 | J15: 10 | K15: 3 | P15: =IF((F15>0),ROUND((101+1000*(LOG10($F$5)-LOG10(F15)))*$A$2,0),0) -> 3172 | Q15: =IF((G15>0),ROUND((101+1000*(LOG10($G$5)-LOG10(G15)))*$A$2,0),0) -> 4811 | R15: =IF((H15>0),ROUND((101+1000*(LOG10($H$5)-LOG10(H15)))*$A$2,0),0) -> 0 | S15: =IF((I15>0),ROUND((101+1000*(LOG10($I$5)-LOG10(I15)))*$A$2,0),0) -> 0 | T15: =IF((J15>0),ROUND((101+1000*(LOG10($J$5)-LOG10(J15)))*$A$2,0),0) -> 3944 | U15: =IF((K15>0),ROUND((101+1000*(LOG10($K$5)-LOG10(K15)))*$A$2,0),0) -> 6623 | V15: =IF((L15>0),ROUND((101+1000*(LOG10($L$5)-LOG10(L15)))*$A$2,0),0) -> 0 | W15: =IF((M15>0),ROUND((101+1000*(LOG10($M$5)-LOG10(M15)))*$A$2,0),0) -> 0 | X15: =IF((N15>0),ROUND((101+1000*(LOG10($N$5)-LOG10(N15)))*$A$2,0),0) -> 0 | Y15: =IF((O15>0),ROUND((101+1000*(LOG10($O$5)-LOG10(O15)))*$A$2,0),0) -> 0 | Z15: =SUM(LARGE(P15:Y15,1),LARGE(P15:Y15,2),LARGE(P15:Y15,3),LARGE(P15:Y15,4)) -> 18550
A16: 10 | B16: 3 | C16: U17M | D16: 1607-0169 | E16: Parchomenko Ondřej | F16: 15 | G16: 9 | H16: 9 | I16: 14 | J16: 9 | K16: 4 | P16: =IF((F16>0),ROUND((101+1000*(LOG10($F$5)-LOG10(F16)))*$A$2,0),0) -> 2494 | Q16: =IF((G16>0),ROUND((101+1000*(LOG10($G$5)-LOG10(G16)))*$A$2,0),0) -> 4047 | R16: =IF((H16>0),ROUND((101+1000*(LOG10($H$5)-LOG10(H16)))*$A$2,0),0) -> 3424 | S16: =IF((I16>0),ROUND((101+1000*(LOG10($I$5)-LOG10(I16)))*$A$2,0),0) -> 3493 | T16: =IF((J16>0),ROUND((101+1000*(LOG10($J$5)-LOG10(J16)))*$A$2,0),0) -> 4264 | U16: =IF((K16>0),ROUND((101+1000*(LOG10($K$5)-LOG10(K16)))*$A$2,0),0) -> 5748 | V16: =IF((L16>0),ROUND((101+1000*(LOG10($L$5)-LOG10(L16)))*$A$2,0),0) -> 0 | W16: =IF((M16>0),ROUND((101+1000*(LOG10($M$5)-LOG10(M16)))*$A$2,0),0) -> 0 | X16: =IF((N16>0),ROUND((101+1000*(LOG10($N$5)-LOG10(N16)))*$A$2,0),0) -> 0 | Y16: =IF((O16>0),ROUND((101+1000*(LOG10($O$5)-LOG10(O16)))*$A$2,0),0) -> 0 | Z16: =SUM(LARGE(P16:Y16,1),LARGE(P16:Y16,2),LARGE(P16:Y16,3),LARGE(P16:Y16,4)) -> 17552
A17: 11 | B17: 2 | C17: U17F | D17: 1401-0459 | E17: Altmannová Kateřina | F17: 17 | G17: 10 | H17: 12 | I17: 17 | J17: 6 | K17: 7 | P17: =IF((F17>0),ROUND((101+1000*(LOG10($F$5)-LOG10(F17)))*$A$2,0),0) -> 2113 | Q17: =IF((G17>0),ROUND((101+1000*(LOG10($G$5)-LOG10(G17)))*$A$2,0),0) -> 3727 | R17: =IF((H17>0),ROUND((101+1000*(LOG10($H$5)-LOG10(H17)))*$A$2,0),0) -> 2550 | S17: =IF((I17>0),ROUND((101+1000*(LOG10($I$5)-LOG10(I17)))*$A$2,0),0) -> 2902 | T17: =IF((J17>0),ROUND((101+1000*(LOG10($J$5)-LOG10(J17)))*$A$2,0),0) -> 5497 | U17: =IF((K17>0),ROUND((101+1000*(LOG10($K$5)-LOG10(K17)))*$A$2,0),0) -> 4047 | V17: =IF((L17>0),ROUND((101+1000*(LOG10($L$5)-LOG10(L17)))*$A$2,0),0) -> 0 | W17: =IF((M17>0),ROUND((101+1000*(LOG10($M$5)-LOG10(M17)))*$A$2,0),0) -> 0 | X17: =IF((N17>0),ROUND((101+1000*(LOG10($N$5)-LOG10(N17)))*$A$2,0),0) -> 0 | Y17: =IF((O17>0),ROUND((101+1000*(LOG10($O$5)-LOG10(O17)))*$A$2,0),0) -> 0 | Z17: =SUM(LARGE(P17:Y17,1),LARGE(P17:Y17,2),LARGE(P17:Y17,3),LARGE(P17:Y17,4)) -> 16173
A18: 12 | B18: 1 | C18: U13F | D18: 1609-0278 | E18: Říčanová Nicol | F18: 8 | G18: 11 | H18: 10 | I18: 11 | J18: 21 | K18: 8 | P18: =IF((F18>0),ROUND((101+1000*(LOG10($F$5)-LOG10(F18)))*$A$2,0),0) -> 4405 | Q18: =IF((G18>0),ROUND((101+1000*(LOG10($G$5)-LOG10(G18)))*$A$2,0),0) -> 3437 | R18: =IF((H18>0),ROUND((101+1000*(LOG10($H$5)-LOG10(H18)))*$A$2,0),0) -> 3104 | S18: =IF((I18>0),ROUND((101+1000*(LOG10($I$5)-LOG10(I18)))*$A$2,0),0) -> 4226 | T18: =IF((J18>0),ROUND((101+1000*(LOG10($J$5)-LOG10(J18)))*$A$2,0),0) -> 1688 | U18: =IF((K18>0),ROUND((101+1000*(LOG10($K$5)-LOG10(K18)))*$A$2,0),0) -> 3641 | V18: =IF((L18>0),ROUND((101+1000*(LOG10($L$5)-LOG10(L18)))*$A$2,0),0) -> 0 | W18: =IF((M18>0),ROUND((101+1000*(LOG10($M$5)-LOG10(M18)))*$A$2,0),0) -> 0 | X18: =IF((N18>0),ROUND((101+1000*(LOG10($N$5)-LOG10(N18)))*$A$2,0),0) -> 0 | Y18: =IF((O18>0),ROUND((101+1000*(LOG10($O$5)-LOG10(O18)))*$A$2,0),0) -> 0 | Z18: =SUM(LARGE(P18:Y18,1),LARGE(P18:Y18,2),LARGE(P18:Y18,3),LARGE(P18:Y18,4)) -> 15709
A19: 13 | B19: 2 | C19: O17M | D19: 1402-0384 | E19: Šplíchal Filip | F19: 14 | I19: 10 | J19: 5 | P19: =IF((F19>0),ROUND((101+1000*(LOG10($F$5)-LOG10(F19)))*$A$2,0),0) -> 2704 | Q19: =IF((G19>0),ROUND((101+1000*(LOG10($G$5)-LOG10(G19)))*$A$2,0),0) -> 0 | R19: =IF((H19>0),ROUND((101+1000*(LOG10($H$5)-LOG10(H19)))*$A$2,0),0) -> 0 | S19: =IF((I19>0),ROUND((101+1000*(LOG10($I$5)-LOG10(I19)))*$A$2,0),0) -> 4515 | T19: =IF((J19>0),ROUND((101+1000*(LOG10($J$5)-LOG10(J19)))*$A$2,0),0) -> 6051 | U19: =IF((K19>0),ROUND((101+1000*(LOG10($K$5)-LOG10(K19)))*$A$2,0),0) -> 0 | V19: =IF((L19>0),ROUND((101+1000*(LOG10($L$5)-LOG10(L19)))*$A$2,0),0) -> 0 | W19: =IF((M19>0),ROUND((101+1000*(LOG10($M$5)-LOG10(M19)))*$A$2,0),0) -> 0 | X19: =IF((N19>0),ROUND((101+1000*(LOG10($N$5)-LOG10(N19)))*$A$2,0),0) -> 0 | Y19: =IF((O19>0),ROUND((101+1000*(LOG10($O$5)-LOG10(O19)))*$A$2,0),0) -> 0 | Z19: =SUM(LARGE(P19:Y19,1),LARGE(P19:Y19,2),LARGE(P19:Y19,3),LARGE(P19:Y19,4)) -> 13270
A20: 14 | B20: 2 | C20: U15M | D20: 2110-0185 | E20: Diviš Lukáš | G20: 15 | I20: 12 | J20: 12 | K20: 13 | P20: =IF((F20>0),ROUND((101+1000*(LOG10($F$5)-LOG10(F20)))*$A$2,0),0) -> 0 | Q20: =IF((G20>0),ROUND((101+1000*(LOG10($G$5)-LOG10(G20)))*$A$2,0),0) -> 2494 | R20: =IF((H20>0),ROUND((101+1000*(LOG10($H$5)-LOG10(H20)))*$A$2,0),0) -> 0 | S20: =IF((I20>0),ROUND((101+1000*(LOG10($I$5)-LOG10(I20)))*$A$2,0),0) -> 3961 | T20: =IF((J20>0),ROUND((101+1000*(LOG10($J$5)-LOG10(J20)))*$A$2,0),0) -> 3390 | U20: =IF((K20>0),ROUND((101+1000*(LOG10($K$5)-LOG10(K20)))*$A$2,0),0) -> 2165 | V20: =IF((L20>0),ROUND((101+1000*(LOG10($L$5)-LOG10(L20)))*$A$2,0),0) -> 0 | W20: =IF((M20>0),ROUND((101+1000*(LOG10($M$5)-LOG10(M20)))*$A$2,0),0) -> 0 | X20: =IF((N20>0),ROUND((101+1000*(LOG10($N$5)-LOG10(N20)))*$A$2,0),0) -> 0 | Y20: =IF((O20>0),ROUND((101+1000*(LOG10($O$5)-LOG10(O20)))*$A$2,0),0) -> 0 | Z20: =SUM(LARGE(P20:Y20,1),LARGE(P20:Y20,2),LARGE(P20:Y20,3),LARGE(P20:Y20,4)) -> 12010
A21: 15 | B21: 2 | C21: O17F | D21: 1130-0276 | E21: Švíková Kateřina | F21: 5 | I21: 6 | P21: =IF((F21>0),ROUND((101+1000*(LOG10($F$5)-LOG10(F21)))*$A$2,0),0) -> 5834 | Q21: =IF((G21>0),ROUND((101+1000*(LOG10($G$5)-LOG10(G21)))*$A$2,0),0) -> 0 | R21: =IF((H21>0),ROUND((101+1000*(LOG10($H$5)-LOG10(H21)))*$A$2,0),0) -> 0 | S21: =IF((I21>0),ROUND((101+1000*(LOG10($I$5)-LOG10(I21)))*$A$2,0),0) -> 6068 | T21: =IF((J21>0),ROUND((101+1000*(LOG10($J$5)-LOG10(J21)))*$A$2,0),0) -> 0 | U21: =IF((K21>0),ROUND((101+1000*(LOG10($K$5)-LOG10(K21)))*$A$2,0),0) -> 0 | V21: =IF((L21>0),ROUND((101+1000*(LOG10($L$5)-LOG10(L21)))*$A$2,0),0) -> 0 | W21: =IF((M21>0),ROUND((101+1000*(LOG10($M$5)-LOG10(M21)))*$A$2,0),0) -> 0 | X21: =IF((N21>0),ROUND((101+1000*(LOG10($N$5)-LOG10(N21)))*$A$2,0),0) -> 0 | Y21: =IF((O21>0),ROUND((101+1000*(LOG10($O$5)-LOG10(O21)))*$A$2,0),0) -> 0 | Z21: =SUM(LARGE(P21:Y21,1),LARGE(P21:Y21,2),LARGE(P21:Y21,3),LARGE(P21:Y21,4)) -> 11902
A22: 16 | B22: 3 | C22: U17F | D22: 2110-0191 | E22: Neckařová Martina | F22: 16 | G22: 14 | H22: 14 | I22: 15 | J22: 15 | K22: 10 | P22: =IF((F22>0),ROUND((101+1000*(LOG10($F$5)-LOG10(F22)))*$A$2,0),0) -> 2298 | Q22: =IF((G22>0),ROUND((101+1000*(LOG10($G$5)-LOG10(G22)))*$A$2,0),0) -> 2704 | R22: =IF((H22>0),ROUND((101+1000*(LOG10($H$5)-LOG10(H22)))*$A$2,0),0) -> 2081 | S22: =IF((I22>0),ROUND((101+1000*(LOG10($I$5)-LOG10(I22)))*$A$2,0),0) -> 3283 | T22: =IF((J22>0),ROUND((101+1000*(LOG10($J$5)-LOG10(J22)))*$A$2,0),0) -> 2711 | U22: =IF((K22>0),ROUND((101+1000*(LOG10($K$5)-LOG10(K22)))*$A$2,0),0) -> 2963 | V22: =IF((L22>0),ROUND((101+1000*(LOG10($L$5)-LOG10(L22)))*$A$2,0),0) -> 0 | W22: =IF((M22>0),ROUND((101+1000*(LOG10($M$5)-LOG10(M22)))*$A$2,0),0) -> 0 | X22: =IF((N22>0),ROUND((101+1000*(LOG10($N$5)-LOG10(N22)))*$A$2,0),0) -> 0 | Y22: =IF((O22>0),ROUND((101+1000*(LOG10($O$5)-LOG10(O22)))*$A$2,0),0) -> 0 | Z22: =SUM(LARGE(P22:Y22,1),LARGE(P22:Y22,2),LARGE(P22:Y22,3),LARGE(P22:Y22,4)) -> 11661
A23: 17 | B23: 3 | C23: O17M | D23: 2101-0375 | E23: Pospíšil Martin | I23: 1 | P23: =IF((F23>0),ROUND((101+1000*(LOG10($F$5)-LOG10(F23)))*$A$2,0),0) -> 0 | Q23: =IF((G23>0),ROUND((101+1000*(LOG10($G$5)-LOG10(G23)))*$A$2,0),0) -> 0 | R23: =IF((H23>0),ROUND((101+1000*(LOG10($H$5)-LOG10(H23)))*$A$2,0),0) -> 0 | S23: =IF((I23>0),ROUND((101+1000*(LOG10($I$5)-LOG10(I23)))*$A$2,0),0) -> 11515 | T23: =IF((J23>0),ROUND((101+1000*(LOG10($J$5)-LOG10(J23)))*$A$2,0),0) -> 0 | U23: =IF((K23>0),ROUND((101+1000*(LOG10($K$5)-LOG10(K23)))*$A$2,0),0) -> 0 | V23: =IF((L23>0),ROUND((101+1000*(LOG10($L$5)-LOG10(L23)))*$A$2,0),0) -> 0 | W23: =IF((M23>0),ROUND((101+1000*(LOG10($M$5)-LOG10(M23)))*$A$2,0),0) -> 0 | X23: =IF((N23>0),ROUND((101+1000*(LOG10($N$5)-LOG10(N23)))*$A$2,0),0) -> 0 | Y23: =IF((O23>0),ROUND((101+1000*(LOG10($O$5)-LOG10(O23)))*$A$2,0),0) -> 0 | Z23: =SUM(LARGE(P23:Y23,1),LARGE(P23:Y23,2),LARGE(P23:Y23,3),LARGE(P23:Y23,4)) -> 11515
A24: 18 | B24: 2 | C24: U13F | D24: 1705-0086 | E24: Sadílková Nela | F24: 13 | G24: 16 | H24: 13 | I24: 16 | J24: 14 | K24: 14 | P24: =IF((F24>0),ROUND((101+1000*(LOG10($F$5)-LOG10(F24)))*$A$2,0),0) -> 2929 | Q24: =IF((G24>0),ROUND((101+1000*(LOG10($G$5)-LOG10(G24)))*$A$2,0),0) -> 2298 | R24: =IF((H24>0),ROUND((101+1000*(LOG10($H$5)-LOG10(H24)))*$A$2,0),0) -> 2306 | S24: =IF((I24>0),ROUND((101+1000*(LOG10($I$5)-LOG10(I24)))*$A$2,0),0) -> 3087 | T24: =IF((J24>0),ROUND((101+1000*(LOG10($J$5)-LOG10(J24)))*$A$2,0),0) -> 2921 | U24: =IF((K24>0),ROUND((101+1000*(LOG10($K$5)-LOG10(K24)))*$A$2,0),0) -> 1940 | V24: =IF((L24>0),ROUND((101+1000*(LOG10($L$5)-LOG10(L24)))*$A$2,0),0) -> 0 | W24: =IF((M24>0),ROUND((101+1000*(LOG10($M$5)-LOG10(M24)))*$A$2,0),0) -> 0 | X24: =IF((N24>0),ROUND((101+1000*(LOG10($N$5)-LOG10(N24)))*$A$2,0),0) -> 0 | Y24: =IF((O24>0),ROUND((101+1000*(LOG10($O$5)-LOG10(O24)))*$A$2,0),0) -> 0 | Z24: =SUM(LARGE(P24:Y24,1),LARGE(P24:Y24,2),LARGE(P24:Y24,3),LARGE(P24:Y24,4)) -> 11243
A25: 19 | B25: 3 | C25: U13F | D25: 1705-0074 | E25: Štěpánková Markéta | F25: 18 | G25: 21 | H25: 17 | I25: 23 | J25: 11 | K25: 15 | P25: =IF((F25>0),ROUND((101+1000*(LOG10($F$5)-LOG10(F25)))*$A$2,0),0) -> 1940 | Q25: =IF((G25>0),ROUND((101+1000*(LOG10($G$5)-LOG10(G25)))*$A$2,0),0) -> 1471 | R25: =IF((H25>0),ROUND((101+1000*(LOG10($H$5)-LOG10(H25)))*$A$2,0),0) -> 1491 | S25: =IF((I25>0),ROUND((101+1000*(LOG10($I$5)-LOG10(I25)))*$A$2,0),0) -> 1983 | T25: =IF((J25>0),ROUND((101+1000*(LOG10($J$5)-LOG10(J25)))*$A$2,0),0) -> 3654 | U25: =IF((K25>0),ROUND((101+1000*(LOG10($K$5)-LOG10(K25)))*$A$2,0),0) -> 1730 | V25: =IF((L25>0),ROUND((101+1000*(LOG10($L$5)-LOG10(L25)))*$A$2,0),0) -> 0 | W25: =IF((M25>0),ROUND((101+1000*(LOG10($M$5)-LOG10(M25)))*$A$2,0),0) -> 0 | X25: =IF((N25>0),ROUND((101+1000*(LOG10($N$5)-LOG10(N25)))*$A$2,0),0) -> 0 | Y25: =IF((O25>0),ROUND((101+1000*(LOG10($O$5)-LOG10(O25)))*$A$2,0),0) -> 0 | Z25: =SUM(LARGE(P25:Y25,1),LARGE(P25:Y25,2),LARGE(P25:Y25,3),LARGE(P25:Y25,4)) -> 9307
A26: 20 | B26: 4 | C26: U17M | D26: 1607-0165 | E26: Himmel Jiří | F26: 9 | G26: 12 | J26: 19 | P26: =IF((F26>0),ROUND((101+1000*(LOG10($F$5)-LOG10(F26)))*$A$2,0),0) -> 4047 | Q26: =IF((G26>0),ROUND((101+1000*(LOG10($G$5)-LOG10(G26)))*$A$2,0),0) -> 3172 | R26: =IF((H26>0),ROUND((101+1000*(LOG10($H$5)-LOG10(H26)))*$A$2,0),0) -> 0 | S26: =IF((I26>0),ROUND((101+1000*(LOG10($I$5)-LOG10(I26)))*$A$2,0),0) -> 0 | T26: =IF((J26>0),ROUND((101+1000*(LOG10($J$5)-LOG10(J26)))*$A$2,0),0) -> 1993 | U26: =IF((K26>0),ROUND((101+1000*(LOG10($K$5)-LOG10(K26)))*$A$2,0),0) -> 0 | V26: =IF((L26>0),ROUND((101+1000*(LOG10($L$5)-LOG10(L26)))*$A$2,0),0) -> 0 | W26: =IF((M26>0),ROUND((101+1000*(LOG10($M$5)-LOG10(M26)))*$A$2,0),0) -> 0 | X26: =IF((N26>0),ROUND((101+1000*(LOG10($N$5)-LOG10(N26)))*$A$2,0),0) -> 0 | Y26: =IF((O26>0),ROUND((101+1000*(LOG10($O$5)-LOG10(O26)))*$A$2,0),0) -> 0 | Z26: =SUM(LARGE(P26:Y26,1),LARGE(P26:Y26,2),LARGE(P26:Y26,3),LARGE(P26:Y26,4)) -> 9212
A27: 21 | B27: 2 | C27: U13M | D27: 2110-0178 | E27: Skřepek Šimon | F27: 19 | G27: 20 | I27: 18 | J27: 16 | K27: 18 | P27: =IF((F27>0),ROUND((101+1000*(LOG10($F$5)-LOG10(F27)))*$A$2,0),0) -> 1775 | Q27: =IF((G27>0),ROUND((101+1000*(LOG10($G$5)-LOG10(G27)))*$A$2,0),0) -> 1619 | R27: =IF((H27>0),ROUND((101+1000*(LOG10($H$5)-LOG10(H27)))*$A$2,0),0) -> 0 | S27: =IF((I27>0),ROUND((101+1000*(LOG10($I$5)-LOG10(I27)))*$A$2,0),0) -> 2729 | T27: =IF((J27>0),ROUND((101+1000*(LOG10($J$5)-LOG10(J27)))*$A$2,0),0) -> 2515 | U27: =IF((K27>0),ROUND((101+1000*(LOG10($K$5)-LOG10(K27)))*$A$2,0),0) -> 1176 | V27: =IF((L27>0),ROUND((101+1000*(LOG10($L$5)-LOG10(L27)))*$A$2,0),0) -> 0 | W27: =IF((M27>0),ROUND((101+1000*(LOG10($M$5)-LOG10(M27)))*$A$2,0),0) -> 0 | X27: =IF((N27>0),ROUND((101+1000*(LOG10($N$5)-LOG10(N27)))*$A$2,0),0) -> 0 | Y27: =IF((O27>0),ROUND((101+1000*(LOG10($O$5)-LOG10(O27)))*$A$2,0),0) -> 0 | Z27: =SUM(LARGE(P27:Y27,1),LARGE(P27:Y27,2),LARGE(P27:Y27,3),LARGE(P27:Y27,4)) -> 8638
A28: 22 | B28: 5 | C28: U17M | D28: 1705-0085 | E28: Sadílek Adam | G28: 17 | H28: 16 | I28: 13 | P28: =IF((F28>0),ROUND((101+1000*(LOG10($F$5)-LOG10(F28)))*$A$2,0),0) -> 0 | Q28: =IF((G28>0),ROUND((101+1000*(LOG10($G$5)-LOG10(G28)))*$A$2,0),0) -> 2113 | R28: =IF((H28>0),ROUND((101+1000*(LOG10($H$5)-LOG10(H28)))*$A$2,0),0) -> 1675 | S28: =IF((I28>0),ROUND((101+1000*(LOG10($I$5)-LOG10(I28)))*$A$2,0),0) -> 3718 | T28: =IF((J28>0),ROUND((101+1000*(LOG10($J$5)-LOG10(J28)))*$A$2,0),0) -> 0 | U28: =IF((K28>0),ROUND((101+1000*(LOG10($K$5)-LOG10(K28)))*$A$2,0),0) -> 0 | V28: =IF((L28>0),ROUND((101+1000*(LOG10($L$5)-LOG10(L28)))*$A$2,0),0) -> 0 | W28: =IF((M28>0),ROUND((101+1000*(LOG10($M$5)-LOG10(M28)))*$A$2,0),0) -> 0 | X28: =IF((N28>0),ROUND((101+1000*(LOG10($N$5)-LOG10(N28)))*$A$2,0),0) -> 0 | Y28: =IF((O28>0),ROUND((101+1000*(LOG10($O$5)-LOG10(O28)))*$A$2,0),0) -> 0 | Z28: =SUM(LARGE(P28:Y28,1),LARGE(P28:Y28,2),LARGE(P28:Y28,3),LARGE(P28:Y28,4)) -> 7506
A29: 23 | B29: 3 | C29: U15F | D29: 2110-0189 | E29: Samcová Klára | F29: 23 | G29: 24 | H29: 19 | I29: 19 | K29: 12 | P29: =IF((F29>0),ROUND((101+1000*(LOG10($F$5)-LOG10(F29)))*$A$2,0),0) -> 1194 | Q29: =IF((G29>0),ROUND((101+1000*(LOG10($G$5)-LOG10(G29)))*$A$2,0),0) -> 1065 | R29: =IF((H29>0),ROUND((101+1000*(LOG10($H$5)-LOG10(H29)))*$A$2,0),0) -> 1153 | S29: =IF((I29>0),ROUND((101+1000*(LOG10($I$5)-LOG10(I29)))*$A$2,0),0) -> 2564 | T29: =IF((J29>0),ROUND((101+1000*(LOG10($J$5)-LOG10(J29)))*$A$2,0),0) -> 0 | U29: =IF((K29>0),ROUND((101+1000*(LOG10($K$5)-LOG10(K29)))*$A$2,0),0) -> 2408 | V29: =IF((L29>0),ROUND((101+1000*(LOG10($L$5)-LOG10(L29)))*$A$2,0),0) -> 0 | W29: =IF((M29>0),ROUND((101+1000*(LOG10($M$5)-LOG10(M29)))*$A$2,0),0) -> 0 | X29: =IF((N29>0),ROUND((101+1000*(LOG10($N$5)-LOG10(N29)))*$A$2,0),0) -> 0 | Y29: =IF((O29>0),ROUND((101+1000*(LOG10($O$5)-LOG10(O29)))*$A$2,0),0) -> 0 | Z29: =SUM(LARGE(P29:Y29,1),LARGE(P29:Y29,2),LARGE(P29:Y29,3),LARGE(P29:Y29,4)) -> 7319
A30: 24 | B30: 4 | C30: U15F | D30: 2110-0183 | E30: Komendová Kateřina | G30: 18 | I30: 22 | J30: 22 | K30: 16 | P30: =IF((F30>0),ROUND((101+1000*(LOG10($F$5)-LOG10(F30)))*$A$2,0),0) -> 0 | Q30: =IF((G30>0),ROUND((101+1000*(LOG10($G$5)-LOG10(G30)))*$A$2,0),0) -> 1940 | R30: =IF((H30>0),ROUND((101+1000*(LOG10($H$5)-LOG10(H30)))*$A$2,0),0) -> 0 | S30: =IF((I30>0),ROUND((101+1000*(LOG10($I$5)-LOG10(I30)))*$A$2,0),0) -> 2119 | T30: =IF((J30>0),ROUND((101+1000*(LOG10($J$5)-LOG10(J30)))*$A$2,0),0) -> 1547 | U30: =IF((K30>0),ROUND((101+1000*(LOG10($K$5)-LOG10(K30)))*$A$2,0),0) -> 1534 | V30: =IF((L30>0),ROUND((101+1000*(LOG10($L$5)-LOG10(L30)))*$A$2,0),0) -> 0 | W30: =IF((M30>0),ROUND((101+1000*(LOG10($M$5)-LOG10(M30)))*$A$2,0),0) -> 0 | X30: =IF((N30>0),ROUND((101+1000*(LOG10($N$5)-LOG10(N30)))*$A$2,0),0) -> 0 | Y30: =IF((O30>0),ROUND((101+1000*(LOG10($O$5)-LOG10(O30)))*$A$2,0),0) -> 0 | Z30: =SUM(LARGE(P30:Y30,1),LARGE(P30:Y30,2),LARGE(P30:Y30,3),LARGE(P30:Y30,4)) -> 7140
A31: 25 | B31: 4 | C31: U13F | D31: 1705-0169 | E31: Lojínová Alexandra | F31: 24 | G31: 22 | H31: 18 | I31: 24 | J31: 18 | K31: 17 | P31: =IF((F31>0),ROUND((101+1000*(LOG10($F$5)-LOG10(F31)))*$A$2,0),0) -> 1065 | Q31: =IF((G31>0),ROUND((101+1000*(LOG10($G$5)-LOG10(G31)))*$A$2,0),0) -> 1330 | R31: =IF((H31>0),ROUND((101+1000*(LOG10($H$5)-LOG10(H31)))*$A$2,0),0) -> 1317 | S31: =IF((I31>0),ROUND((101+1000*(LOG10($I$5)-LOG10(I31)))*$A$2,0),0) -> 1854 | T31: =IF((J31>0),ROUND((101+1000*(LOG10($J$5)-LOG10(J31)))*$A$2,0),0) -> 2157 | U31: =IF((K31>0),ROUND((101+1000*(LOG10($K$5)-LOG10(K31)))*$A$2,0),0) -> 1349 | V31: =IF((L31>0),ROUND((101+1000*(LOG10($L$5)-LOG10(L31)))*$A$2,0),0) -> 0 | W31: =IF((M31>0),ROUND((101+1000*(LOG10($M$5)-LOG10(M31)))*$A$2,0),0) -> 0 | X31: =IF((N31>0),ROUND((101+1000*(LOG10($N$5)-LOG10(N31)))*$A$2,0),0) -> 0 | Y31: =IF((O31>0),ROUND((101+1000*(LOG10($O$5)-LOG10(O31)))*$A$2,0),0) -> 0 | Z31: =SUM(LARGE(P31:Y31,1),LARGE(P31:Y31,2),LARGE(P31:Y31,3),LARGE(P31:Y31,4)) -> 6690
A32: 26 | B32: 3 | C32: U13M | D32: 1609-0298 | E32: Rais Michal | F32: 22 | G32: 23 | I32: 21 | J32: 20 | P32: =IF((F32>0),ROUND((101+1000*(LOG10($F$5)-LOG10(F32)))*$A$2,0),0) -> 1330 | Q32: =IF((G32>0),ROUND((101+1000*(LOG10($G$5)-LOG10(G32)))*$A$2,0),0) -> 1194 | R32: =IF((H32>0),ROUND((101+1000*(LOG10($H$5)-LOG10(H32)))*$A$2,0),0) -> 0 | S32: =IF((I32>0),ROUND((101+1000*(LOG10($I$5)-LOG10(I32)))*$A$2,0),0) -> 2260 | T32: =IF((J32>0),ROUND((101+1000*(LOG10($J$5)-LOG10(J32)))*$A$2,0),0) -> 1837 | U32: =IF((K32>0),ROUND((101+1000*(LOG10($K$5)-LOG10(K32)))*$A$2,0),0) -> 0 | V32: =IF((L32>0),ROUND((101+1000*(LOG10($L$5)-LOG10(L32)))*$A$2,0),0) -> 0 | W32: =IF((M32>0),ROUND((101+1000*(LOG10($M$5)-LOG10(M32)))*$A$2,0),0) -> 0 | X32: =IF((N32>0),ROUND((101+1000*(LOG10($N$5)-LOG10(N32)))*$A$2,0),0) -> 0 | Y32: =IF((O32>0),ROUND((101+1000*(LOG10($O$5)-LOG10(O32)))*$A$2,0),0) -> 0 | Z32: =SUM(LARGE(P32:Y32,1),LARGE(P32:Y32,2),LARGE(P32:Y32,3),LARGE(P32:Y32,4)) -> 6621
A33: 27 | B33: 3 | C33: U15M | D33: 1609-0301 | E33: Tlapák Vojtěch | F33: 20 | I33: 20 | J33: 17 | P33: =IF((F33>0),ROUND((101+1000*(LOG10($F$5)-LOG10(F33)))*$A$2,0),0) -> 1619 | Q33: =IF((G33>0),ROUND((101+1000*(LOG10($G$5)-LOG10(G33)))*$A$2,0),0) -> 0 | R33: =IF((H33>0),ROUND((101+1000*(LOG10($H$5)-LOG10(H33)))*$A$2,0),0) -> 0 | S33: =IF((I33>0),ROUND((101+1000*(LOG10($I$5)-LOG10(I33)))*$A$2,0),0) -> 2408 | T33: =IF((J33>0),ROUND((101+1000*(LOG10($J$5)-LOG10(J33)))*$A$2,0),0) -> 2331 | U33: =IF((K33>0),ROUND((101+1000*(LOG10($K$5)-LOG10(K33)))*$A$2,0),0) -> 0 | V33: =IF((L33>0),ROUND((101+1000*(LOG10($L$5)-LOG10(L33)))*$A$2,0),0) -> 0 | W33: =IF((M33>0),ROUND((101+1000*(LOG10($M$5)-LOG10(M33)))*$A$2,0),0) -> 0 | X33: =IF((N33>0),ROUND((101+1000*(LOG10($N$5)-LOG10(N33)))*$A$2,0),0) -> 0 | Y33: =IF((O33>0),ROUND((101+1000*(LOG10($O$5)-LOG10(O33)))*$A$2,0),0) -> 0 | Z33: =SUM(LARGE(P33:Y33,1),LARGE(P33:Y33,2),LARGE(P33:Y33,3),LARGE(P33:Y33,4)) -> 6358
A34: 28 | B34: 5 | C34: U15F | D34: 7019-0391 | E34: Zemanová Nicole | F34: 21 | H34: 15 | K34: 11 | P34: =IF((F34>0),ROUND((101+1000*(LOG10($F$5)-LOG10(F34)))*$A$2,0),0) -> 1471 | Q34: =IF((G34>0),ROUND((101+1000*(LOG10($G$5)-LOG10(G34)))*$A$2,0),0) -> 0 | R34: =IF((H34>0),ROUND((101+1000*(LOG10($H$5)-LOG10(H34)))*$A$2,0),0) -> 1871 | S34: =IF((I34>0),ROUND((101+1000*(LOG10($I$5)-LOG10(I34)))*$A$2,0),0) -> 0 | T34: =IF((J34>0),ROUND((101+1000*(LOG10($J$5)-LOG10(J34)))*$A$2,0),0) -> 0 | U34: =IF((K34>0),ROUND((101+1000*(LOG10($K$5)-LOG10(K34)))*$A$2,0),0) -> 2673 | V34: =IF((L34>0),ROUND((101+1000*(LOG10($L$5)-LOG10(L34)))*$A$2,0),0) -> 0 | W34: =IF((M34>0),ROUND((101+1000*(LOG10($M$5)-LOG10(M34)))*$A$2,0),0) -> 0 | X34: =IF((N34>0),ROUND((101+1000*(LOG10($N$5)-LOG10(N34)))*$A$2,0),0) -> 0 | Y34: =IF((O34>0),ROUND((101+1000*(LOG10($O$5)-LOG10(O34)))*$A$2,0),0) -> 0 | Z34: =SUM(LARGE(P34:Y34,1),LARGE(P34:Y34,2),LARGE(P34:Y34,3),LARGE(P34:Y34,4)) -> 6015
A35: 29 | B35: 4 | C35: U13M | D35: 2110-0173 | E35: Šeliga Teodor | F35: 25 | G35: 19 | H35: 20 | I35: 25 | J35: 24 | K35: 19 | P35: =IF((F35>0),ROUND((101+1000*(LOG10($F$5)-LOG10(F35)))*$A$2,0),0) -> 941 | Q35: =IF((G35>0),ROUND((101+1000*(LOG10($G$5)-LOG10(G35)))*$A$2,0),0) -> 1775 | R35: =IF((H35>0),ROUND((101+1000*(LOG10($H$5)-LOG10(H35)))*$A$2,0),0) -> 997 | S35: =IF((I35>0),ROUND((101+1000*(LOG10($I$5)-LOG10(I35)))*$A$2,0),0) -> 1730 | T35: =IF((J35>0),ROUND((101+1000*(LOG10($J$5)-LOG10(J35)))*$A$2,0),0) -> 1282 | U35: =IF((K35>0),ROUND((101+1000*(LOG10($K$5)-LOG10(K35)))*$A$2,0),0) -> 1011 | V35: =IF((L35>0),ROUND((101+1000*(LOG10($L$5)-LOG10(L35)))*$A$2,0),0) -> 0 | W35: =IF((M35>0),ROUND((101+1000*(LOG10($M$5)-LOG10(M35)))*$A$2,0),0) -> 0 | X35: =IF((N35>0),ROUND((101+1000*(LOG10($N$5)-LOG10(N35)))*$A$2,0),0) -> 0 | Y35: =IF((O35>0),ROUND((101+1000*(LOG10($O$5)-LOG10(O35)))*$A$2,0),0) -> 0 | Z35: =SUM(LARGE(P35:Y35,1),LARGE(P35:Y35,2),LARGE(P35:Y35,3),LARGE(P35:Y35,4)) -> 5798
A36: 30 | B36: 4 | C36: U17F | D36: 1607-0166 | E36: Himmelová Klára | F36: 7 | P36: =IF((F36>0),ROUND((101+1000*(LOG10($F$5)-LOG10(F36)))*$A$2,0),0) -> 4811 | Q36: =IF((G36>0),ROUND((101+1000*(LOG10($G$5)-LOG10(G36)))*$A$2,0),0) -> 0 | R36: =IF((H36>0),ROUND((101+1000*(LOG10($H$5)-LOG10(H36)))*$A$2,0),0) -> 0 | S36: =IF((I36>0),ROUND((101+1000*(LOG10($I$5)-LOG10(I36)))*$A$2,0),0) -> 0 | T36: =IF((J36>0),ROUND((101+1000*(LOG10($J$5)-LOG10(J36)))*$A$2,0),0) -> 0 | U36: =IF((K36>0),ROUND((101+1000*(LOG10($K$5)-LOG10(K36)))*$A$2,0),0) -> 0 | V36: =IF((L36>0),ROUND((101+1000*(LOG10($L$5)-LOG10(L36)))*$A$2,0),0) -> 0 | W36: =IF((M36>0),ROUND((101+1000*(LOG10($M$5)-LOG10(M36)))*$A$2,0),0) -> 0 | X36: =IF((N36>0),ROUND((101+1000*(LOG10($N$5)-LOG10(N36)))*$A$2,0),0) -> 0 | Y36: =IF((O36>0),ROUND((101+1000*(LOG10($O$5)-LOG10(O36)))*$A$2,0),0) -> 0 | Z36: =SUM(LARGE(P36:Y36,1),LARGE(P36:Y36,2),LARGE(P36:Y36,3),LARGE(P36:Y36,4)) -> 4811
A37: 31 | B37: 5 | C37: U13M | D37: 1705-0182 | E37: Hasman Radim | F37: 27 | G37: 25 | I37: 27 | J37: 26 | P37: =IF((F37>0),ROUND((101+1000*(LOG10($F$5)-LOG10(F37)))*$A$2,0),0) -> 707 | Q37: =IF((G37>0),ROUND((101+1000*(LOG10($G$5)-LOG10(G37)))*$A$2,0),0) -> 941 | R37: =IF((H37>0),ROUND((101+1000*(LOG10($H$5)-LOG10(H37)))*$A$2,0),0) -> 0 | S37: =IF((I37>0),ROUND((101+1000*(LOG10($I$5)-LOG10(I37)))*$A$2,0),0) -> 1496 | T37: =IF((J37>0),ROUND((101+1000*(LOG10($J$5)-LOG10(J37)))*$A$2,0),0) -> 1039 | U37: =IF((K37>0),ROUND((101+1000*(LOG10($K$5)-LOG10(K37)))*$A$2,0),0) -> 0 | V37: =IF((L37>0),ROUND((101+1000*(LOG10($L$5)-LOG10(L37)))*$A$2,0),0) -> 0 | W37: =IF((M37>0),ROUND((101+1000*(LOG10($M$5)-LOG10(M37)))*$A$2,0),0) -> 0 | X37: =IF((N37>0),ROUND((101+1000*(LOG10($N$5)-LOG10(N37)))*$A$2,0),0) -> 0 | Y37: =IF((O37>0),ROUND((101+1000*(LOG10($O$5)-LOG10(O37)))*$A$2,0),0) -> 0 | Z37: =SUM(LARGE(P37:Y37,1),LARGE(P37:Y37,2),LARGE(P37:Y37,3),LARGE(P37:Y37,4)) -> 4183
A38: 32 | B38: 4 | C38: O17M | D38: 1609-0212 | E38: Müller Ondřej | H38: 8 | P38: =IF((F38>0),ROUND((101+1000*(LOG10($F$5)-LOG10(F38)))*$A$2,0),0) -> 0 | Q38: =IF((G38>0),ROUND((101+1000*(LOG10($G$5)-LOG10(G38)))*$A$2,0),0) -> 0 | R38: =IF((H38>0),ROUND((101+1000*(LOG10($H$5)-LOG10(H38)))*$A$2,0),0) -> 3782 | S38: =IF((I38>0),ROUND((101+1000*(LOG10($I$5)-LOG10(I38)))*$A$2,0),0) -> 0 | T38: =IF((J38>0),ROUND((101+1000*(LOG10($J$5)-LOG10(J38)))*$A$2,0),0) -> 0 | U38: =IF((K38>0),ROUND((101+1000*(LOG10($K$5)-LOG10(K38)))*$A$2,0),0) -> 0 | V38: =IF((L38>0),ROUND((101+1000*(LOG10($L$5)-LOG10(L38)))*$A$2,0),0) -> 0 | W38: =IF((M38>0),ROUND((101+1000*(LOG10($M$5)-LOG10(M38)))*$A$2,0),0) -> 0 | X38: =IF((N38>0),ROUND((101+1000*(LOG10($N$5)-LOG10(N38)))*$A$2,0),0) -> 0 | Y38: =IF((O38>0),ROUND((101+1000*(LOG10($O$5)-LOG10(O38)))*$A$2,0),0) -> 0 | Z38: =SUM(LARGE(P38:Y38,1),LARGE(P38:Y38,2),LARGE(P38:Y38,3),LARGE(P38:Y38,4)) -> 3782
A39: 33 | B39: 4 | C39: U15M | D39: 7019-0401 | E39: Kuchař Jan | I39: 29 | J39: 23 | K39: 20 | P39: =IF((F39>0),ROUND((101+1000*(LOG10($F$5)-LOG10(F39)))*$A$2,0),0) -> 0 | Q39: =IF((G39>0),ROUND((101+1000*(LOG10($G$5)-LOG10(G39)))*$A$2,0),0) -> 0 | R39: =IF((H39>0),ROUND((101+1000*(LOG10($H$5)-LOG10(H39)))*$A$2,0),0) -> 0 | S39: =IF((I39>0),ROUND((101+1000*(LOG10($I$5)-LOG10(I39)))*$A$2,0),0) -> 1279 | T39: =IF((J39>0),ROUND((101+1000*(LOG10($J$5)-LOG10(J39)))*$A$2,0),0) -> 1412 | U39: =IF((K39>0),ROUND((101+1000*(LOG10($K$5)-LOG10(K39)))*$A$2,0),0) -> 855 | V39: =IF((L39>0),ROUND((101+1000*(LOG10($L$5)-LOG10(L39)))*$A$2,0),0) -> 0 | W39: =IF((M39>0),ROUND((101+1000*(LOG10($M$5)-LOG10(M39)))*$A$2,0),0) -> 0 | X39: =IF((N39>0),ROUND((101+1000*(LOG10($N$5)-LOG10(N39)))*$A$2,0),0) -> 0 | Y39: =IF((O39>0),ROUND((101+1000*(LOG10($O$5)-LOG10(O39)))*$A$2,0),0) -> 0 | Z39: =SUM(LARGE(P39:Y39,1),LARGE(P39:Y39,2),LARGE(P39:Y39,3),LARGE(P39:Y39,4)) -> 3546
A40: 34 | B40: 6 | C40: U13M | D40: 1609-0303 | E40: Kříž Jan | F40: 26 | G40: 27 | H40: 22 | I40: 34 | J40: 27 | P40: =IF((F40>0),ROUND((101+1000*(LOG10($F$5)-LOG10(F40)))*$A$2,0),0) -> 822 | Q40: =IF((G40>0),ROUND((101+1000*(LOG10($G$5)-LOG10(G40)))*$A$2,0),0) -> 707 | R40: =IF((H40>0),ROUND((101+1000*(LOG10($H$5)-LOG10(H40)))*$A$2,0),0) -> 707 | S40: =IF((I40>0),ROUND((101+1000*(LOG10($I$5)-LOG10(I40)))*$A$2,0),0) -> 795 | T40: =IF((J40>0),ROUND((101+1000*(LOG10($J$5)-LOG10(J40)))*$A$2,0),0) -> 924 | U40: =IF((K40>0),ROUND((101+1000*(LOG10($K$5)-LOG10(K40)))*$A$2,0),0) -> 0 | V40: =IF((L40>0),ROUND((101+1000*(LOG10($L$5)-LOG10(L40)))*$A$2,0),0) -> 0 | W40: =IF((M40>0),ROUND((101+1000*(LOG10($M$5)-LOG10(M40)))*$A$2,0),0) -> 0 | X40: =IF((N40>0),ROUND((101+1000*(LOG10($N$5)-LOG10(N40)))*$A$2,0),0) -> 0 | Y40: =IF((O40>0),ROUND((101+1000*(LOG10($O$5)-LOG10(O40)))*$A$2,0),0) -> 0 | Z40: =SUM(LARGE(P40:Y40,1),LARGE(P40:Y40,2),LARGE(P40:Y40,3),LARGE(P40:Y40,4)) -> 3248
A41: 35 | B41: 5 | C41: O17M | D41: 7019-0402 | E41: Matouš Martin | J41: 13 | P41: =IF((F41>0),ROUND((101+1000*(LOG10($F$5)-LOG10(F41)))*$A$2,0),0) -> 0 | Q41: =IF((G41>0),ROUND((101+1000*(LOG10($G$5)-LOG10(G41)))*$A$2,0),0) -> 0 | R41: =IF((H41>0),ROUND((101+1000*(LOG10($H$5)-LOG10(H41)))*$A$2,0),0) -> 0 | S41: =IF((I41>0),ROUND((101+1000*(LOG10($I$5)-LOG10(I41)))*$A$2,0),0) -> 0 | T41: =IF((J41>0),ROUND((101+1000*(LOG10($J$5)-LOG10(J41)))*$A$2,0),0) -> 3146 | U41: =IF((K41>0),ROUND((101+1000*(LOG10($K$5)-LOG10(K41)))*$A$2,0),0) -> 0 | V41: =IF((L41>0),ROUND((101+1000*(LOG10($L$5)-LOG10(L41)))*$A$2,0),0) -> 0 | W41: =IF((M41>0),ROUND((101+1000*(LOG10($M$5)-LOG10(M41)))*$A$2,0),0) -> 0 | X41: =IF((N41>0),ROUND((101+1000*(LOG10($N$5)-LOG10(N41)))*$A$2,0),0) -> 0 | Y41: =IF((O41>0),ROUND((101+1000*(LOG10($O$5)-LOG10(O41)))*$A$2,0),0) -> 0 | Z41: =SUM(LARGE(P41:Y41,1),LARGE(P41:Y41,2),LARGE(P41:Y41,3),LARGE(P41:Y41,4)) -> 3146
A42: 36 | B42: 5 | C42: U13F | D42: 1609-0308 | E42: Tlapáková Zuzana | I42: 28 | J42: 29 | P42: =IF((F42>0),ROUND((101+1000*(LOG10($F$5)-LOG10(F42)))*$A$2,0),0) -> 0 | Q42: =IF((G42>0),ROUND((101+1000*(LOG10($G$5)-LOG10(G42)))*$A$2,0),0) -> 0 | R42: =IF((H42>0),ROUND((101+1000*(LOG10($H$5)-LOG10(H42)))*$A$2,0),0) -> 0 | S42: =IF((I42>0),ROUND((101+1000*(LOG10($I$5)-LOG10(I42)))*$A$2,0),0) -> 1385 | T42: =IF((J42>0),ROUND((101+1000*(LOG10($J$5)-LOG10(J42)))*$A$2,0),0) -> 707 | U42: =IF((K42>0),ROUND((101+1000*(LOG10($K$5)-LOG10(K42)))*$A$2,0),0) -> 0 | V42: =IF((L42>0),ROUND((101+1000*(LOG10($L$5)-LOG10(L42)))*$A$2,0),0) -> 0 | W42: =IF((M42>0),ROUND((101+1000*(LOG10($M$5)-LOG10(M42)))*$A$2,0),0) -> 0 | X42: =IF((N42>0),ROUND((101+1000*(LOG10($N$5)-LOG10(N42)))*$A$2,0),0) -> 0 | Y42: =IF((O42>0),ROUND((101+1000*(LOG10($O$5)-LOG10(O42)))*$A$2,0),0) -> 0 | Z42: =SUM(LARGE(P42:Y42,1),LARGE(P42:Y42,2),LARGE(P42:Y42,3),LARGE(P42:Y42,4)) -> 2092
A43: 37 | B43: 6 | C43: U15F | D43: 2110-0184 | E43: Richterová Ludmila | G43: 26 | I43: 30 | P43: =IF((F43>0),ROUND((101+1000*(LOG10($F$5)-LOG10(F43)))*$A$2,0),0) -> 0 | Q43: =IF((G43>0),ROUND((101+1000*(LOG10($G$5)-LOG10(G43)))*$A$2,0),0) -> 822 | R43: =IF((H43>0),ROUND((101+1000*(LOG10($H$5)-LOG10(H43)))*$A$2,0),0) -> 0 | S43: =IF((I43>0),ROUND((101+1000*(LOG10($I$5)-LOG10(I43)))*$A$2,0),0) -> 1176 | T43: =IF((J43>0),ROUND((101+1000*(LOG10($J$5)-LOG10(J43)))*$A$2,0),0) -> 0 | U43: =IF((K43>0),ROUND((101+1000*(LOG10($K$5)-LOG10(K43)))*$A$2,0),0) -> 0 | V43: =IF((L43>0),ROUND((101+1000*(LOG10($L$5)-LOG10(L43)))*$A$2,0),0) -> 0 | W43: =IF((M43>0),ROUND((101+1000*(LOG10($M$5)-LOG10(M43)))*$A$2,0),0) -> 0 | X43: =IF((N43>0),ROUND((101+1000*(LOG10($N$5)-LOG10(N43)))*$A$2,0),0) -> 0 | Y43: =IF((O43>0),ROUND((101+1000*(LOG10($O$5)-LOG10(O43)))*$A$2,0),0) -> 0 | Z43: =SUM(LARGE(P43:Y43,1),LARGE(P43:Y43,2),LARGE(P43:Y43,3),LARGE(P43:Y43,4)) -> 1998
A44: 38 | B44: 7 | C44: U13M | D44: 2110-0186 | E44: Marek Filip | I44: 32 | K44: 21 | P44: =IF((F44>0),ROUND((101+1000*(LOG10($F$5)-LOG10(F44)))*$A$2,0),0) -> 0 | Q44: =IF((G44>0),ROUND((101+1000*(LOG10($G$5)-LOG10(G44)))*$A$2,0),0) -> 0 | R44: =IF((H44>0),ROUND((101+1000*(LOG10($H$5)-LOG10(H44)))*$A$2,0),0) -> 0 | S44: =IF((I44>0),ROUND((101+1000*(LOG10($I$5)-LOG10(I44)))*$A$2,0),0) -> 979 | T44: =IF((J44>0),ROUND((101+1000*(LOG10($J$5)-LOG10(J44)))*$A$2,0),0) -> 0 | U44: =IF((K44>0),ROUND((101+1000*(LOG10($K$5)-LOG10(K44)))*$A$2,0),0) -> 707 | V44: =IF((L44>0),ROUND((101+1000*(LOG10($L$5)-LOG10(L44)))*$A$2,0),0) -> 0 | W44: =IF((M44>0),ROUND((101+1000*(LOG10($M$5)-LOG10(M44)))*$A$2,0),0) -> 0 | X44: =IF((N44>0),ROUND((101+1000*(LOG10($N$5)-LOG10(N44)))*$A$2,0),0) -> 0 | Y44: =IF((O44>0),ROUND((101+1000*(LOG10($O$5)-LOG10(O44)))*$A$2,0),0) -> 0 | Z44: =SUM(LARGE(P44:Y44,1),LARGE(P44:Y44,2),LARGE(P44:Y44,3),LARGE(P44:Y44,4)) -> 1686
A45: 39 | B45: 6 | C45: U13F | D45: 9999-0054 | E45: Kudláčková Zuzana Saxana | I45: 26 | P45: =IF((F45>0),ROUND((101+1000*(LOG10($F$5)-LOG10(F45)))*$A$2,0),0) -> 0 | Q45: =IF((G45>0),ROUND((101+1000*(LOG10($G$5)-LOG10(G45)))*$A$2,0),0) -> 0 | R45: =IF((H45>0),ROUND((101+1000*(LOG10($H$5)-LOG10(H45)))*$A$2,0),0) -> 0 | S45: =IF((I45>0),ROUND((101+1000*(LOG10($I$5)-LOG10(I45)))*$A$2,0),0) -> 1611 | T45: =IF((J45>0),ROUND((101+1000*(LOG10($J$5)-LOG10(J45)))*$A$2,0),0) -> 0 | U45: =IF((K45>0),ROUND((101+1000*(LOG10($K$5)-LOG10(K45)))*$A$2,0),0) -> 0 | V45: =IF((L45>0),ROUND((101+1000*(LOG10($L$5)-LOG10(L45)))*$A$2,0),0) -> 0 | W45: =IF((M45>0),ROUND((101+1000*(LOG10($M$5)-LOG10(M45)))*$A$2,0),0) -> 0 | X45: =IF((N45>0),ROUND((101+1000*(LOG10($N$5)-LOG10(N45)))*$A$2,0),0) -> 0 | Y45: =IF((O45>0),ROUND((101+1000*(LOG10($O$5)-LOG10(O45)))*$A$2,0),0) -> 0 | Z45: =SUM(LARGE(P45:Y45,1),LARGE(P45:Y45,2),LARGE(P45:Y45,3),LARGE(P45:Y45,4)) -> 1611
A46: 40 | B46: 8 | C46: U13M | D46: 1402-0460 | E46: Loužek Štěpán | H46: 22 | I46: 33 | P46: =IF((F46>0),ROUND((101+1000*(LOG10($F$5)-LOG10(F46)))*$A$2,0),0) -> 0 | Q46: =IF((G46>0),ROUND((101+1000*(LOG10($G$5)-LOG10(G46)))*$A$2,0),0) -> 0 | R46: =IF((H46>0),ROUND((101+1000*(LOG10($H$5)-LOG10(H46)))*$A$2,0),0) -> 707 | S46: =IF((I46>0),ROUND((101+1000*(LOG10($I$5)-LOG10(I46)))*$A$2,0),0) -> 886 | T46: =IF((J46>0),ROUND((101+1000*(LOG10($J$5)-LOG10(J46)))*$A$2,0),0) -> 0 | U46: =IF((K46>0),ROUND((101+1000*(LOG10($K$5)-LOG10(K46)))*$A$2,0),0) -> 0 | V46: =IF((L46>0),ROUND((101+1000*(LOG10($L$5)-LOG10(L46)))*$A$2,0),0) -> 0 | W46: =IF((M46>0),ROUND((101+1000*(LOG10($M$5)-LOG10(M46)))*$A$2,0),0) -> 0 | X46: =IF((N46>0),ROUND((101+1000*(LOG10($N$5)-LOG10(N46)))*$A$2,0),0) -> 0 | Y46: =IF((O46>0),ROUND((101+1000*(LOG10($O$5)-LOG10(O46)))*$A$2,0),0) -> 0 | Z46: =SUM(LARGE(P46:Y46,1),LARGE(P46:Y46,2),LARGE(P46:Y46,3),LARGE(P46:Y46,4)) -> 1593
A47: 41 | B47: 3 | C47: O17F | D47: 7019-0403 | E47: Matoušová Alexandra | J47: 25 | P47: =IF((F47>0),ROUND((101+1000*(LOG10($F$5)-LOG10(F47)))*$A$2,0),0) -> 0 | Q47: =IF((G47>0),ROUND((101+1000*(LOG10($G$5)-LOG10(G47)))*$A$2,0),0) -> 0 | R47: =IF((H47>0),ROUND((101+1000*(LOG10($H$5)-LOG10(H47)))*$A$2,0),0) -> 0 | S47: =IF((I47>0),ROUND((101+1000*(LOG10($I$5)-LOG10(I47)))*$A$2,0),0) -> 0 | T47: =IF((J47>0),ROUND((101+1000*(LOG10($J$5)-LOG10(J47)))*$A$2,0),0) -> 1158 | U47: =IF((K47>0),ROUND((101+1000*(LOG10($K$5)-LOG10(K47)))*$A$2,0),0) -> 0 | V47: =IF((L47>0),ROUND((101+1000*(LOG10($L$5)-LOG10(L47)))*$A$2,0),0) -> 0 | W47: =IF((M47>0),ROUND((101+1000*(LOG10($M$5)-LOG10(M47)))*$A$2,0),0) -> 0 | X47: =IF((N47>0),ROUND((101+1000*(LOG10($N$5)-LOG10(N47)))*$A$2,0),0) -> 0 | Y47: =IF((O47>0),ROUND((101+1000*(LOG10($O$5)-LOG10(O47)))*$A$2,0),0) -> 0 | Z47: =SUM(LARGE(P47:Y47,1),LARGE(P47:Y47,2),LARGE(P47:Y47,3),LARGE(P47:Y47,4)) -> 1158
A48: 42 | B48: 7 | C48: U13F | D48: 9999-0055 | E48: Hraníková Andrea | I48: 31 | P48: =IF((F48>0),ROUND((101+1000*(LOG10($F$5)-LOG10(F48)))*$A$2,0),0) -> 0 | Q48: =IF((G48>0),ROUND((101+1000*(LOG10($G$5)-LOG10(G48)))*$A$2,0),0) -> 0 | R48: =IF((H48>0),ROUND((101+1000*(LOG10($H$5)-LOG10(H48)))*$A$2,0),0) -> 0 | S48: =IF((I48>0),ROUND((101+1000*(LOG10($I$5)-LOG10(I48)))*$A$2,0),0) -> 1076 | T48: =IF((J48>0),ROUND((101+1000*(LOG10($J$5)-LOG10(J48)))*$A$2,0),0) -> 0 | U48: =IF((K48>0),ROUND((101+1000*(LOG10($K$5)-LOG10(K48)))*$A$2,0),0) -> 0 | V48: =IF((L48>0),ROUND((101+1000*(LOG10($L$5)-LOG10(L48)))*$A$2,0),0) -> 0 | W48: =IF((M48>0),ROUND((101+1000*(LOG10($M$5)-LOG10(M48)))*$A$2,0),0) -> 0 | X48: =IF((N48>0),ROUND((101+1000*(LOG10($N$5)-LOG10(N48)))*$A$2,0),0) -> 0 | Y48: =IF((O48>0),ROUND((101+1000*(LOG10($O$5)-LOG10(O48)))*$A$2,0),0) -> 0 | Z48: =SUM(LARGE(P48:Y48,1),LARGE(P48:Y48,2),LARGE(P48:Y48,3),LARGE(P48:Y48,4)) -> 1076
A49: 43 | B49: 7 | C49: U15F | D49: 7019-0404 | E49: Matoušová Štěpánka | J49: 28 | P49: =IF((F49>0),ROUND((101+1000*(LOG10($F$5)-LOG10(F49)))*$A$2,0),0) -> 0 | Q49: =IF((G49>0),ROUND((101+1000*(LOG10($G$5)-LOG10(G49)))*$A$2,0),0) -> 0 | R49: =IF((H49>0),ROUND((101+1000*(LOG10($H$5)-LOG10(H49)))*$A$2,0),0) -> 0 | S49: =IF((I49>0),ROUND((101+1000*(LOG10($I$5)-LOG10(I49)))*$A$2,0),0) -> 0 | T49: =IF((J49>0),ROUND((101+1000*(LOG10($J$5)-LOG10(J49)))*$A$2,0),0) -> 814 | U49: =IF((K49>0),ROUND((101+1000*(LOG10($K$5)-LOG10(K49)))*$A$2,0),0) -> 0 | V49: =IF((L49>0),ROUND((101+1000*(LOG10($L$5)-LOG10(L49)))*$A$2,0),0) -> 0 | W49: =IF((M49>0),ROUND((101+1000*(LOG10($M$5)-LOG10(M49)))*$A$2,0),0) -> 0 | X49: =IF((N49>0),ROUND((101+1000*(LOG10($N$5)-LOG10(N49)))*$A$2,0),0) -> 0 | Y49: =IF((O49>0),ROUND((101+1000*(LOG10($O$5)-LOG10(O49)))*$A$2,0),0) -> 0 | Z49: =SUM(LARGE(P49:Y49,1),LARGE(P49:Y49,2),LARGE(P49:Y49,3),LARGE(P49:Y49,4)) -> 814
A50: 44 | B50: 9 | C50: U13M | D50: 1705-0177 | E50: Drda Filip | I50: 35 | P50: =IF((F50>0),ROUND((101+1000*(LOG10($F$5)-LOG10(F50)))*$A$2,0),0) -> 0 | Q50: =IF((G50>0),ROUND((101+1000*(LOG10($G$5)-LOG10(G50)))*$A$2,0),0) -> 0 | R50: =IF((H50>0),ROUND((101+1000*(LOG10($H$5)-LOG10(H50)))*$A$2,0),0) -> 0 | S50: =IF((I50>0),ROUND((101+1000*(LOG10($I$5)-LOG10(I50)))*$A$2,0),0) -> 707 | T50: =IF((J50>0),ROUND((101+1000*(LOG10($J$5)-LOG10(J50)))*$A$2,0),0) -> 0 | U50: =IF((K50>0),ROUND((101+1000*(LOG10($K$5)-LOG10(K50)))*$A$2,0),0) -> 0 | V50: =IF((L50>0),ROUND((101+1000*(LOG10($L$5)-LOG10(L50)))*$A$2,0),0) -> 0 | W50: =IF((M50>0),ROUND((101+1000*(LOG10($M$5)-LOG10(M50)))*$A$2,0),0) -> 0 | X50: =IF((N50>0),ROUND((101+1000*(LOG10($N$5)-LOG10(N50)))*$A$2,0),0) -> 0 | Y50: =IF((O50>0),ROUND((101+1000*(LOG10($O$5)-LOG10(O50)))*$A$2,0),0) -> 0 | Z50: =SUM(LARGE(P50:Y50,1),LARGE(P50:Y50,2),LARGE(P50:Y50,3),LARGE(P50:Y50,4)) -> 707
A51: 45 | P51: =IF((F51>0),ROUND((101+1000*(LOG10($F$5)-LOG10(F51)))*$A$2,0),0) -> 0 | Q51: =IF((G51>0),ROUND((101+1000*(LOG10($G$5)-LOG10(G51)))*$A$2,0),0) -> 0 | R51: =IF((H51>0),ROUND((101+1000*(LOG10($H$5)-LOG10(H51)))*$A$2,0),0) -> 0 | S51: =IF((I51>0),ROUND((101+1000*(LOG10($I$5)-LOG10(I51)))*$A$2,0),0) -> 0 | T51: =IF((J51>0),ROUND((101+1000*(LOG10($J$5)-LOG10(J51)))*$A$2,0),0) -> 0 | U51: =IF((K51>0),ROUND((101+1000*(LOG10($K$5)-LOG10(K51)))*$A$2,0),0) -> 0 | V51: =IF((L51>0),ROUND((101+1000*(LOG10($L$5)-LOG10(L51)))*$A$2,0),0) -> 0 | W51: =IF((M51>0),ROUND((101+1000*(LOG10($M$5)-LOG10(M51)))*$A$2,0),0) -> 0 | X51: =IF((N51>0),ROUND((101+1000*(LOG10($N$5)-LOG10(N51)))*$A$2,0),0) -> 0 | Y51: =IF((O51>0),ROUND((101+1000*(LOG10($O$5)-LOG10(O51)))*$A$2,0),0) -> 0 | Z51: =SUM(LARGE(P51:Y51,1),LARGE(P51:Y51,2),LARGE(P51:Y51,3),LARGE(P51:Y51,4)) -> 0
A52: 46 | P52: =IF((F52>0),ROUND((101+1000*(LOG10($F$5)-LOG10(F52)))*$A$2,0),0) -> 0 | Q52: =IF((G52>0),ROUND((101+1000*(LOG10($G$5)-LOG10(G52)))*$A$2,0),0) -> 0 | R52: =IF((H52>0),ROUND((101+1000*(LOG10($H$5)-LOG10(H52)))*$A$2,0),0) -> 0 | S52: =IF((I52>0),ROUND((101+1000*(LOG10($I$5)-LOG10(I52)))*$A$2,0),0) -> 0 | T52: =IF((J52>0),ROUND((101+1000*(LOG10($J$5)-LOG10(J52)))*$A$2,0),0) -> 0 | U52: =IF((K52>0),ROUND((101+1000*(LOG10($K$5)-LOG10(K52)))*$A$2,0),0) -> 0 | V52: =IF((L52>0),ROUND((101+1000*(LOG10($L$5)-LOG10(L52)))*$A$2,0),0) -> 0 | W52: =IF((M52>0),ROUND((101+1000*(LOG10($M$5)-LOG10(M52)))*$A$2,0),0) -> 0 | X52: =IF((N52>0),ROUND((101+1000*(LOG10($N$5)-LOG10(N52)))*$A$2,0),0) -> 0 | Y52: =IF((O52>0),ROUND((101+1000*(LOG10($O$5)-LOG10(O52)))*$A$2,0),0) -> 0 | Z52: =SUM(LARGE(P52:Y52,1),LARGE(P52:Y52,2),LARGE(P52:Y52,3),LARGE(P52:Y52,4)) -> 0
A53: 47 | P53: =IF((F53>0),ROUND((101+1000*(LOG10($F$5)-LOG10(F53)))*$A$2,0),0) -> 0 | Q53: =IF((G53>0),ROUND((101+1000*(LOG10($G$5)-LOG10(G53)))*$A$2,0),0) -> 0 | R53: =IF((H53>0),ROUND((101+1000*(LOG10($H$5)-LOG10(H53)))*$A$2,0),0) -> 0 | S53: =IF((I53>0),ROUND((101+1000*(LOG10($I$5)-LOG10(I53)))*$A$2,0),0) -> 0 | T53: =IF((J53>0),ROUND((101+1000*(LOG10($J$5)-LOG10(J53)))*$A$2,0),0) -> 0 | U53: =IF((K53>0),ROUND((101+1000*(LOG10($K$5)-LOG10(K53)))*$A$2,0),0) -> 0 | V53: =IF((L53>0),ROUND((101+1000*(LOG10($L$5)-LOG10(L53)))*$A$2,0),0) -> 0 | W53: =IF((M53>0),ROUND((101+1000*(LOG10($M$5)-LOG10(M53)))*$A$2,0),0) -> 0 | X53: =IF((N53>0),ROUND((101+1000*(LOG10($N$5)-LOG10(N53)))*$A$2,0),0) -> 0 | Y53: =IF((O53>0),ROUND((101+1000*(LOG10($O$5)-LOG10(O53)))*$A$2,0),0) -> 0 | Z53: =SUM(LARGE(P53:Y53,1),LARGE(P53:Y53,2),LARGE(P53:Y53,3),LARGE(P53:Y53,4)) -> 0
A54: 48 | P54: =IF((F54>0),ROUND((101+1000*(LOG10($F$5)-LOG10(F54)))*$A$2,0),0) -> 0 | Q54: =IF((G54>0),ROUND((101+1000*(LOG10($G$5)-LOG10(G54)))*$A$2,0),0) -> 0 | R54: =IF((H54>0),ROUND((101+1000*(LOG10($H$5)-LOG10(H54)))*$A$2,0),0) -> 0 | S54: =IF((I54>0),ROUND((101+1000*(LOG10($I$5)-LOG10(I54)))*$A$2,0),0) -> 0 | T54: =IF((J54>0),ROUND((101+1000*(LOG10($J$5)-LOG10(J54)))*$A$2,0),0) -> 0 | U54: =IF((K54>0),ROUND((101+1000*(LOG10($K$5)-LOG10(K54)))*$A$2,0),0) -> 0 | V54: =IF((L54>0),ROUND((101+1000*(LOG10($L$5)-LOG10(L54)))*$A$2,0),0) -> 0 | W54: =IF((M54>0),ROUND((101+1000*(LOG10($M$5)-LOG10(M54)))*$A$2,0),0) -> 0 | X54: =IF((N54>0),ROUND((101+1000*(LOG10($N$5)-LOG10(N54)))*$A$2,0),0) -> 0 | Y54: =IF((O54>0),ROUND((101+1000*(LOG10($O$5)-LOG10(O54)))*$A$2,0),0) -> 0 | Z54: =SUM(LARGE(P54:Y54,1),LARGE(P54:Y54,2),LARGE(P54:Y54,3),LARGE(P54:Y54,4)) -> 0
A55: 49 | P55: =IF((F55>0),ROUND((101+1000*(LOG10($F$5)-LOG10(F55)))*$A$2,0),0) -> 0 | Q55: =IF((G55>0),ROUND((101+1000*(LOG10($G$5)-LOG10(G55)))*$A$2,0),0) -> 0 | R55: =IF((H55>0),ROUND((101+1000*(LOG10($H$5)-LOG10(H55)))*$A$2,0),0) -> 0 | S55: =IF((I55>0),ROUND((101+1000*(LOG10($I$5)-LOG10(I55)))*$A$2,0),0) -> 0 | T55: =IF((J55>0),ROUND((101+1000*(LOG10($J$5)-LOG10(J55)))*$A$2,0),0) -> 0 | U55: =IF((K55>0),ROUND((101+1000*(LOG10($K$5)-LOG10(K55)))*$A$2,0),0) -> 0 | V55: =IF((L55>0),ROUND((101+1000*(LOG10($L$5)-LOG10(L55)))*$A$2,0),0) -> 0 | W55: =IF((M55>0),ROUND((101+1000*(LOG10($M$5)-LOG10(M55)))*$A$2,0),0) -> 0 | X55: =IF((N55>0),ROUND((101+1000*(LOG10($N$5)-LOG10(N55)))*$A$2,0),0) -> 0 | Y55: =IF((O55>0),ROUND((101+1000*(LOG10($O$5)-LOG10(O55)))*$A$2,0),0) -> 0 | Z55: =SUM(LARGE(P55:Y55,1),LARGE(P55:Y55,2),LARGE(P55:Y55,3),LARGE(P55:Y55,4)) -> 0
A56: 50 | P56: =IF((F56>0),ROUND((101+1000*(LOG10($F$5)-LOG10(F56)))*$A$2,0),0) -> 0 | Q56: =IF((G56>0),ROUND((101+1000*(LOG10($G$5)-LOG10(G56)))*$A$2,0),0) -> 0 | R56: =IF((H56>0),ROUND((101+1000*(LOG10($H$5)-LOG10(H56)))*$A$2,0),0) -> 0 | S56: =IF((I56>0),ROUND((101+1000*(LOG10($I$5)-LOG10(I56)))*$A$2,0),0) -> 0 | T56: =IF((J56>0),ROUND((101+1000*(LOG10($J$5)-LOG10(J56)))*$A$2,0),0) -> 0 | U56: =IF((K56>0),ROUND((101+1000*(LOG10($K$5)-LOG10(K56)))*$A$2,0),0) -> 0 | V56: =IF((L56>0),ROUND((101+1000*(LOG10($L$5)-LOG10(L56)))*$A$2,0),0) -> 0 | W56: =IF((M56>0),ROUND((101+1000*(LOG10($M$5)-LOG10(M56)))*$A$2,0),0) -> 0 | X56: =IF((N56>0),ROUND((101+1000*(LOG10($N$5)-LOG10(N56)))*$A$2,0),0) -> 0 | Y56: =IF((O56>0),ROUND((101+1000*(LOG10($O$5)-LOG10(O56)))*$A$2,0),0) -> 0 | Z56: =SUM(LARGE(P56:Y56,1),LARGE(P56:Y56,2),LARGE(P56:Y56,3),LARGE(P56:Y56,4)) -> 0
A57: 51 | P57: =IF((F57>0),ROUND((101+1000*(LOG10($F$5)-LOG10(F57)))*$A$2,0),0) -> 0 | Q57: =IF((G57>0),ROUND((101+1000*(LOG10($G$5)-LOG10(G57)))*$A$2,0),0) -> 0 | R57: =IF((H57>0),ROUND((101+1000*(LOG10($H$5)-LOG10(H57)))*$A$2,0),0) -> 0 | S57: =IF((I57>0),ROUND((101+1000*(LOG10($I$5)-LOG10(I57)))*$A$2,0),0) -> 0 | T57: =IF((J57>0),ROUND((101+1000*(LOG10($J$5)-LOG10(J57)))*$A$2,0),0) -> 0 | U57: =IF((K57>0),ROUND((101+1000*(LOG10($K$5)-LOG10(K57)))*$A$2,0),0) -> 0 | V57: =IF((L57>0),ROUND((101+1000*(LOG10($L$5)-LOG10(L57)))*$A$2,0),0) -> 0 | W57: =IF((M57>0),ROUND((101+1000*(LOG10($M$5)-LOG10(M57)))*$A$2,0),0) -> 0 | X57: =IF((N57>0),ROUND((101+1000*(LOG10($N$5)-LOG10(N57)))*$A$2,0),0) -> 0 | Y57: =IF((O57>0),ROUND((101+1000*(LOG10($O$5)-LOG10(O57)))*$A$2,0),0) -> 0 | Z57: =SUM(LARGE(P57:Y57,1),LARGE(P57:Y57,2),LARGE(P57:Y57,3),LARGE(P57:Y57,4)) -> 0
A58: 52 | P58: =IF((F58>0),ROUND((101+1000*(LOG10($F$5)-LOG10(F58)))*$A$2,0),0) -> 0 | Q58: =IF((G58>0),ROUND((101+1000*(LOG10($G$5)-LOG10(G58)))*$A$2,0),0) -> 0 | R58: =IF((H58>0),ROUND((101+1000*(LOG10($H$5)-LOG10(H58)))*$A$2,0),0) -> 0 | S58: =IF((I58>0),ROUND((101+1000*(LOG10($I$5)-LOG10(I58)))*$A$2,0),0) -> 0 | T58: =IF((J58>0),ROUND((101+1000*(LOG10($J$5)-LOG10(J58)))*$A$2,0),0) -> 0 | U58: =IF((K58>0),ROUND((101+1000*(LOG10($K$5)-LOG10(K58)))*$A$2,0),0) -> 0 | V58: =IF((L58>0),ROUND((101+1000*(LOG10($L$5)-LOG10(L58)))*$A$2,0),0) -> 0 | W58: =IF((M58>0),ROUND((101+1000*(LOG10($M$5)-LOG10(M58)))*$A$2,0),0) -> 0 | X58: =IF((N58>0),ROUND((101+1000*(LOG10($N$5)-LOG10(N58)))*$A$2,0),0) -> 0 | Y58: =IF((O58>0),ROUND((101+1000*(LOG10($O$5)-LOG10(O58)))*$A$2,0),0) -> 0 | Z58: =SUM(LARGE(P58:Y58,1),LARGE(P58:Y58,2),LARGE(P58:Y58,3),LARGE(P58:Y58,4)) -> 0
A59: 53 | P59: =IF((F59>0),ROUND((101+1000*(LOG10($F$5)-LOG10(F59)))*$A$2,0),0) -> 0 | Q59: =IF((G59>0),ROUND((101+1000*(LOG10($G$5)-LOG10(G59)))*$A$2,0),0) -> 0 | R59: =IF((H59>0),ROUND((101+1000*(LOG10($H$5)-LOG10(H59)))*$A$2,0),0) -> 0 | S59: =IF((I59>0),ROUND((101+1000*(LOG10($I$5)-LOG10(I59)))*$A$2,0),0) -> 0 | T59: =IF((J59>0),ROUND((101+1000*(LOG10($J$5)-LOG10(J59)))*$A$2,0),0) -> 0 | U59: =IF((K59>0),ROUND((101+1000*(LOG10($K$5)-LOG10(K59)))*$A$2,0),0) -> 0 | V59: =IF((L59>0),ROUND((101+1000*(LOG10($L$5)-LOG10(L59)))*$A$2,0),0) -> 0 | W59: =IF((M59>0),ROUND((101+1000*(LOG10($M$5)-LOG10(M59)))*$A$2,0),0) -> 0 | X59: =IF((N59>0),ROUND((101+1000*(LOG10($N$5)-LOG10(N59)))*$A$2,0),0) -> 0 | Y59: =IF((O59>0),ROUND((101+1000*(LOG10($O$5)-LOG10(O59)))*$A$2,0),0) -> 0 | Z59: =SUM(LARGE(P59:Y59,1),LARGE(P59:Y59,2),LARGE(P59:Y59,3),LARGE(P59:Y59,4)) -> 0
A60: 54
A61: 55

Sheet Pohár ČWA
A1: 3 | C1: 2018 | D1: Pouze členi | E1: A | J1: Věk min: | N1: Rok: | X1: created by: Zdeněk Vykydal
A2: 3 | C2: koeficient pro logaritmické body | J2: Věk max:
A4: Bic Techno 293 - Pohár ČWA 2018 Všichni CZE | F4: 181501 | G4: 182120 | H4: 182002 | I4: 182132 | J4: 181507 | K4: 181720 | P4: Lucky regata | Q4: Starobrno Cup | R4: Pohár Vysočiny | S4: Veterán Cup | T4: Senior Cup | U4: Skiregata
E5: Poč. záv./CTL | F5: 0 | G5: 5 | H5: 7 | I5: 8 | J5: 0 | K5: 0 | P5: 181501 | Q5: 182120 | R5: 182002 | S5: 182132 | T5: 181507 | U5: 181720 | Y5: =IF(O4,O4,"") -> 
A6: Poř. celk. | B6: Poř. k. | C6: Kat. | D6: Reg. číslo | E6: Jméno | F6: Poř. | G6: Poř. | H6: Poř. | I6: Poř. | J6: Poř. | K6: Poř. | L6: Poř. | M6: Poř. | N6: Poř. | O6: Poř. | P6: Body | Q6: Body | R6: Body | S6: Body | T6: Body | U6: Body | V6: Body | W6: Body | X6: Body | Y6: Body | Z6: Celkem
A7: 1 | B7: 1 | C7: U17F | D7: 2110-0191 | E7: Neckařová Martina | G7: 1 | H7: 2 | I7: 2 | P7: =IF((F7>0),ROUND((101+1000*(LOG10($F$5)-LOG10(F7)))*$A$2,0),0) -> 0 | Q7: =IF((G7>0),ROUND((101+1000*(LOG10($G$5)-LOG10(G7)))*$A$2,0),0) -> 2400 | R7: =IF((H7>0),ROUND((101+1000*(LOG10($H$5)-LOG10(H7)))*$A$2,0),0) -> 1935 | S7: =IF((I7>0),ROUND((101+1000*(LOG10($I$5)-LOG10(I7)))*$A$2,0),0) -> 2109 | T7: =IF((J7>0),ROUND((101+1000*(LOG10($J$5)-LOG10(J7)))*$A$2,0),0) -> 0 | U7: =IF((K7>0),ROUND((101+1000*(LOG10($K$5)-LOG10(K7)))*$A$2,0),0) -> 0 | V7: =IF((L7>0),ROUND((101+1000*(LOG10($L$5)-LOG10(L7)))*$A$2,0),0) -> 0 | W7: =IF((M7>0),ROUND((101+1000*(LOG10($M$5)-LOG10(M7)))*$A$2,0),0) -> 0 | X7: =IF((N7>0),ROUND((101+1000*(LOG10($N$5)-LOG10(N7)))*$A$2,0),0) -> 0 | Y7: =IF((O7>0),ROUND((101+1000*(LOG10($O$5)-LOG10(O7)))*$A$2,0),0) -> 0 | Z7: =SUM(LARGE(P7:Y7,1),LARGE(P7:Y7,2),LARGE(P7:Y7,3),LARGE(P7:Y7,4)) -> 6444
A8: 2 | B8: 1 | C8: U15M | D8: 2110-0185 | E8: Diviš Lukáš | H8: 3 | I8: 1 | P8: 0 | Q8: 0 | R8: 1407 | S8: 3012 | T8: 0 | U8: 0 | V8: 0 | W8: 0 | X8: 0 | Y8: 0 | Z8: 4419
A9: 3 | B9: 1 | C9: U13M | D9: 2110-0178 | E9: Skřepek Šimon | G9: 2 | H9: 5 | I9: 6 | P9: 0 | Q9: 1497 | R9: 741 | S9: 678 | T9: 0 | U9: 0 | V9: 0 | W9: 0 | X9: 0 | Y9: 0 | Z9: 2916
A10: 4 | B10: 2 | C10: U17F | D10: 1401-0459 | E10: Altmannová Kateřina | H10: 1 | P10: 0 | Q10: 0 | R10: 2838 | S10: 0 | T10: 0 | U10: 0 | V10: 0 | W10: 0 | X10: 0 | Y10: 0 | Z10: 2838
A11: 5 | B11: 1 | C11: U15F | D11: 2110-0189 | E11: Samcová Klára | G11: 4 | H11: 4 | I11: 5 | P11: 0 | Q11: 594 | R11: 1032 | S11: 915 | T11: 0 | U11: 0 | V11: 0 | W11: 0 | X11: 0 | Y11: 0 | Z11: 2541
A12: 6 | B12: 2 | C12: U15F | D12: 2110-0183 | E12: Komendová Kateřina | I12: 3 | P12: 0 | Q12: 0 | R12: 0 | S12: 1581 | T12: 0 | U12: 0 | V12: 0 | W12: 0 | X12: 0 | Y12: 0 | Z12: 1581
A13: 7 | B13: 2 | C13: U13M | D13: 2110-0173 | E13: Šeliga Teodor | G13: 3 | I13: 8 | P13: 0 | Q13: 969 | R13: 0 | S13: 303 | T13: 0 | U13: 0 | V13: 0 | W13: 0 | X13: 0 | Y13: 0 | Z13: 1272
A14: 8 | B14: 1 | C14: O17M | D14: 2110-0172 | E14: Mikulec Martin | I14: 4 | P14: 0 | Q14: 0 | R14: 0 | S14: 1206 | T14: 0 | U14: 0 | V14: 0 | W14: 0 | X14: 0 | Y14: 0 | Z14: 1206
A15: 9 | B15: 3 | C15: U13M | D15: 2110-0186 | E15: Marek Filip | G15: 5 | H15: 7 | P15: 0 | Q15: 303 | R15: 303 | S15: 0 | T15: 0 | U15: 0 | V15: 0 | W15: 0 | X15: 0 | Y15: 0 | Z15: 606
A16: 10 | B16: 1 | C16: U13F | D16: 1705-0169 | E16: Lojínová Alexandra | H16: 6 | P16: 0 | Q16: 0 | R16: 504 | S16: 0 | T16: 0 | U16: 0 | V16: 0 | W16: 0 | X16: 0 | Y16: 0 | Z16: 504
A17: 11 | B17: 3 | C17: U15F | D17: 2110-0184 | E17: Richterová Ludmila | I17: 7 | P17: 0 | Q17: 0 | R17: 0 | S17: 477 | T17: 0 | U17: 0 | V17: 0 | W17: 0 | X17: 0 | Y17: 0 | Z17: 477
A18: 12 | P18: 0 | Q18: 0 | R18: 0 | S18: 0 | T18: 0 | U18: 0 | V18: 0 | W18: 0 | X18: 0 | Y18: 0 | Z18: 0
A19: 13 | P19: 0 | Q19: 0 | R19: 0 | S19: 0 | T19: 0 | U19: 0 | V19: 0 | W19: 0 | X19: 0 | Y19: 0 | Z19: 0
A20: 14 | P20: 0 | Q20: 0 | R20: 0 | S20: 0 | T20: 0 | U20: 0 | V20: 0 | W20: 0 | X20: 0 | Y20: 0 | Z20: 0
A21: 15 | P21: 0 | Q21: 0 | R21: 0 | S21: 0 | T21: 0 | U21: 0 | V21: 0 | W21: 0 | X21: 0 | Y21: 0 | Z21: 0
A22: 16 | P22: 0 | Q22: 0 | R22: 0 | S22: 0 | T22: 0 | U22: 0 | V22: 0 | W22: 0 | X22: 0 | Y22: 0 | Z22: 0
A23: 17 | P23: 0 | Q23: 0 | R23: 0 | S23: 0 | T23: 0 | U23: 0 | V23: 0 | W23: 0 | X23: 0 | Y23: 0 | Z23: 0
A24: 18 | P24: 0 | Q24: 0 | R24: 0 | S24: 0 | T24: 0 | U24: 0 | V24: 0 | W24: 0 | X24: 0 | Y24: 0 | Z24: 0
A25: 19 | P25: 0 | Q25: 0 | R25: 0 | S25: 0 | T25: 0 | U25: 0 | V25: 0 | W25: 0 | X25: 0 | Y25: 0 | Z25: 0
A26: 20 | P26: 0 | Q26: 0 | R26: 0 | S26: 0 | T26: 0 | U26: 0 | V26: 0 | W26: 0 | X26: 0 | Y26: 0 | Z26: 0
A27: 21 | P27: 0 | Q27: 0 | R27: 0 | S27: 0 | T27: 0 | U27: 0 | V27: 0 | W27: 0 | X27: 0 | Y27: 0 | Z27: 0
A28: 22 | P28: 0 | Q28: 0 | R28: 0 | S28: 0 | T28: 0 | U28: 0 | V28: 0 | W28: 0 | X28: 0 | Y28: 0 | Z28: 0
A29: 23 | P29: 0 | Q29: 0 | R29: 0 | S29: 0 | T29: 0 | U29: 0 | V29: 0 | W29: 0 | X29: 0 | Y29: 0 | Z29: 0
A30: 24 | P30: 0 | Q30: 0 | R30: 0 | S30: 0 | T30: 0 | U30: 0 | V30: 0 | W30: 0 | X30: 0 | Y30: 0 | Z30: 0
A31: 25 | P31: 0 | Q31: 0 | R31: 0 | S31: 0 | T31: 0 | U31: 0 | V31: 0 | W31: 0 | X31: 0 | Y31: 0 | Z31: 0
A32: 26 | P32: 0 | Q32: 0 | R32: 0 | S32: 0 | T32: 0 | U32: 0 | V32: 0 | W32: 0 | X32: 0 | Y32: 0 | Z32: 0
A33: 27 | P33: 0 | Q33: 0 | R33: 0 | S33: 0 | T33: 0 | U33: 0 | V33: 0 | W33: 0 | X33: 0 | Y33: 0 | Z33: 0
A34: 28 | P34: 0 | Q34: 0 | R34: 0 | S34: 0 | T34: 0 | U34: 0 | V34: 0 | W34: 0 | X34: 0 | Y34: 0 | Z34: 0
A35: 29 | P35: 0 | Q35: 0 | R35: 0 | S35: 0 | T35: 0 | U35: 0 | V35: 0 | W35: 0 | X35: 0 | Y35: 0 | Z35: 0
A36: 30 | P36: 0 | Q36: 0 | R36: 0 | S36: 0 | T36: 0 | U36: 0 | V36: 0 | W36: 0 | X36: 0 | Y36: 0 | Z36: 0
A37: 31 | P37: 0 | Q37: 0 | R37: 0 | S37: 0 | T37: 0 | U37: 0 | V37: 0 | W37: 0 | X37: 0 | Y37: 0 | Z37: 0
A38: 32 | P38: 0 | Q38: 0 | R38: 0 | S38: 0 | T38: 0 | U38: 0 | V38: 0 | W38: 0 | X38: 0 | Y38: 0 | Z38: 0
A39: 33 | P39: =IF((F39>0),ROUND((101+1000*(LOG10($F$5)-LOG10(F39)))*$A$2,0),0) -> 0 | Q39: =IF((G39>0),ROUND((101+1000*(LOG10($G$5)-LOG10(G39)))*$A$2,0),0) -> 0 | R39: =IF((H39>0),ROUND((101+1000*(LOG10($H$5)-LOG10(H39)))*$A$2,0),0) -> 0 | S39: =IF((I39>0),ROUND((101+1000*(LOG10($I$5)-LOG10(I39)))*$A$2,0),0) -> 0 | T39: =IF((J39>0),ROUND((101+1000*(LOG10($J$5)-LOG10(J39)))*$A$2,0),0) -> 0 | U39: =IF((K39>0),ROUND((101+1000*(LOG10($K$5)-LOG10(K39)))*$A$2,0),0) -> 0 | V39: =IF((L39>0),ROUND((101+1000*(LOG10($L$5)-LOG10(L39)))*$A$2,0),0) -> 0 | W39: =IF((M39>0),ROUND((101+1000*(LOG10($M$5)-LOG10(M39)))*$A$2,0),0) -> 0 | X39: =IF((N39>0),ROUND((101+1000*(LOG10($N$5)-LOG10(N39)))*$A$2,0),0) -> 0 | Y39: =IF((O39>0),ROUND((101+1000*(LOG10($O$5)-LOG10(O39)))*$A$2,0),0) -> 0 | Z39: =SUM(LARGE(P39:Y39,1),LARGE(P39:Y39,2),LARGE(P39:Y39,3),LARGE(P39:Y39,4)) -> 0
A40: 34 | P40: 0 | Q40: 0 | R40: 0 | S40: 0 | T40: 0 | U40: 0 | V40: 0 | W40: 0 | X40: 0 | Y40: 0 | Z40: 0
A41: 35 | P41: 0 | Q41: 0 | R41: 0 | S41: 0 | T41: 0 | U41: 0 | V41: 0 | W41: 0 | X41: 0 | Y41: 0 | Z41: 0
A42: 36 | P42: 0 | Q42: 0 | R42: 0 | S42: 0 | T42: 0 | U42: 0 | V42: 0 | W42: 0 | X42: 0 | Y42: 0 | Z42: 0
A43: 37 | P43: 0 | Q43: 0 | R43: 0 | S43: 0 | T43: 0 | U43: 0 | V43: 0 | W43: 0 | X43: 0 | Y43: 0 | Z43: 0
A44: 38 | P44: 0 | Q44: 0 | R44: 0 | S44: 0 | T44: 0 | U44: 0 | V44: 0 | W44: 0 | X44: 0 | Y44: 0 | Z44: 0
A45: 39 | P45: 0 | Q45: 0 | R45: 0 | S45: 0 | T45: 0 | U45: 0 | V45: 0 | W45: 0 | X45: 0 | Y45: 0 | Z45: 0
A46: 40 | P46: 0 | Q46: 0 | R46: 0 | S46: 0 | T46: 0 | U46: 0 | V46: 0 | W46: 0 | X46: 0 | Y46: 0 | Z46: 0
A47: 41 | P47: 0 | Q47: 0 | R47: 0 | S47: 0 | T47: 0 | U47: 0 | V47: 0 | W47: 0 | X47: 0 | Y47: 0 | Z47: 0
A48: 42 | P48: 0 | Q48: 0 | R48: 0 | S48: 0 | T48: 0 | U48: 0 | V48: 0 | W48: 0 | X48: 0 | Y48: 0 | Z48: 0
A49: 43 | P49: 0 | Q49: 0 | R49: 0 | S49: 0 | T49: 0 | U49: 0 | V49: 0 | W49: 0 | X49: 0 | Y49: 0 | Z49: 0
A50: 44 | P50: 0 | Q50: 0 | R50: 0 | S50: 0 | T50: 0 | U50: 0 | V50: 0 | W50: 0 | X50: 0 | Y50: 0 | Z50: 0
A51: 45 | P51: 0 | Q51: 0 | R51: 0 | S51: 0 | T51: 0 | U51: 0 | V51: 0 | W51: 0 | X51: 0 | Y51: 0 | Z51: 0
P52: 0 | Q52: 0 | R52: 0 | S52: 0 | T52: 0 | U52: 0 | V52: 0 | W52: 0 | X52: 0 | Y52: 0 | Z52: 0
P53: 0 | Q53: 0 | R53: 0 | S53: 0 | T53: 0 | U53: 0 | V53: 0 | W53: 0 | X53: 0 | Y53: 0 | Z53: 0
P54: 0 | Q54: 0 | R54: 0 | S54: 0 | T54: 0 | U54: 0 | V54: 0 | W54: 0 | X54: 0 | Y54: 0 | Z54: 0
P55: 0 | Q55: 0 | R55: 0 | S55: 0 | T55: 0 | U55: 0 | V55: 0 | W55: 0 | X55: 0 | Y55: 0 | Z55: 0
P56: 0 | Q56: 0 | R56: 0 | S56: 0 | T56: 0 | U56: 0 | V56: 0 | W56: 0 | X56: 0 | Y56: 0 | Z56: 0

Sheet Český regionální pohár
A1: 3C | C1: 2018 | D1: Pouze členi | E1: A | J1: Věk min: | N1: Rok: | X1: created by: Zdeněk Vykydal
A2: 3 | C2: koeficient pro logaritmické body | J2: Věk max:
A4: Bic Techno 293 - Český regionální pohár 2018 Všichni CZE | F4: 181501 | G4: 181507 | H4: 181720 | P4: Lucky regata | Q4: Senior Cup | R4: Skiregata
E5: Poč. záv./CTL | F5: 0 | G5: 0 | H5: 0 | P5: 181501 | Q5: 181507 | R5: 181720 | Y5: =IF(O4,O4,"") -> 
A6: Poř. celk. | C6: Kat. | D6: Reg. číslo | E6: Jméno | F6: Poř. | G6: Poř. | H6: Poř. | I6: Poř. | J6: Poř. | K6: Poř. | L6: Poř. | M6: Poř. | N6: Poř. | O6: Poř. | P6: Body | Q6: Body | R6: Body | S6: Body | T6: Body | U6: Body | V6: Body | W6: Body | X6: Body | Y6: Body | Z6: Celkem
A7: 1 | P7: =IF((F7>0),ROUND((101+1000*(LOG10($F$5)-LOG10(F7)))*$A$2,0),0) -> 0 | Q7: =IF((G7>0),ROUND((101+1000*(LOG10($G$5)-LOG10(G7)))*$A$2,0),0) -> 0 | R7: =IF((H7>0),ROUND((101+1000*(LOG10($H$5)-LOG10(H7)))*$A$2,0),0) -> 0 | S7: =IF((I7>0),ROUND((101+1000*(LOG10($I$5)-LOG10(I7)))*$A$2,0),0) -> 0 | T7: =IF((J7>0),ROUND((101+1000*(LOG10($J$5)-LOG10(J7)))*$A$2,0),0) -> 0 | U7: =IF((K7>0),ROUND((101+1000*(LOG10($K$5)-LOG10(K7)))*$A$2,0),0) -> 0 | V7: =IF((L7>0),ROUND((101+1000*(LOG10($L$5)-LOG10(L7)))*$A$2,0),0) -> 0 | W7: =IF((M7>0),ROUND((101+1000*(LOG10($M$5)-LOG10(M7)))*$A$2,0),0) -> 0 | X7: =IF((N7>0),ROUND((101+1000*(LOG10($N$5)-LOG10(N7)))*$A$2,0),0) -> 0 | Y7: =IF((O7>0),ROUND((101+1000*(LOG10($O$5)-LOG10(O7)))*$A$2,0),0) -> 0 | Z7: =SUM(LARGE(P7:Y7,1),LARGE(P7:Y7,2),LARGE(P7:Y7,3),LARGE(P7:Y7,4)) -> 0
A8: 2 | P8: 0 | Q8: 0 | R8: 0 | S8: 0 | T8: 0 | U8: 0 | V8: 0 | W8: 0 | X8: 0 | Y8: 0 | Z8: 0
A9: 3 | P9: 0 | Q9: 0 | R9: 0 | S9: 0 | T9: 0 | U9: 0 | V9: 0 | W9: 0 | X9: 0 | Y9: 0 | Z9: 0
A10: 4 | P10: 0 | Q10: 0 | R10: 0 | S10: 0 | T10: 0 | U10: 0 | V10: 0 | W10: 0 | X10: 0 | Y10: 0 | Z10: 0
A11: 5 | P11: 0 | Q11: 0 | R11: 0 | S11: 0 | T11: 0 | U11: 0 | V11: 0 | W11: 0 | X11: 0 | Y11: 0 | Z11: 0
A12: 6 | P12: 0 | Q12: 0 | R12: 0 | S12: 0 | T12: 0 | U12: 0 | V12: 0 | W12: 0 | X12: 0 | Y12: 0 | Z12: 0
A13: 7 | P13: 0 | Q13: 0 | R13: 0 | S13: 0 | T13: 0 | U13: 0 | V13: 0 | W13: 0 | X13: 0 | Y13: 0 | Z13: 0
A14: 8 | P14: 0 | Q14: 0 | R14: 0 | S14: 0 | T14: 0 | U14: 0 | V14: 0 | W14: 0 | X14: 0 | Y14: 0 | Z14: 0
A15: 9 | P15: 0 | Q15: 0 | R15: 0 | S15: 0 | T15: 0 | U15: 0 | V15: 0 | W15: 0 | X15: 0 | Y15: 0 | Z15: 0
A16: 10 | P16: 0 | Q16: 0 | R16: 0 | S16: 0 | T16: 0 | U16: 0 | V16: 0 | W16: 0 | X16: 0 | Y16: 0 | Z16: 0
A17: 11 | P17: 0 | Q17: 0 | R17: 0 | S17: 0 | T17: 0 | U17: 0 | V17: 0 | W17: 0 | X17: 0 | Y17: 0 | Z17: 0
A18: 12 | P18: 0 | Q18: 0 | R18: 0 | S18: 0 | T18: 0 | U18: 0 | V18: 0 | W18: 0 | X18: 0 | Y18: 0 | Z18: 0
A19: 13 | P19: 0 | Q19: 0 | R19: 0 | S19: 0 | T19: 0 | U19: 0 | V19: 0 | W19: 0 | X19: 0 | Y19: 0 | Z19: 0
A20: 14 | P20: 0 | Q20: 0 | R20: 0 | S20: 0 | T20: 0 | U20: 0 | V20: 0 | W20: 0 | X20: 0 | Y20: 0 | Z20: 0
A21: 15 | P21: 0 | Q21: 0 | R21: 0 | S21: 0 | T21: 0 | U21: 0 | V21: 0 | W21: 0 | X21: 0 | Y21: 0 | Z21: 0
A22: 16 | P22: 0 | Q22: 0 | R22: 0 | S22: 0 | T22: 0 | U22: 0 | V22: 0 | W22: 0 | X22: 0 | Y22: 0 | Z22: 0
A23: 17 | P23: 0 | Q23: 0 | R23: 0 | S23: 0 | T23: 0 | U23: 0 | V23: 0 | W23: 0 | X23: 0 | Y23: 0 | Z23: 0
A24: 18 | P24: 0 | Q24: 0 | R24: 0 | S24: 0 | T24: 0 | U24: 0 | V24: 0 | W24: 0 | X24: 0 | Y24: 0 | Z24: 0
A25: 19 | P25: 0 | Q25: 0 | R25: 0 | S25: 0 | T25: 0 | U25: 0 | V25: 0 | W25: 0 | X25: 0 | Y25: 0 | Z25: 0
A26: 20 | P26: 0 | Q26: 0 | R26: 0 | S26: 0 | T26: 0 | U26: 0 | V26: 0 | W26: 0 | X26: 0 | Y26: 0 | Z26: 0
P27: 0 | Q27: 0 | R27: 0 | S27: 0 | T27: 0 | U27: 0 | V27: 0 | W27: 0 | X27: 0 | Y27: 0 | Z27: 0
P28: 0 | Q28: 0 | R28: 0 | S28: 0 | T28: 0 | U28: 0 | V28: 0 | W28: 0 | X28: 0 | Y28: 0 | Z28: 0
P29: 0 | Q29: 0 | R29: 0 | S29: 0 | T29: 0 | U29: 0 | V29: 0 | W29: 0 | X29: 0 | Y29: 0 | Z29: 0
P30: 0 | Q30: 0 | R30: 0 | S30: 0 | T30: 0 | U30: 0 | V30: 0 | W30: 0 | X30: 0 | Y30: 0 | Z30: 0
P31: 0 | Q31: 0 | R31: 0 | S31: 0 | T31: 0 | U31: 0 | V31: 0 | W31: 0 | X31: 0 | Y31: 0 | Z31: 0
P32: 0 | Q32: 0 | R32: 0 | S32: 0 | T32: 0 | U32: 0 | V32: 0 | W32: 0 | X32: 0 | Y32: 0 | Z32: 0
P33: 0 | Q33: 0 | R33: 0 | S33: 0 | T33: 0 | U33: 0 | V33: 0 | W33: 0 | X33: 0 | Y33: 0 | Z33: 0
P34: 0 | Q34: 0 | R34: 0 | S34: 0 | T34: 0 | U34: 0 | V34: 0 | W34: 0 | X34: 0 | Y34: 0 | Z34: 0
P35: 0 | Q35: 0 | R35: 0 | S35: 0 | T35: 0 | U35: 0 | V35: 0 | W35: 0 | X35: 0 | Y35: 0 | Z35: 0
P36: 0 | Q36: 0 | R36: 0 | S36: 0 | T36: 0 | U36: 0 | V36: 0 | W36: 0 | X36: 0 | Y36: 0 | Z36: 0
P37: 0 | Q37: 0 | R37: 0 | S37: 0 | T37: 0 | U37: 0 | V37: 0 | W37: 0 | X37: 0 | Y37: 0 | Z37: 0
P38: 0 | Q38: 0 | R38: 0 | S38: 0 | T38: 0 | U38: 0 | V38: 0 | W38: 0 | X38: 0 | Y38: 0 | Z38: 0
P39: =IF((F39>0),ROUND((101+1000*(LOG10($F$5)-LOG10(F39)))*$A$2,0),0) -> 0 | Q39: =IF((G39>0),ROUND((101+1000*(LOG10($G$5)-LOG10(G39)))*$A$2,0),0) -> 0 | R39: =IF((H39>0),ROUND((101+1000*(LOG10($H$5)-LOG10(H39)))*$A$2,0),0) -> 0 | S39: =IF((I39>0),ROUND((101+1000*(LOG10($I$5)-LOG10(I39)))*$A$2,0),0) -> 0 | T39: =IF((J39>0),ROUND((101+1000*(LOG10($J$5)-LOG10(J39)))*$A$2,0),0) -> 0 | U39: =IF((K39>0),ROUND((101+1000*(LOG10($K$5)-LOG10(K39)))*$A$2,0),0) -> 0 | V39: =IF((L39>0),ROUND((101+1000*(LOG10($L$5)-LOG10(L39)))*$A$2,0),0) -> 0 | W39: =IF((M39>0),ROUND((101+1000*(LOG10($M$5)-LOG10(M39)))*$A$2,0),0) -> 0 | X39: =IF((N39>0),ROUND((101+1000*(LOG10($N$5)-LOG10(N39)))*$A$2,0),0) -> 0 | Y39: =IF((O39>0),ROUND((101+1000*(LOG10($O$5)-LOG10(O39)))*$A$2,0),0) -> 0 | Z39: =SUM(LARGE(P39:Y39,1),LARGE(P39:Y39,2),LARGE(P39:Y39,3),LARGE(P39:Y39,4)) -> 0
P40: 0 | Q40: 0 | R40: 0 | S40: 0 | T40: 0 | U40: 0 | V40: 0 | W40: 0 | X40: 0 | Y40: 0 | Z40: 0
P41: 0 | Q41: 0 | R41: 0 | S41: 0 | T41: 0 | U41: 0 | V41: 0 | W41: 0 | X41: 0 | Y41: 0 | Z41: 0
P42: 0 | Q42: 0 | R42: 0 | S42: 0 | T42: 0 | U42: 0 | V42: 0 | W42: 0 | X42: 0 | Y42: 0 | Z42: 0
P43: 0 | Q43: 0 | R43: 0 | S43: 0 | T43: 0 | U43: 0 | V43: 0 | W43: 0 | X43: 0 | Y43: 0 | Z43: 0
P44: 0 | Q44: 0 | R44: 0 | S44: 0 | T44: 0 | U44: 0 | V44: 0 | W44: 0 | X44: 0 | Y44: 0 | Z44: 0
P45: 0 | Q45: 0 | R45: 0 | S45: 0 | T45: 0 | U45: 0 | V45: 0 | W45: 0 | X45: 0 | Y45: 0 | Z45: 0
P46: 0 | Q46: 0 | R46: 0 | S46: 0 | T46: 0 | U46: 0 | V46: 0 | W46: 0 | X46: 0 | Y46: 0 | Z46: 0
P47: 0 | Q47: 0 | R47: 0 | S47: 0 | T47: 0 | U47: 0 | V47: 0 | W47: 0 | X47: 0 | Y47: 0 | Z47: 0
P48: 0 | Q48: 0 | R48: 0 | S48: 0 | T48: 0 | U48: 0 | V48: 0 | W48: 0 | X48: 0 | Y48: 0 | Z48: 0
P49: 0 | Q49: 0 | R49: 0 | S49: 0 | T49: 0 | U49: 0 | V49: 0 | W49: 0 | X49: 0 | Y49: 0 | Z49: 0
P50: 0 | Q50: 0 | R50: 0 | S50: 0 | T50: 0 | U50: 0 | V50: 0 | W50: 0 | X50: 0 | Y50: 0 | Z50: 0
P51: 0 | Q51: 0 | R51: 0 | S51: 0 | T51: 0 | U51: 0 | V51: 0 | W51: 0 | X51: 0 | Y51: 0 | Z51: 0
P52: 0 | Q52: 0 | R52: 0 | S52: 0 | T52: 0 | U52: 0 | V52: 0 | W52: 0 | X52: 0 | Y52: 0 | Z52: 0
P53: 0 | Q53: 0 | R53: 0 | S53: 0 | T53: 0 | U53: 0 | V53: 0 | W53: 0 | X53: 0 | Y53: 0 | Z53: 0
P54: 0 | Q54: 0 | R54: 0 | S54: 0 | T54: 0 | U54: 0 | V54: 0 | W54: 0 | X54: 0 | Y54: 0 | Z54: 0
P55: 0 | Q55: 0 | R55: 0 | S55: 0 | T55: 0 | U55: 0 | V55: 0 | W55: 0 | X55: 0 | Y55: 0 | Z55: 0
P56: 0 | Q56: 0 | R56: 0 | S56: 0 | T56: 0 | U56: 0 | V56: 0 | W56: 0 | X56: 0 | Y56: 0 | Z56: 0

Sheet Moravský regionální pohár
A1: 3M | C1: 2018 | D1: Pouze členi | E1: A | J1: Věk min: | N1: Rok: | X1: created by: Zdeněk Vykydal
A2: 3 | C2: koeficient pro logaritmické body | J2: Věk max:
A4: Bic Techno 293 - Moravský regionální pohár 2018 Všichni CZE | F4: 182120 | G4: 182002 | H4: 182132 | P4: Starobrno Cup | Q4: Pohár Vysočiny | R4: Veterán Cup
E5: Poč. záv./CTL | F5: 5 | G5: 7 | H5: 8 | P5: 182120 | Q5: 182002 | R5: 182132 | Y5: =IF(O4,O4,"") -> 
A6: Poř. celk. | C6: Kat. | D6: Reg. číslo | E6: Jméno | F6: Poř. | G6: Poř. | H6: Poř. | I6: Poř. | J6: Poř. | K6: Poř. | L6: Poř. | M6: Poř. | N6: Poř. | O6: Poř. | P6: Body | Q6: Body | R6: Body | S6: Body | T6: Body | U6: Body | V6: Body | W6: Body | X6: Body | Y6: Body | Z6: Celkem
A7: 1 | B7: 1 | C7: U17F | D7: 2110-0191 | E7: Neckařová Martina | F7: 1 | G7: 2 | H7: 2 | P7: =IF((F7>0),ROUND((101+1000*(LOG10($F$5)-LOG10(F7)))*$A$2,0),0) -> 2400 | Q7: =IF((G7>0),ROUND((101+1000*(LOG10($G$5)-LOG10(G7)))*$A$2,0),0) -> 1935 | R7: =IF((H7>0),ROUND((101+1000*(LOG10($H$5)-LOG10(H7)))*$A$2,0),0) -> 2109 | S7: =IF((I7>0),ROUND((101+1000*(LOG10($I$5)-LOG10(I7)))*$A$2,0),0) -> 0 | T7: =IF((J7>0),ROUND((101+1000*(LOG10($J$5)-LOG10(J7)))*$A$2,0),0) -> 0 | U7: =IF((K7>0),ROUND((101+1000*(LOG10($K$5)-LOG10(K7)))*$A$2,0),0) -> 0 | V7: =IF((L7>0),ROUND((101+1000*(LOG10($L$5)-LOG10(L7)))*$A$2,0),0) -> 0 | W7: =IF((M7>0),ROUND((101+1000*(LOG10($M$5)-LOG10(M7)))*$A$2,0),0) -> 0 | X7: =IF((N7>0),ROUND((101+1000*(LOG10($N$5)-LOG10(N7)))*$A$2,0),0) -> 0 | Y7: =IF((O7>0),ROUND((101+1000*(LOG10($O$5)-LOG10(O7)))*$A$2,0),0) -> 0 | Z7: =SUM(LARGE(P7:Y7,1),LARGE(P7:Y7,2),LARGE(P7:Y7,3),LARGE(P7:Y7,4)) -> 6444
A8: 2 | B8: 1 | C8: U15M | D8: 2110-0185 | E8: Diviš Lukáš | G8: 3 | H8: 1 | P8: 0 | Q8: 1407 | R8: 3012 | S8: 0 | T8: 0 | U8: 0 | V8: 0 | W8: 0 | X8: 0 | Y8: 0 | Z8: 4419
A9: 3 | B9: 1 | C9: U13M | D9: 2110-0178 | E9: Skřepek Šimon | F9: 2 | G9: 5 | H9: 6 | P9: 1497 | Q9: 741 | R9: 678 | S9: 0 | T9: 0 | U9: 0 | V9: 0 | W9: 0 | X9: 0 | Y9: 0 | Z9: 2916
A10: 4 | B10: 2 | C10: U17F | D10: 1401-0459 | E10: Altmannová Kateřina | G10: 1 | P10: 0 | Q10: 2838 | R10: 0 | S10: 0 | T10: 0 | U10: 0 | V10: 0 | W10: 0 | X10: 0 | Y10: 0 | Z10: 2838
A11: 5 | B11: 1 | C11: U15F | D11: 2110-0189 | E11: Samcová Klára | F11: 4 | G11: 4 | H11: 5 | P11: 594 | Q11: 1032 | R11: 915 | S11: 0 | T11: 0 | U11: 0 | V11: 0 | W11: 0 | X11: 0 | Y11: 0 | Z11: 2541
A12: 6 | B12: 2 | C12: U15F | D12: 2110-0183 | E12: Komendová Kateřina | H12: 3 | P12: 0 | Q12: 0 | R12: 1581 | S12: 0 | T12: 0 | U12: 0 | V12: 0 | W12: 0 | X12: 0 | Y12: 0 | Z12: 1581
A13: 7 | B13: 2 | C13: U13M | D13: 2110-0173 | E13: Šeliga Teodor | F13: 3 | H13: 8 | P13: 969 | Q13: 0 | R13: 303 | S13: 0 | T13: 0 | U13: 0 | V13: 0 | W13: 0 | X13: 0 | Y13: 0 | Z13: 1272
A14: 8 | B14: 1 | C14: O17M | D14: 2110-0172 | E14: Mikulec Martin | H14: 4 | P14: 0 | Q14: 0 | R14: 1206 | S14: 0 | T14: 0 | U14: 0 | V14: 0 | W14: 0 | X14: 0 | Y14: 0 | Z14: 1206
A15: 9 | B15: 3 | C15: U13M | D15: 2110-0186 | E15: Marek Filip | F15: 5 | G15: 7 | P15: 303 | Q15: 303 | R15: 0 | S15: 0 | T15: 0 | U15: 0 | V15: 0 | W15: 0 | X15: 0 | Y15: 0 | Z15: 606
A16: 10 | B16: 1 | C16: U13F | D16: 1705-0169 | E16: Lojínová Alexandra | G16: 6 | P16: 0 | Q16: 504 | R16: 0 | S16: 0 | T16: 0 | U16: 0 | V16: 0 | W16: 0 | X16: 0 | Y16: 0 | Z16: 504
A17: 11 | B17: 3 | C17: U15F | D17: 2110-0184 | E17: Richterová Ludmila | H17: 7 | P17: 0 | Q17: 0 | R17: 477 | S17: 0 | T17: 0 | U17: 0 | V17: 0 | W17: 0 | X17: 0 | Y17: 0 | Z17: 477
A18: 12 | P18: 0 | Q18: 0 | R18: 0 | S18: 0 | T18: 0 | U18: 0 | V18: 0 | W18: 0 | X18: 0 | Y18: 0 | Z18: 0
A19: 13 | P19: 0 | Q19: 0 | R19: 0 | S19: 0 | T19: 0 | U19: 0 | V19: 0 | W19: 0 | X19: 0 | Y19: 0 | Z19: 0
A20: 14 | P20: 0 | Q20: 0 | R20: 0 | S20: 0 | T20: 0 | U20: 0 | V20: 0 | W20: 0 | X20: 0 | Y20: 0 | Z20: 0
A21: 15 | P21: 0 | Q21: 0 | R21: 0 | S21: 0 | T21: 0 | U21: 0 | V21: 0 | W21: 0 | X21: 0 | Y21: 0 | Z21: 0
A22: 16 | P22: 0 | Q22: 0 | R22: 0 | S22: 0 | T22: 0 | U22: 0 | V22: 0 | W22: 0 | X22: 0 | Y22: 0 | Z22: 0
A23: 17 | P23: 0 | Q23: 0 | R23: 0 | S23: 0 | T23: 0 | U23: 0 | V23: 0 | W23: 0 | X23: 0 | Y23: 0 | Z23: 0
A24: 18 | P24: 0 | Q24: 0 | R24: 0 | S24: 0 | T24: 0 | U24: 0 | V24: 0 | W24: 0 | X24: 0 | Y24: 0 | Z24: 0
A25: 19 | P25: 0 | Q25: 0 | R25: 0 | S25: 0 | T25: 0 | U25: 0 | V25: 0 | W25: 0 | X25: 0 | Y25: 0 | Z25: 0
A26: 20 | P26: 0 | Q26: 0 | R26: 0 | S26: 0 | T26: 0 | U26: 0 | V26: 0 | W26: 0 | X26: 0 | Y26: 0 | Z26: 0
A27: 21 | P27: 0 | Q27: 0 | R27: 0 | S27: 0 | T27: 0 | U27: 0 | V27: 0 | W27: 0 | X27: 0 | Y27: 0 | Z27: 0
A28: 22 | P28: 0 | Q28: 0 | R28: 0 | S28: 0 | T28: 0 | U28: 0 | V28: 0 | W28: 0 | X28: 0 | Y28: 0 | Z28: 0
A29: 23 | P29: 0 | Q29: 0 | R29: 0 | S29: 0 | T29: 0 | U29: 0 | V29: 0 | W29: 0 | X29: 0 | Y29: 0 | Z29: 0
A30: 24 | P30: 0 | Q30: 0 | R30: 0 | S30: 0 | T30: 0 | U30: 0 | V30: 0 | W30: 0 | X30: 0 | Y30: 0 | Z30: 0
A31: 25 | P31: 0 | Q31: 0 | R31: 0 | S31: 0 | T31: 0 | U31: 0 | V31: 0 | W31: 0 | X31: 0 | Y31: 0 | Z31: 0
A32: 26 | P32: 0 | Q32: 0 | R32: 0 | S32: 0 | T32: 0 | U32: 0 | V32: 0 | W32: 0 | X32: 0 | Y32: 0 | Z32: 0
A33: 27 | P33: 0 | Q33: 0 | R33: 0 | S33: 0 | T33: 0 | U33: 0 | V33: 0 | W33: 0 | X33: 0 | Y33: 0 | Z33: 0
A34: 28 | P34: 0 | Q34: 0 | R34: 0 | S34: 0 | T34: 0 | U34: 0 | V34: 0 | W34: 0 | X34: 0 | Y34: 0 | Z34: 0
A35: 29 | P35: 0 | Q35: 0 | R35: 0 | S35: 0 | T35: 0 | U35: 0 | V35: 0 | W35: 0 | X35: 0 | Y35: 0 | Z35: 0
A36: 30 | P36: 0 | Q36: 0 | R36: 0 | S36: 0 | T36: 0 | U36: 0 | V36: 0 | W36: 0 | X36: 0 | Y36: 0 | Z36: 0
A37: 31 | P37: 0 | Q37: 0 | R37: 0 | S37: 0 | T37: 0 | U37: 0 | V37: 0 | W37: 0 | X37: 0 | Y37: 0 | Z37: 0
A38: 32 | P38: 0 | Q38: 0 | R38: 0 | S38: 0 | T38: 0 | U38: 0 | V38: 0 | W38: 0 | X38: 0 | Y38: 0 | Z38: 0
A39: 33 | P39: =IF((F39>0),ROUND((101+1000*(LOG10($F$5)-LOG10(F39)))*$A$2,0),0) -> 0 | Q39: =IF((G39>0),ROUND((101+1000*(LOG10($G$5)-LOG10(G39)))*$A$2,0),0) -> 0 | R39: =IF((H39>0),ROUND((101+1000*(LOG10($H$5)-LOG10(H39)))*$A$2,0),0) -> 0 | S39: =IF((I39>0),ROUND((101+1000*(LOG10($I$5)-LOG10(I39)))*$A$2,0),0) -> 0 | T39: =IF((J39>0),ROUND((101+1000*(LOG10($J$5)-LOG10(J39)))*$A$2,0),0) -> 0 | U39: =IF((K39>0),ROUND((101+1000*(LOG10($K$5)-LOG10(K39)))*$A$2,0),0) -> 0 | V39: =IF((L39>0),ROUND((101+1000*(LOG10($L$5)-LOG10(L39)))*$A$2,0),0) -> 0 | W39: =IF((M39>0),ROUND((101+1000*(LOG10($M$5)-LOG10(M39)))*$A$2,0),0) -> 0 | X39: =IF((N39>0),ROUND((101+1000*(LOG10($N$5)-LOG10(N39)))*$A$2,0),0) -> 0 | Y39: =IF((O39>0),ROUND((101+1000*(LOG10($O$5)-LOG10(O39)))*$A$2,0),0) -> 0 | Z39: =SUM(LARGE(P39:Y39,1),LARGE(P39:Y39,2),LARGE(P39:Y39,3),LARGE(P39:Y39,4)) -> 0
A40: 34 | P40: 0 | Q40: 0 | R40: 0 | S40: 0 | T40: 0 | U40: 0 | V40: 0 | W40: 0 | X40: 0 | Y40: 0 | Z40: 0
A41: 35 | P41: 0 | Q41: 0 | R41: 0 | S41: 0 | T41: 0 | U41: 0 | V41: 0 | W41: 0 | X41: 0 | Y41: 0 | Z41: 0
A42: 36 | P42: 0 | Q42: 0 | R42: 0 | S42: 0 | T42: 0 | U42: 0 | V42: 0 | W42: 0 | X42: 0 | Y42: 0 | Z42: 0
A43: 37 | P43: 0 | Q43: 0 | R43: 0 | S43: 0 | T43: 0 | U43: 0 | V43: 0 | W43: 0 | X43: 0 | Y43: 0 | Z43: 0
A44: 38 | P44: 0 | Q44: 0 | R44: 0 | S44: 0 | T44: 0 | U44: 0 | V44: 0 | W44: 0 | X44: 0 | Y44: 0 | Z44: 0
A45: 39 | P45: 0 | Q45: 0 | R45: 0 | S45: 0 | T45: 0 | U45: 0 | V45: 0 | W45: 0 | X45: 0 | Y45: 0 | Z45: 0
A46: 40 | P46: 0 | Q46: 0 | R46: 0 | S46: 0 | T46: 0 | U46: 0 | V46: 0 | W46: 0 | X46: 0 | Y46: 0 | Z46: 0
A47: 41 | P47: 0 | Q47: 0 | R47: 0 | S47: 0 | T47: 0 | U47: 0 | V47: 0 | W47: 0 | X47: 0 | Y47: 0 | Z47: 0
A48: 42 | P48: 0 | Q48: 0 | R48: 0 | S48: 0 | T48: 0 | U48: 0 | V48: 0 | W48: 0 | X48: 0 | Y48: 0 | Z48: 0
A49: 43 | P49: 0 | Q49: 0 | R49: 0 | S49: 0 | T49: 0 | U49: 0 | V49: 0 | W49: 0 | X49: 0 | Y49: 0 | Z49: 0
P50: 0 | Q50: 0 | R50: 0 | S50: 0 | T50: 0 | U50: 0 | V50: 0 | W50: 0 | X50: 0 | Y50: 0 | Z50: 0
P51: 0 | Q51: 0 | R51: 0 | S51: 0 | T51: 0 | U51: 0 | V51: 0 | W51: 0 | X51: 0 | Y51: 0 | Z51: 0
P52: 0 | Q52: 0 | R52: 0 | S52: 0 | T52: 0 | U52: 0 | V52: 0 | W52: 0 | X52: 0 | Y52: 0 | Z52: 0
P53: 0 | Q53: 0 | R53: 0 | S53: 0 | T53: 0 | U53: 0 | V53: 0 | W53: 0 | X53: 0 | Y53: 0 | Z53: 0
P54: 0 | Q54: 0 | R54: 0 | S54: 0 | T54: 0 | U54: 0 | V54: 0 | W54: 0 | X54: 0 | Y54: 0 | Z54: 0
P55: 0 | Q55: 0 | R55: 0 | S55: 0 | T55: 0 | U55: 0 | V55: 0 | W55: 0 | X55: 0 | Y55: 0 | Z55: 0
P56: 0 | Q56: 0 | R56: 0 | S56: 0 | T56: 0 | U56: 0 | V56: 0 | W56: 0 | X56: 0 | Y56: 0 | Z56: 0

Sheet 181501-3C
B1: Lucky regata

Sheet 181603-7P
B1: Cena YCN
A2: 1 | B2: 1 | C2: CZE 50 | D2: 2110-0172 | E2: Mikulec Martin | F2: 2001 | G2: 1 1 1 7* 4 1 | H2: 8 | I2: 10727
A3: 2 | B3: 2 | C3: CZE 77 | D3: 7019-0377 | E3: Rašková Adéla | F3: 2000 | G3: 3 2 5* 2 1 3 | H3: 11 | I3: 8619
A4: 3 | B4: 3 | C4: CZE 911 | D4: 2110-0182 | E4: Chalupníková Kristýna | F4: 2005 | G4: 2 3 4 4 5* 4 | H4: 17 | I4: 7387
A5: 4 | B5: 4 | C5: CZE 784 | D5: 1609-0255 | E5: Nevelöš Adam | F5: 2004 | G5: 14* 9 2 1 3 2 | H5: 17 | I5: 6512
A6: 5 | B6: 5 | C6: CZE 89 | D6: 1130-0276 | E6: Švíková Kateřina | F6: 2001 | G6: 5 4 3 5 7* 5 | H6: 22 | I6: 5834
A7: 6 | B7: 6 | C7: CZE 63 | D7: 1705-0090 | E7: Drda David | F7: 2005 | G7: 4 5 7 9* 2 6 | H7: 24 | I7: 5279
A8: 7 | B8: 7 | C8: CZE 79 | D8: 1607-0166 | E8: Himmelová Klára | F8: 2002 | G8: 7 6 8 8 10* 8 | H8: 37 | I8: 4811
A9: 8 | B9: 8 | C9: CZE 744 | D9: 1609-0278 | E9: Říčanová Nicol | F9: 2006 | G9: 10 13* 6 6 12 12 | H9: 46 | I9: 4405
A10: 9 | B10: 9 | C10: CZE 81 | D10: 1607-0165 | E10: Himmel Jiří | F10: 2003 | G10: 6 8 21* 21 6 7 | H10: 48 | I10: 4047
A11: 10 | B11: 10 | C11: CZE 289 | D11: 2110-0194 | E11: Piňosová Kristýna | F11: 2005 | G11: 11 11 13* 11 8 9 | H11: 50 | I11: 3727
A12: 11 | B12: 11 | C12: CZE 787 | D12: 1609-0256 | E12: Nevelöš Tibor | F12: 2006 | G12: 18* 16 11 3 9 13 | H12: 52 | I12: 3437
A13: 12 | B13: 12 | C13: CZE 98 | D13: 1130-0352 | E13: Švíková Bára | F13: 2004 | G13: 8 10 14 16* 14 11 | H13: 57 | I13: 3172
A14: 13 | B14: 13 | C14: CZE 80 | D14: 1705-0086 | E14: Sadílková Nela | F14: 2006 | G14: 16* 12 9 13 13 10 | H14: 57 | I14: 2929
A15: 14 | B15: 14 | C15: CZE 37 | D15: 1402-0384 | E15: Šplíchal Filip | F15: 2001 | G15: 15 7 12 10 16 OCS* | H15: 60 | I15: 2704
A16: 15 | B16: 15 | C16: CZE 82 | D16: 1607-0169 | E16: Parchomenko Ondřej | F16: 2003 | G16: 9 14 20* 12 11 17 | H16: 63 | I16: 2494
A17: 16 | B17: 16 | C17: CZE 74 | D17: 2110-0191 | E17: Neckařová Martina | F17: 2003 | G17: 13 15* 10 15 15 15 | H17: 68 | I17: 2298
A18: 17 | B18: 17 | C18: CZE 11 | D18: 1401-0459 | E18: Altmannová Kateřina | F18: 2004 | G18: 12 23* 18 18 17 19 | H18: 84 | I18: 2113
A19: 18 | B19: 18 | C19: CZE 88 | D19: 1705-0074 | E19: Štěpánková Markéta | F19: 2006 | G19: 17 19* 15 17 18 18 | H19: 85 | I19: 1940
A20: 19 | B20: 19 | C20: CZE 781 | D20: 2110-0178 | E20: Skřepek Šimon | F20: 2007 | G20: 20* 18 19 14 20 14 | H20: 85 | I20: 1775
A21: 20 | B21: 20 | C21: CZE 783 | D21: 1609-0301 | E21: Tlapák Vojtěch | F21: 2005 | G21: 21* 17 16 19 19 16 | H21: 87 | I21: 1619
A22: 21 | B22: 21 | C22: CZE 28 | D22: 7019-0391 | E22: Zemanová Nicole | F22: 2005 | G22: 23* 20 17 20 21 21 | H22: 99 | I22: 1471
A23: 22 | B23: 22 | C23: CZE 741 | D23: 1609-0298 | E23: Rais Michal | F23: 2006 | G23: 19 21 23 25* 24 20 | H23: 107 | I23: 1330
A24: 23 | B24: 23 | C24: CZE 714 | D24: 2110-0189 | E24: Samcová Klára | F24: 2005 | G24: 22 22 24* 22 22 22 | H24: 110 | I24: 1194
A25: 24 | B25: 24 | C25: CZE 87 | D25: 1705-0169 | E25: Lojínová Alexandra | F25: 2007 | G25: 24* 24 22 24 23 23 | H25: 116 | I25: 1065
A26: 25 | B26: 25 | C26: CZE 51 | D26: 2110-0173 | E26: Šeliga Teodor | F26: 2007 | G26: 26* 25 25 23 25 24 | H26: 122 | I26: 941
A27: 26 | B27: 26 | C27: CZE 78 | D27: 1609-0303 | E27: Kříž Jan | F27: 2008 | G27: 25 26 DNC* 26 DNC DNC | H27: 133 | I27: 822
A28: 27 | B28: 27 | C28: CZE 93 | D28: 1705-0182 | E28: Hasman Radim | F28: 2006 | G28: DNC* DNC DNC DNF DNC DNC | H28: 140 | I28: 707

Sheet 182115-7P
B1: Věstonická Venuše
A2: 1 | B2: 1 | C2: CZE 784 | D2: 1609-0255 | E2: Nevelöš Adam | F2: 2004 | G2: 1 1 2 | H2: 4 | I2: 10727
A3: 2 | B3: 2 | C3: CZE 50 | D3: 2110-0172 | E3: Mikulec Martin | F3: 2001 | G3: 3 4 3 | H3: 10 | I3: 8619
A4: 3 | B4: 3 | C4: CZE 77 | D4: 7019-0377 | E4: Rašková Adéla | F4: 2000 | G4: 2 2 8 | H4: 12 | I4: 7387
A5: 4 | B5: 4 | C5: CZE 787 | D5: 1609-0256 | E5: Nevelöš Tibor | F5: 2006 | G5: 5 3 4 | H5: 12 | I5: 6512
A6: 5 | B6: 5 | C6: CZE 911 | D6: 2110-0182 | E6: Chalupníková Kristýna | F6: 2005 | G6: 7 5 1 | H6: 13 | I6: 5834
A7: 6 | B7: 6 | C7: CZE 40 | D7: 1801-0167 | E7: Štěpánský Adam | F7: 2003 | G7: 11 7 7 | H7: 25 | I7: 5279
A8: 7 | B8: 7 | C8: CZE 98 | D8: 1130-0352 | E8: Švíková Bára | F8: 2004 | G8: 4 11 11 | H8: 26 | I8: 4811
A9: 8 | B9: 8 | C9: CZE 63 | D9: 1705-0090 | E9: Drda David | F9: 2005 | G9: 8 13 5 | H9: 26 | I9: 4405
A10: 9 | B10: 9 | C10: CZE 82 | D10: 1607-0169 | E10: Parchomenko Ondřej | F10: 2003 | G10: 9 8 12 | H10: 29 | I10: 4047
A11: 10 | B11: 10 | C11: CZE 11 | D11: 1401-0459 | E11: Altmannová Kateřina | F11: 2004 | G11: 19 6 6 | H11: 31 | I11: 3727
A12: 11 | B12: 11 | C12: CZE 744 | D12: 1609-0278 | E12: Říčanová Nicol | F12: 2006 | G12: 12 10 9 | H12: 31 | I12: 3437
A13: 12 | B13: 12 | C13: CZE 81 | D13: 1607-0165 | E13: Himmel Jiří | F13: 2003 | G13: 6 9 17 | H13: 32 | I13: 3172
A14: 13 | B14: 13 | C14: CZE 289 | D14: 2110-0194 | E14: Piňosová Kristýna | F14: 2005 | G14: 10 12 10 | H14: 32 | I14: 2929
A15: 14 | B15: 14 | C15: CZE 74 | D15: 2110-0191 | E15: Neckařová Martina | F15: 2003 | G15: 13 15 16 | H15: 44 | I15: 2704
A16: 15 | B16: 15 | C16: CZE 211 | D16: 2110-0185 | E16: Diviš Lukáš | F16: 2004 | G16: 18 14 13 | H16: 45 | I16: 2494
A17: 16 | B17: 16 | C17: CZE 80 | D17: 1705-0086 | E17: Sadílková Nela | F17: 2006 | G17: 16 17 15 | H17: 48 | I17: 2298
A18: 17 | B18: 17 | C18: CZE 73 | D18: 1705-0085 | E18: Sadílek Adam | F18: 2002 | G18: 17 18 14 | H18: 49 | I18: 2113
A19: 18 | B19: 18 | C19: CZE 47 | D19: 2110-0183 | E19: Komendová Kateřina | F19: 2005 | G19: 14 20 18 | H19: 52 | I19: 1940
A20: 19 | B20: 19 | C20: CZE 51 | D20: 2110-0173 | E20: Šeliga Teodor | F20: 2007 | G20: 15 22 22 | H20: 59 | I20: 1775
A21: 20 | B21: 20 | C21: CZE 781 | D21: 2110-0178 | E21: Skřepek Šimon | F21: 2007 | G21: 22 16 21 | H21: 59 | I21: 1619
A22: 21 | B22: 21 | C22: CZE 88 | D22: 1705-0074 | E22: Štěpánková Markéta | F22: 2006 | G22: 20 21 19 | H22: 60 | I22: 1471
A23: 22 | B23: 22 | C23: CZE 87 | D23: 1705-0169 | E23: Lojínová Alexandra | F23: 2007 | G23: 21 19 24 | H23: 64 | I23: 1330
A24: 23 | B24: 23 | C24: CZE 741 | D24: 1609-0298 | E24: Rais Michal | F24: 2006 | G24: 25 24 20 | H24: 69 | I24: 1194
A25: 24 | B25: 24 | C25: CZE 714 | D25: 2110-0189 | E25: Samcová Klára | F25: 2005 | G25: DNC 23 23 | H25: 74 | I25: 1065
A26: 25 | B26: 25 | C26: CZE 93 | D26: 1705-0182 | E26: Hasman Radim | F26: 2006 | G26: 24 25 25 | H26: 74 | I26: 941
A27: 26 | B27: 26 | C27: CZE 64 | D27: 2110-0184 | E27: Richterová Ludmila | F27: 2004 | G27: 23 26 26 | H27: 75 | I27: 822
A28: 27 | B28: 27 | C28: CZE 78 | D28: 1609-0303 | E28: Kříž Jan | F28: 2008 | G28: DNC 27 DNC | H28: 83 | I28: 707

Sheet 182120-3M
B1: Starobrno Cup
A2: 1 | B2: 1 | C2: CZE 74 | D2: 2110-0191 | E2: Neckařová Martina | F2: 2003 | G2: 1 1 1 | H2: 3 | I2: 3200
A3: 2 | B3: 2 | C3: CZE 781 | D3: 2110-0178 | E3: Skřepek Šimon | F3: 2007 | G3: 3 2 2 | H3: 7 | I3: 1996
A4: 3 | B4: 3 | C4: CZE 51 | D4: 2110-0173 | E4: Šeliga Teodor | F4: 2007 | G4: 2 4 4 | H4: 10 | I4: 1291
A5: 4 | B5: 4 | C5: CZE 714 | D5: 2110-0189 | E5: Samcová Klára | F5: 2005 | G5: 4 3 3 | H5: 10 | I5: 792
A6: 5 | B6: 5 | C6: CZE 64 | D6: 2110-0186 | E6: Marek Filip | F6: 2006 | G6: DNF DNC 5 | H6: 17 | I6: 404

Sheet 181803-7P
B1: Pohár Rozkoše
A2: 1 | B2: 1 | C2: CZE 50 | D2: 2110-0172 | E2: Mikulec Martin | F2: 2001 | G2: 1 1 4 | H2: 6 | I2: 10104
A3: 2 | B3: 2 | C3: CZE 784 | D3: 1609-0255 | E3: Nevelöš Adam | F3: 2004 | G3: 5 3 3 | H3: 11 | I3: 7997
A4: 3 | B4: 3 | C4: CZE 911 | D4: 2110-0182 | E4: Chalupníková Kristýna | F4: 2005 | G4: 8 5 1 | H4: 14 | I4: 6764
A5: 4 | B5: 4 | C5: CZE 289 | D5: 2110-0194 | E5: Piňosová Kristýna | F5: 2005 | G5: 2 6 9 | H5: 17 | I5: 5890
A6: 5 | B6: 5 | C6: CZE 63 | D6: 1705-0090 | E6: Drda David | F6: 2005 | G6: 4 7 6 | H6: 17 | I6: 5211
A7: 6 | B7: 6 | C7: CZE 40 | D7: 1801-0167 | E7: Štěpánský Adam | F7: 2003 | G7: 6 11 2 | H7: 19 | I7: 4657
A8: 7 | B8: 7 | C8: CZE 787 | D8: 1609-0256 | E8: Nevelöš Tibor | F8: 2006 | G8: 7 8 5 | H8: 20 | I8: 4188
A9: 8 | B9: 8 | C9: CZE 788 | D9: 1609-0212 | E9: Müller Ondřej | F9: 2001 | G9: 11 2 10 | H9: 23 | I9: 3782
A10: 9 | B10: 9 | C10: CZE 82 | D10: 1607-0169 | E10: Parchomenko Ondřej | F10: 2003 | G10: 3 9 14 | H10: 26 | I10: 3424
A11: 10 | B11: 10 | C11: CZE 744 | D11: 1609-0278 | E11: Říčanová Nicol | F11: 2006 | G11: 12 10 7 | H11: 29 | I11: 3104
A12: 11 | B12: 11 | C12: CZE 77 | D12: 7019-0377 | E12: Rašková Adéla | F12: 2000 | G12: OCS 4 8 | H12: 35 | I12: 2814
A13: 12 | B13: 12 | C13: CZE 11 | D13: 1401-0459 | E13: Altmannová Kateřina | F13: 2004 | G13: 10 14 16 | H13: 40 | I13: 2550
A14: 13 | B14: 13 | C14: CZE 80 | D14: 1705-0086 | E14: Sadílková Nela | F14: 2006 | G14: 14 15 11 | H14: 40 | I14: 2306
A15: 14 | B15: 14 | C15: CZE 74 | D15: 2110-0191 | E15: Neckařová Martina | F15: 2003 | G15: 15 12 13 | H15: 40 | I15: 2081
A16: 15 | B16: 15 | C16: CZE 28 | D16: 7019-0391 | E16: Zemanová Nicole | F16: 2005 | G16: 13 18 12 | H16: 43 | I16: 1871
A17: 16 | B17: 16 | C17: CZE 73 | D17: 1705-0085 | E17: Sadílek Adam | F17: 2002 | G17: 9 13 DNC | H17: 45 | I17: 1675
A18: 17 | B18: 17 | C18: CZE 88 | D18: 1705-0074 | E18: Štěpánková Markéta | F18: 2006 | G18: 16 16 15 | H18: 47 | I18: 1491
A19: 18 | B19: 18 | C19: CZE 87 | D19: 1705-0169 | E19: Lojínová Alexandra | F19: 2007 | G19: 18 17 18 | H19: 53 | I19: 1317
A20: 19 | B20: 19 | C20: CZE 714 | D20: 2110-0189 | E20: Samcová Klára | F20: 2005 | G20: 17 19 19 | H20: 55 | I20: 1153
A21: 20 | B21: 20 | C21: CZE 51 | D21: 2110-0173 | E21: Šeliga Teodor | F21: 2007 | G21: DNF DNC 17 | H21: 63 | I21: 997
A22: 21 | B22: 21 | C22: CZE 134 | D22: 1402-0460 | E22: Loužek Štěpán | F22: 2008 | G22: DNF DNC DNC | H22: 69 | I22: 778
A23: 21 | B23: 21 | C23: CZE 742 | D23: 1609-0303 | E23: Kříž Jan | F23: 2008 | G23: DNF DNF DNF | H23: 69 | I23: 778

Sheet 182002-3M
B1: Pohár Vysočiny
A2: 1 | B2: 1 | C2: CZE 11 | D2: 1401-0459 | E2: Altmannová Kateřina | F2: 2004 | G2: 5* 1 1 2 | H2: 4 | I2: 2838
A3: 2 | B3: 2 | C3: CZE 74 | D3: 2110-0191 | E3: Neckařová Martina | F3: 2003 | G3: 3* 2 2 1 | H3: 5 | I3: 1935
A4: 3 | B4: 3 | C4: CZE 211 | D4: 2110-0185 | E4: Diviš Lukáš | F4: 2004 | G4: 1 3 3 DNF* | H4: 7 | I4: 1407
A5: 4 | B5: 4 | C5: CZE 714 | D5: 2110-0189 | E5: Samcová Klára | F5: 2005 | G5: 2 4* 4 3 | H5: 9 | I5: 1032
A6: 5 | B6: 5 | C6: CZE 781 | D6: 2110-0178 | E6: Skřepek Šimon | F6: 2007 | G6: 4 5* 5 4 | H6: 13 | I6: 741
A7: 6 | B7: 6 | C7: CZE 87 | D7: 1705-0169 | E7: Lojínová Alexandra | F7: 2007 | G7: 6 DNF* 6 DNF | H7: 20 | I7: 504
A8: 7 | B8: 7 | C8: CZE 64 | D8: 2110-0186 | E8: Marek Filip | F8: 2006 | G8: 7 DNF* 7 DNF | H8: 22 | I8: 303

Sheet 182132-3M
B1: Veterán Cup
A2: 1 | B2: 1 | C2: CZE 211 | D2: 2110-0185 | E2: Diviš Lukáš | F2: 2004 | G2: 2* 2* 1 2 2 1 2 2 | H2: 10 | I2: 3012
A3: 2 | B3: 2 | C3: CZE 74 | D3: 2110-0191 | E3: Neckařová Martina | F3: 2003 | G3: 3* 1 3* 1 3 3 3 3 | H3: 14 | I3: 2109
A4: 3 | B4: 3 | C4: CZE 47 | D4: 2110-0183 | E4: Komendová Kateřina | F4: 2005 | G4: 1 3 2 3 5* 5* 4 4 | H4: 17 | I4: 1581
A5: 4 | B5: 4 | C5: CZE 50 | D5: 2110-0172 | E5: Mikulec Martin | F5: 2001 | G5: DNC* DNC* DNC DNC 1 2 1 1 | H5: 23 | I5: 1206
A6: 5 | B6: 5 | C6: CZE 714 | D6: 2110-0189 | E6: Samcová Klára | F6: 2005 | G6: 4 4 4 4 6* 6* 6 6 | H6: 28 | I6: 915
A7: 6 | B7: 6 | C7: CZE 781 | D7: 2110-0178 | E7: Skřepek Šimon | F7: 2007 | G7: DNC* DNC* DNC DNC 4 4 5 5 | H7: 36 | I7: 678
A8: 7 | B8: 7 | C8: CZE 64 | D8: 2110-0184 | E8: Richterová Ludmila | F8: 2004 | G8: DNC* DNC* DNC DNC 7 DNF 7 7 | H8: 48 | I8: 477
A9: 8 | B9: 8 | C9: CZE 51 | D9: 2110-0173 | E9: Šeliga Teodor | F9: 2007 | G9: DNF* DNC* DNC DNC DNC DNC DNC DNC | H9: 54 | I9: 303

Sheet 182005-7P
B1: Závod mladých nadějí
A2: 1 | B2: 1 | C2: CZE 1 | D2: 2101-0375 | E2: Pospíšil Martin | F2: 1964 | G2: 2 3 2 3 3 18* 3 | H2: 16 | I2: 11515
A3: 2 | B3: 2 | C3: CZE 40 | D3: 1801-0167 | E3: Štěpánský Adam | F3: 2003 | G3: 4 1 1 1 9 3 14* | H3: 19 | I3: 9408
A4: 3 | B4: 3 | C4: CZE 784 | D4: 1609-0255 | E4: Nevelöš Adam | F4: 2004 | G4: 7* 6 4 5 1 2 2 | H4: 20 | I4: 8176
A5: 4 | B5: 4 | C5: CZE 50 | D5: 2110-0172 | E5: Mikulec Martin | F5: 2001 | G5: 1 2 8* 7 5 1 5 | H5: 21 | I5: 7301
A6: 5 | B6: 5 | C6: CZE 911 | D6: 2110-0182 | E6: Chalupníková Kristýna | F6: 2005 | G6: 5 5 5 2 8* 5 4 | H6: 26 | I6: 6623
A7: 6 | B7: 6 | C7: CZE 89 | D7: 1130-0276 | E7: Švíková Kateřina | F7: 2001 | G7: 6 4 6 4 2 7* 7 | H7: 29 | I7: 6068
A8: 7 | B8: 7 | C8: CZE 63 | D8: 1705-0090 | E8: Drda David | F8: 2005 | G8: 3 9* 7 9 6 8 8 | H8: 41 | I8: 5600
A9: 8 | B9: 8 | C9: CZE 787 | D9: 1609-0256 | E9: Nevelöš Tibor | F9: 2006 | G9: 15* 14 11 8 4 6 9 | H9: 52 | I9: 5194
A10: 9 | B10: 9 | C10: CZE 289 | D10: 2110-0194 | E10: Piňosová Kristýna | F10: 2005 | G10: 9 11 10 12* 7 9 11 | H10: 57 | I10: 4836
A11: 10 | B11: 10 | C11: CZE 37 | D11: 1402-0384 | E11: Šplíchal Filip | F11: 2001 | G11: 8 17* 15 10 11 17 1 | H11: 62 | I11: 4515
A12: 11 | B12: 11 | C12: CZE 744 | D12: 1609-0278 | E12: Říčanová Nicol | F12: 2006 | G12: 17* 16 13 13 10 4 10 | H12: 66 | I12: 4226
A13: 12 | B13: 12 | C13: CZE 211 | D13: 2110-0185 | E13: Diviš Lukáš | F13: 2004 | G13: 12 7 14 14 17* 10 13 | H13: 70 | I13: 3961
A14: 13 | B14: 13 | C14: CZE 7 | D14: 1705-0085 | E14: Sadílek Adam | F14: 2002 | G14: 13 8 3 6 19 26* 21 | H14: 70 | I14: 3718
A15: 14 | B15: 14 | C15: CZE 82 | D15: 1607-0169 | E15: Parchomenko Ondřej | F15: 2003 | G15: 16 15 9 11 UFD* 19 6 | H15: 76 | I15: 3493
A16: 15 | B16: 15 | C16: CZE 74 | D16: 2110-0191 | E16: Neckařová Martina | F16: 2003 | G16: 10 12 17 16 12 13 18* | H16: 80 | I16: 3283
A17: 16 | B17: 16 | C17: CZE 80 | D17: 1705-0086 | E17: Sadílková Nela | F17: 2006 | G17: 14 18* 12 15 14 11 17 | H17: 83 | I17: 3087
A18: 17 | B18: 17 | C18: CZE 11 | D18: 1401-0459 | E18: Altmannová Kateřina | F18: 2004 | G18: 11 13 18 DNF* 18 22 12 | H18: 94 | I18: 2902
A19: 18 | B19: 18 | C19: CZE 781 | D19: 2110-0178 | E19: Skřepek Šimon | F19: 2007 | G19: 18 10 16 18 25* 25 20 | H19: 107 | I19: 2729
A20: 19 | B20: 19 | C20: CZE 714 | D20: 2110-0189 | E20: Samcová Klára | F20: 2005 | G20: 22 22 28* 22 13 14 15 | H20: 108 | I20: 2564
A21: 20 | B21: 20 | C21: CZE 783 | D21: 1609-0301 | E21: Tlapák Vojtěch | F21: 2005 | G21: 20 24* 21 21 16 12 22 | H21: 112 | I21: 2408
A22: 21 | B22: 21 | C22: CZE 741 | D22: 1609-0298 | E22: Rais Michal | F22: 2006 | G22: OCS* 23 22 20 15 15 19 | H22: 114 | I22: 2260
A23: 22 | B23: 22 | C23: CZE 47 | D23: 2110-0183 | E23: Komendová Kateřina | F23: 2005 | G23: 21* 20 20 19 20 20 16 | H23: 115 | I23: 2119
A24: 23 | B24: 23 | C24: CZE 88 | D24: 1705-0074 | E24: Štěpánková Markéta | F24: 2006 | G24: 19 19 19 17 21 24* 23 | H24: 118 | I24: 1983
A25: 24 | B25: 24 | C25: CZE 87 | D25: 1705-0169 | E25: Lojínová Alexandra | F25: 2007 | G25: 23 21 24 24 23 21 25* | H25: 136 | I25: 1854
A26: 25 | B26: 25 | C26: CZE 51 | D26: 2110-0173 | E26: Šeliga Teodor | F26: 2007 | G26: 25 25 26* 26 24 16 24 | H26: 140 | I26: 1730
A27: 26 | B27: 26 | C27: CZE 5 | D27: 9999-0054 | E27: Kudláčková Zuzana Saxana | F27: 2006 | G27: 29* 26 23 23 27 23 26 | H27: 148 | I27: 1611
A28: 27 | B28: 27 | C28: CZE 93 | D28: 1705-0182 | E28: Hasman Radim | F28: 2006 | G28: 24 27 25 28 26 29* 27 | H28: 157 | I28: 1496
A29: 28 | B29: 28 | C29: CZE 1787 | D29: 1609-0308 | E29: Tlapáková Zuzana | F29: 2007 | G29: 26 29 31* 29 22 27 31 | H29: 164 | I29: 1385
A30: 29 | B30: 29 | C30: CZE 10 | D30: 7019-0401 | E30: Kuchař Jan | F30: 2005 | G30: 27 30* 27 25 28 30 28 | H30: 165 | I30: 1279
A31: 30 | B31: 30 | C31: CZE 64 | D31: 2110-0184 | E31: Richterová Ludmila | F31: 2004 | G31: 28 28 29* 27 29 28 29 | H31: 169 | I31: 1176
A32: 31 | B32: 31 | C32: CZE 2 | D32: 9999-0055 | E32: Hraníková Andrea | F32: 2006 | G32: 31 DNC* 32 DNC 30 31 30 | H32: 190 | I32: 1076
A33: 32 | B33: 32 | C33: CZE 6 | D33: 2110-0186 | E33: Marek Filip | F33: 2006 | G33: 30 31 30 DNC* DNS 32 DNC | H33: 195 | I33: 979
A34: 33 | B34: 33 | C34: CZE 134 | D34: 1402-0460 | E34: Loužek Štěpán | F34: 2008 | G34: DNC* DNC DNC DNC 32 33 32 | H34: 205 | I34: 886
A35: 34 | B35: 34 | C35: CZE 742 | D35: 1609-0303 | E35: Kříž Jan | F35: 2008 | G35: DNC* DNC DNF DNC 31 DNC DNC | H35: 211 | I35: 795
A36: 35 | B36: 35 | C36: CZE 66 | D36: 1705-0177 | E36: Drda Filip | F36: 2010 | G36: DNC* DNC DNC DNC DNF DNC DNC | H36: 216 | I36: 707

Sheet 181507-3C
B1: Senior Cup
A2: 1
A3: 2
A4: 3

Sheet 181616-7P
B1: Nechranická buchta
A2: 1 | B2: 1 | C2: CZE 784 | D2: 1609-0255 | E2: Nevelöš Adam | F2: 2004 | G2: 3 2 2 5* 1 1 2 | H2: 11 | I2: 10944
A3: 2 | B3: 2 | C3: CZE 50 | D3: 2110-0172 | E3: Mikulec Martin | F3: 2001 | G3: 1 1 1 12* 2 2 8 | H3: 15 | I3: 8837
A4: 3 | B4: 3 | C4: CZE 911 | D4: 2110-0182 | E4: Chalupníková Kristýna | F4: 2005 | G4: 2 3 3 9* 4 5 1 | H4: 18 | I4: 7604
A5: 4 | B5: 4 | C5: CZE 787 | D5: 1609-0256 | E5: Nevelöš Tibor | F5: 2006 | G5: 7 8* 6 8 6 4 3 | H5: 34 | I5: 6729
A6: 5 | B6: 5 | C6: CZE 37 | D6: 1402-0384 | E6: Šplíchal Filip | F6: 2001 | G6: 4 7 5 7 10 6 14* | H6: 39 | I6: 6051
A7: 6 | B7: 6 | C7: CZE 11 | D7: 1401-0459 | E7: Altmannová Kateřina | F7: 2004 | G7: 8 9 8 DNC* 3 7 4 | H7: 39 | I7: 5497
A8: 7 | B8: 7 | C8: CZE 289 | D8: 2110-0194 | E8: Piňosová Kristýna | F8: 2005 | G8: 10 10 10 11* 7 3 5 | H8: 45 | I8: 5028
A9: 8 | B9: 8 | C9: CZE 63 | D9: 1705-0090 | E9: Drda David | F9: 2005 | G9: 5 4 4 10 15* 12 13 | H9: 48 | I9: 4622
A10: 9 | B10: 9 | C10: CZE 82 | D10: 1607-0169 | E10: Parchomenko Ondřej | F10: 2003 | G10: 12 11 7 DNC* 5 9 6 | H10: 50 | I10: 4264
A11: 10 | B11: 10 | C11: CZE 98 | D11: 1130-0352 | E11: Švíková Barbora | F11: 2004 | G11: 6 5 12 DNC* 8 8 11 | H11: 50 | I11: 3944
A12: 11 | B12: 11 | C12: CZE 88 | D12: 1705-0074 | E12: Štěpánková Markéta | F12: 2006 | G12: 14 18* 14 3 12 15 9 | H12: 67 | I12: 3654
A13: 12 | B13: 12 | C13: CZE 211 | D13: 2110-0185 | E13: Diviš Lukáš | F13: 2004 | G13: 9 6 11 15 14 DNS* 12 | H13: 67 | I13: 3390
A14: 13 | B14: 13 | C14: CZE 96 | D14: 7019-0402 | E14: Matouš Martin | F14: 1970 | G14: 16 13 18 6 9 11 DNC* | H14: 73 | I14: 3146
A15: 14 | B15: 14 | C15: CZE 80 | D15: 1705-0086 | E15: Sadílková Nela | F15: 2006 | G15: 15 14 17* 13 13 13 10 | H15: 78 | I15: 2921
A16: 15 | B16: 15 | C16: CZE 74 | D16: 2110-0191 | E16: Neckařová Martina | F16: 2003 | G16: 17* 16 15 16 11 14 7 | H16: 79 | I16: 2711
A17: 16 | B17: 16 | C17: CZE 781 | D17: 2110-0178 | E17: Skřepek Šimon | F17: 2007 | G17: 11 17 16 1 18 19* 18 | H17: 81 | I17: 2515
A18: 17 | B18: 17 | C18: CZE 783 | D18: 1609-0301 | E18: Tlapák Vojtěch | F18: 2005 | G18: 21 20 22* 2 19 16 15 | H18: 93 | I18: 2331
A19: 18 | B19: 18 | C19: CZE 87 | D19: 1705-0169 | E19: Lojínová Alexandra | F19: 2007 | G19: 23* 19 20 4 21 17 17 | H19: 98 | I19: 2157
A20: 19 | B20: 19 | C20: CZE 81 | D20: 1607-0165 | E20: Himmel Jiří | F20: 2003 | G20: 19 15 9 DNF* 26 10 21 | H20: 100 | I20: 1993
A21: 20 | B21: 20 | C21: CZE 741 | D21: 1609-0298 | E21: Rais Michal | F21: 2006 | G21: 20 21* 21 17 17 18 19 | H21: 112 | I21: 1837
A22: 21 | B22: 21 | C22: CZE 744 | D22: 1609-0278 | E22: Říčanová Nicol | F22: 2006 | G22: 13 12 13 14 DNC DNC* DNC | H22: 112 | I22: 1688
A23: 22 | B23: 22 | C23: CZE 47 | D23: 2110-0183 | E23: Komendová Kateřina | F23: 2005 | G23: 18 22 19 DNC* 24 21 24 | H23: 128 | I23: 1547
A24: 23 | B24: 23 | C24: CZE 180 | D24: 7019-0401 | E24: Kuchař Jan | F24: 2005 | G24: 24 DNC* 24 DNC 25 22 22 | H24: 147 | I24: 1412
A25: 24 | B25: 24 | C25: CZE 51 | D25: 2110-0173 | E25: Šeliga Teodor | F25: 2007 | G25: DNC* DNC DNC DNC 20 23 16 | H25: 149 | I25: 1282
A26: 25 | B26: 25 | C26: CZE 701 | D26: 7019-0403 | E26: Matoušová Alexandra | F26: 1998 | G26: 22 DNC* DNF DNC 16 RDG RDG | H26: 150 | I26: 1158
A27: 26 | B27: 26 | C27: CZE 93 | D27: 1705-0182 | E27: Hasman Radim | F27: 2006 | G27: DNS* DNC DNC DNC 23 24 20 | H27: 157 | I27: 1039
A28: 27 | B28: 27 | C28: CZE 742 | D28: 1609-0303 | E28: Kříž Jan | F28: 2008 | G28: DNF* DNC DNC DNC 28 20 25 | H28: 163 | I28: 924
A29: 28 | B29: 28 | C29: CZE 707 | D29: 7019-0404 | E29: Matoušová Štěpánka | F29: 2005 | G29: DNF* DNC 23 DNC 22 DNC DNC | H29: 165 | I29: 814
A30: 29 | B30: 29 | C30: CZE 785 | D30: 1609-0308 | E30: Tlapáková Zuzana | F30: 2007 | G30: DNF* DNC DNC DNC 27 DNC 23 | H30: 170 | I30: 707

Sheet 182156-7P
B1: Czech Supercup
A2: X | B2: 1 | C2: HUN 160 | D2: 9905-0003 | E2: Palinkas Tamas | F2: 2003 | G2: 3* 1 1 1 | H2: 3 | I2: 11337
A3: X | B3: 2 | C3: HUN 9 | D3: 9905-0002 | E3: Morvai Balint | F3: 2003 | G3: 1 3 3 6* | H3: 7 | I3: 9229
A4: X | B4: 3 | C4: SVK 11 | D4: 9901-0015 | E4: Beránková Karolina | F4: 2001 | G4: 11* 2 4 2 | H4: 8 | I4: 7997
A5: 1 | B5: 4 | C5: CZE 50 | D5: 2110-0172 | E5: Mikulec Martin | F5: 2001 | G5: 5 7* 2 3 | H5: 10 | I5: 7122
A6: X | B6: 5 | C6: CRO 19 | D6: 9910-0003 | E6: Stipčič Nikola | F6: 2003 | G6: 4 5 11* 5 | H6: 14 | I6: 6444
A7: 2 | B7: 6 | C7: CZE 77 | D7: 7019-0377 | E7: Rašková Adéla | F7: 2000 | G7: 10* 8 5 4 | H7: 17 | I7: 5890
A8: X | B8: 7 | C8: SVK 49 | D8: 9901-0016 | E8: Beránková Lenka | F8: 2002 | G8: 2 4 15* 13 | H8: 19 | I8: 5421
A9: X | B9: 8 | C9: CRO 13 | D9: 9910-0002 | E9: Paško Božan | F9: 2003 | G9: 6 12* 8 7 | H9: 21 | I9: 5015
A10: X | B10: 9 | C10: HUN 487 | D10: 9905-0004 | E10: Morvai Anna | F10: 2004 | G10: 7 17* 10 12 | H10: 29 | I10: 4657
A11: 3 | B11: 10 | C11: CZE 98 | D11: 1130-0352 | E11: Švíková Barbora | F11: 2004 | G11: 14 22* 6 9 | H11: 29 | I11: 4337
A12: X | B12: 11 | C12: SVK 22 | D12: 9901-0007 | E12: Kubín Robert | F12: 2003 | G12: 13 10 7 14* | H12: 30 | I12: 4047
A13: 4 | B13: 12 | C13: CZE 82 | D13: 1607-0169 | E13: Parchomenko Ondřej | F13: 2003 | G13: 15 6 16* 10 | H13: 31 | I13: 3782
A14: 5 | B14: 13 | C14: CZE 289 | D14: 2110-0194 | E14: Piňosová Kristýna | F14: 2005 | G14: 9 11 13 16* | H14: 33 | I14: 3539
A15: 6 | B15: 14 | C15: CZE 40 | D15: 1801-0167 | E15: Štěpánský Adam | F15: 2003 | G15: 8 16 17* 11 | H15: 35 | I15: 3314
A16: X | B16: 15 | C16: HUN 2004 | D16: 9905-0007 | E16: Negyeliczky Brúno | F16: 2004 | G16: 18 31* 14 8 | H16: 40 | I16: 3104
A17: 7 | B17: 16 | C17: CZE 11 | D17: 1401-0459 | E17: Altmannová Kateřina | F17: 2004 | G17: 12 20* 9 20 | H17: 41 | I17: 2908
A18: 8 | B18: 17 | C18: CZE 744 | D18: 1609-0278 | E18: Říčanová Nicol | F18: 2006 | G18: 20 13 27* 17 | H18: 50 | I18: 2723
A19: X | B19: 18 | C19: HUN 622 | D19: 9905-0006 | E19: Kelemen Lili | F19: 2002 | G19: 23 28* 12 15 | H19: 50 | I19: 2550
A20: 9 | B20: 19 | C20: CZE 63 | D20: 1705-0090 | E20: Drda David | F20: 2005 | G20: 25* 9 20 24 | H20: 53 | I20: 2385
A21: 10 | B21: 20 | C21: CZE 74 | D21: 2110-0191 | E21: Neckařová Martina | F21: 2003 | G21: 17 18 18 25* | H21: 53 | I21: 2229
A22: 11 | B22: 21 | C22: CZE 28 | D22: 7019-0391 | E22: Zemanová Nicole | F22: 2005 | G22: 16 15 28* 28 | H22: 59 | I22: 2081
A23: 12 | B23: 22 | C23: CZE 714 | D23: 2110-0189 | E23: Samcová Klára | F23: 2005 | G23: 19 19 23 26* | H23: 61 | I23: 1940
A24: 13 | B24: 23 | C24: CZE 211 | D24: 2110-0185 | E24: Diviš Lukáš | F24: 2004 | G24: 21 25 26* 18 | H24: 64 | I24: 1805
A25: 14 | B25: 24 | C25: CZE 80 | D25: 1705-0086 | E25: Sadílková Nela | F25: 2006 | G25: 22 24* 22 22 | H25: 66 | I25: 1675
A26: X | B26: 25 | C26: SVK 35 | D26: 9901-0008 | E26: Jaš Peter | F26: 2004 | G26: DNC* 29 19 19 | H26: 67 | I26: 1551
A27: 15 | B27: 26 | C27: CZE 88 | D27: 1705-0074 | E27: Štěpánková Markéta | F27: 2006 | G27: 24 30* 21 23 | H27: 68 | I27: 1432
A28: 16 | B28: 27 | C28: CZE 47 | D28: 2110-0183 | E28: Komendová Kateřina | F28: 2005 | G28: 28* 27 24 21 | H28: 72 | I28: 1317
A29: 17 | B29: 28 | C29: CZE 87 | D29: 1705-0169 | E29: Lojínová Alexandra | F29: 2007 | G29: 30* 14 29 30 | H29: 73 | I29: 1206
A30: 18 | B30: 29 | C30: CZE 781 | D30: 2110-0178 | E30: Skřepek Šimon | F30: 2007 | G30: 29 23 30* 27 | H30: 79 | I30: 1100
A31: X | B31: 30 | C31: HUN 608 | D31: 9905-0005 | E31: Kelemen Dorka | F31: 2005 | G31: 26 32* 25 29 | H31: 80 | I31: 997
A32: 19 | B32: 31 | C32: CZE 51 | D32: 2110-0173 | E32: Šeliga Teodor | F32: 2007 | G32: 27 26 31* 31 | H32: 84 | I32: 897
A33: 20 | B33: 32 | C33: CZE 180 | D33: 7019-0401 | E33: Kuchař Jan | F33: 2005 | G33: DNC* 21 32 32 | H33: 85 | I33: 801
A34: 21 | B34: 33 | C34: CZE 6 | D34: 2110-0186 | E34: Marek Filip | F34: 2006 | G34: 31 33 33 DNC* | H34: 97 | I34: 707

Sheet 181720-3C
B1: Skiregata
A2: 1
A3: 2
A4: 3
A5: 4
A6: 5
A7: 6
A8: 7
A9: 8
A10: 9
A11: 10
A12: 11
A13: 12
A14: 13
A15: 14
A16: 15
A17: 16
A18: 17
A19: 18

Sheet Members
A1: 11 | B1: Altmann Tomáš | D1: M
A2: 119 | B2: Altmannová Kateřina | C2: U17F | D2: F
A3: 48 | B3: Čech Petr | D3: M
A4: 211 | B4: Diviš Lukáš | D4: M
A5: 195 | B5: Dolejš Rudolf | D5: M
A6: 63 | B6: Drda David | D6: M
B7: Drda Filip | D7: M
A8: 99 | B8: Dvořák Rudolf | D8: M
A9: 93 | B9: Hasman Radim | D9: M
A10: 61 | B10: Haubold Petr | D10: M
A11: 79 | B11: Himmel Jiří | D11: M
A12: 81 | B12: Himmel Jiří | D12: M
A13: 71 | B13: Himmelová Klára | D13: F
A14: 24 | B14: Hnitka Martin | D14: M
A15: 41 | B15: Horáček Jonáš | D15: M
A16: 10 | B16: Horký Adam | D16: M
B17: Hraníková Andrea | D17: F
A18: 17 | B18: Hrdina Patrik | D18: M
B19: Hrdina Pavel | D19: M
A20: 138 | B20: Hromádka Josef | D20: M
A21: 125 | B21: Hrubá Dagmar | D21: F
A22: 251 | B22: Hrubá Martina | D22: F
A23: 19 | B23: Hrubý Pavel | D23: M
A24: 25 | B24: Hrubý Roman | D24: M
A25: 90 | B25: Hykrdová Markéta | D25: F
A26: 91 | B26: Chalupníková Kristýna | D26: F
A27: 113 | B27: Kamenský Pavel | D27: M
A28: 110 | B28: Kamenský Radim | D28: M
A29: 101 | B29: Koblasa Stanislav | D29: M
B30: Komendová Kateřina | D30: F
B31: Koukal Sebastian | D31: M
A32: 31 | B32: Král Jiří | D32: M
A33: 85 | B33: Kroupa Štěpán | D33: M
A34: 742 | B34: Kříž Jan | D34: M
A35: 15 | B35: Kučera Petr jun. | D35: M
A36: 5 | B36: Kučera Petr sen. | D36: M
B37: Kudláčková Zuzana Saxana | D37: F
B38: Kuchař Jan | D38: M
A39: 178 | B39: Kvašnovský Michael | D39: M
A40: 87 | B40: Lojínová Alexandra | D40: F
A41: 34 | B41: Loužek Karel | D41: M
B42: Loužek Štěpán | D42: M
B43: Marek Filip | D43: M
B44: Martinová Nicola | D44: F
A45: 35 | B45: Mařík Kristian | D45: M
B46: Matouš Martin | D46: M
B47: Matoušová Alexandra | D47: F
B48: Matoušová Štěpánka | D48: F
A49: 8 | B49: Mielec Lubomír | D49: M
A50: 50 | B50: Mikulec Martin | D50: M
A51: 86 | B51: Mrůzek Pavel | D51: M
A52: 788 | B52: Müller Ondřej | D52: M
A53: 333 | B53: Myška Filip | D53: M
A54: 338 | B54: Myšková Veronika | D54: F
A55: 74 | B55: Neckařová Martina | D55: F
A56: 116 | B56: Netík Pavel | D56: M
A57: 1116 | B57: Netík Pavel | D57: M
A58: 784 | B58: Nevelöš Adam | C58: U17M | D58: M
A59: 789 | B59: Nevelöš Jan | D59: M
A60: 787 | B60: Nevelöš Tibor | D60: M
A61: 82 | B61: Parchomenko Ondřej | D61: M
A62: 289 | B62: Piňosová Kristýna | D62: F
A63: 21 | B63: Pospíšil Martin | D63: M
A64: 95 | B64: Provazník Samuel | D64: M
A65: 741 | B65: Rais Michal | D65: M
A66: 76 | B66: Raška Marek | D66: M
A67: 2403 | B67: Raška Ondřej | D67: M
A68: 77 | B68: Rašková Adéla | D68: F
B69: Rašková Kateřina | D69: F
B70: Richterová Ludmila | D70: F
A71: 747 | B71: Říčan Jaroslav | D71: M
A72: 744 | B72: Říčanová Nicol | D72: F
A73: 49 | B73: Sadílek Adam | D73: M
B74: Sadílek Pavel | D74: M
A75: 80 | B75: Sadílková Nela | D75: F
A76: 714 | B76: Samcová Klára | D76: F
A77: 141 | B77: Sehnal Pavel | D77: M
A78: 147 | B78: Sehnal Pavel | D78: M
B79: Sehnalová Tereza | D79: F
B80: Skřepek Jan | D80: M
A81: 781 | B81: Skřepek Šimon | D81: M
A82: 4 | B82: Sladký Martin | D82: M
A83: 22 | B83: Slíva Martin | D83: M
A84: 16 | B84: Slíva Matěj | D84: M
A85: 26 | B85: Slívová Jana | D85: F
A86: 51 | B86: Šeliga Teodor | D86: M
B87: Šeliga Teodor | D87: M
A88: 37 | B88: Šplíchal Filip | D88: M
A89: 39 | B89: Šplíchal Jiří | D89: M | E89: Doplněné
A90: 73 | B90: Štěpánek Jan | D90: M
A91: 88 | B91: Štěpánková Markéta | D91: F
A92: 40 | B92: Štěpánský Adam | D92: M
A93: 53 | B93: Štrambach Ladislav | D93: M
A94: 814 | B94: Švec Ladislav | D94: M
B95: Švíková Bára | C95: U17F | D95: F
A96: 98 | B96: Švíková Barbora | C96: U17F | D96: F
B97: Švíková Kateřina | D97: F
A98: 89 | B98: Švíková Katrina | D98: F
A99: 783 | B99: Tlapák Vojta | D99: M
B100: Tlapák Vojtěch | D100: M
A101: 785 | B101: Tlapáková Zuzana | D101: F
A102: 7 | B102: Toth Martin | D102: M
A103: 786 | B103: Vaszi Mikuláš | D103: M
B104: Voříšek Filip | D104: M
A105: 45 | B105: Vrána Petr | D105: M
B106: Wagner David | D106: M
B107: Zemanová Nicole | D107: F
A108: 173 | B108: Zidkova Nadine | D108: F
A109: 777 | B109: Zíma Jakub | D109: M
A110: 58 | B110: Žlabová Markéta | D110: F

Sheet Categories
G1: Pořadí
C2: Min | D2: Max | E2: Zkratka
A3: Muži | B3: M | C3: 0 | D3: 12 | E3: U13M | G3: 9 | H3: 44
C4: 13 | D4: 14 | E4: U15M | G4: 4 | H4: 33
C5: 15 | D5: 16 | E5: U17M | G5: 5 | H5: 22
C6: 17 | D6: 1000 | E6: O17M | G6: 5 | H6: 35
A7: Ženy | B7: F | C7: 0 | D7: 12 | E7: U13F | G7: 7 | H7: 42
C8: 13 | D8: 14 | E8: U15F | G8: 7 | H8: 43
C9: 15 | D9: 16 | E9: U17F | G9: 4 | H9: 30
C10: 17 | D10: 1000 | E10: O17F | G10: 3 | H10: 41
G11: 154
E12: M | G12: 23 | H12: 44
E13: F | G13: 21 | H13: 43

Sheet List1
A1: Cislo | B1: Jméno | C1: Klub | D1: Člen
A2: 1 | B2: k propůjčení | C2: ČWA Lavický Karel
A3: 2 | B3: Vavřík Petr | C3: Santi Ostrava
A4: 3 | B4: Rott Jan | C4: YC Plzeň | D4: ano
A5: 4 | B5: Sladký Martin ml. | C5: ČWA | D5: ano
A6: 5 | B6: Kučera Petr | C6: Rapid Brno | D6: ano
A7: 6 | B7: Jakub Slíva | C7: YC Nechranice | D7: ano
A8: 7 | B8: Toth Martin | C8: ČWA | D8: ano
A9: 8 | B9: Mielec Lubomír sen. | C9: SKP Ostrava | D9: ano
A10: 9 | B10: Mielec lubomír jun. | C10: SKP Ostrava
A11: 10 | B11: Horký Adam | C11: ČWA | D11: ano
A12: 11 | B12: Altman Tomáš | C12: SSTK Plzeň | D12: ano
A13: 12 | B13: Diviš Ivo | C13: YC Brno
A14: 13 | B14: Koblasa David | C14: Loko Cheb | D14: ano
A15: 14 | B15: Koblasa Lukáš | C15: Loko Cheb
A16: 15 | B16: Kučera Petr jun. | C16: Rapid Brno | D16: ano
A17: 16 | B17: Slíva Martin | C17: ČWA | D17: ano
A18: 17 | B18: Hrdina Patrik | C18: ASK | D18: ano
A19: 19 | B19: Hrubý Pavel | C19: ČWA | D19: ano
A20: 20 | B20: Markýzo
A21: 21 | B21: Pospíšil Martin | C21: Rapid Brno | D21: ano
A22: 22 | B22: Slíva Martin | C22: ČWA | D22: ano
A23: 23 | B23: Kovařík Dominik | C23: ČWA
A24: 24 | B24: Hnitka Martin | C24: YC Nechranice | D24: ano
A25: 25 | B25: Hrubý Roman | C25: Loko Cheb | D25: ano
A26: 26 | B26: Slívová Jana | C26: YC Nechranice | D26: ano
A27: 27 | B27: Raška Zdeněk | C27: TJ Baník Karviná
A28: 29 | B28: König Josef | C28: Loko Plzeň | D28: ano
A29: 30 | B29: Vykydal Jaroslav | C29: Rapid Brno | D29: ano
A30: 31 | B30: Král Jiří | C30: HTJ Odra Ostrava | D30: ano
A31: 32 | B31: Stránký Martin | C31: Loko Cheb
A32: 33 | B32: Rott Petr | C32: YC Plzeň | D32: ano
A33: 34 | B33: Loužek Karel | C33: YC Plzeň | D33: ano
A34: 35 | B34: Mařík Kristian | C34: Delfín Jablonec | D34: ano
A35: 36 | B35: Šplíchal Jiří sen. | C35: YC Plzeň
A36: 37 | B36: Šplíchal Filip. | C36: YC Plzeň | D36: ano
A37: 38 | B37: Vaněk Václav | C37: Slovan ML | D37: ano
A38: 39 | B38: Šplíchal Jiří jun | C38: YC Plzeň | D38: ano
A39: 40 | B39: Štěpánský Adam | C39: TJ Slavia | D39: ano
A40: 41 | B40: Horáček Jonáš | C40: Delfín Jablonec | D40: ano
A41: 42 | B41: Hanzi Shafer | C41: ČWA | D41: ano
A42: 43 | B42: Roušal Jar.
A43: 44 | B43: Vránová Markéta | C43: Rapid Brno | D43: ano
A44: 45 | B44: Vrána Petr | C44: rapid Brno | D44: ano
A45: 46 | B45: Straček Oldřich | C45: Ostrava
A46: 47 | B46: TJ Rapid | C46: TJ Rapid
A47: 48 | B47: Čech Petr | C47: Delfín Jablonec | D47: ano
A48: 49 | B48: Sadílek Adam | C48: Delfín Jablonec | D48: ano
A49: 50 | B49: Mikulec Martin | C49: TJ Rapid | D49: ano
A50: 51 | B50: Novotná Eva | C50: ČWA
A51: 52 | B51: Juptner Patrik | C51: Vodní sp. Brno
A52: 53 | B52: Štrambach Ladislav | C52: MEZ Mohelnice | D52: ano
A53: 54 | B53: Fanta Miroslav | C53: TJ L SP Brno
A54: 55 | B54: Kudláček Pavel | C54: ČWA | D54: ano
A55: 57 | B55: Ouřada Jaroslav | C55: Loko Cheb | D55: ano
A56: 58 | B56: Žlabová Markéta | C56: ČWA | D56: ano
A57: 59 | B57: Hrdina Pavelk | C57: ASK | D57: ano
A58: 60 | B58: Hrdinová Patricie | C58: ASK | D58: ano
A59: 61 | B59: Haubold Petr | C59: Delfín Jablonec | D59: ano
A60: 62 | B60: Kocálek Zdeněk | C60: YC Nové Sedlo
A61: 63 | B61: Drda David | C61: Delfín Jablonec | D61: ano
A62: 65 | B62: Rašovský Jar. | C62: Rapid Brno | D62: ano
A63: 66 | B63: Ovsík Martin | C63: ČWA | D63: ano
A64: 67 | B64: Marek Michal | C64: TJ Rapid | D64: ano
A65: 68 | B65: Hartman Pavel | C65: ČWA | D65: ano
A66: 69 | B66: Šlechta Jiří | C66: ČWA
A67: 70 | B67: ŠebestaLibor | C67: ČWA | D67: ano
A68: 71 | B68: Himmel Klára | C68: YC Nechranice | D68: ano
A69: 72 | B69: Dvořák Dalibor | C69: ČWA | D69: ano
A70: 73 | B70: Štěpánek Jan | C70: Delfín Jablonec | D70: ano
A71: 74 | B71: Neckář | C71: ČWA
A72: 75 | B72: JK Plzeň | C72: JK Plzeň
A73: 76 | B73: Raška Marek | C73: ČWA | D73: ano
A74: 77 | B74: Rašková Adéla | C74: ČWA | D74: ano
A75: 78 | B75: Skřepek Jan | C75: Rapid Brno | D75: ano
A76: 79 | B76: Himmel Jiří | C76: YC Nechranice | D76: ano
A77: 80 | B77: Sadílková Nela | C77: Delfín Jablonec | D77: ano
A78: 81 | B78: Himmel Jiří jun | C78: YC Nechranice | D78: ano
A79: 83 | B79: Nejtek Petr | C79: Loko Cheb
A80: 85 | B80: Kroupa Štěpán | C80: Delfín Jablonec | D80: ano
A81: 86 | B81: Mrůzek Pavel | C81: JC Regent | D81: ano
A82: 88 | B82: Štěpánková Markéta | C82: Delfín Jablonec | D82: ano
A83: 89 | B83: Švíková Katrina | C83: Cere | D83: ano
A84: 92 | B84: Podzimek Petr | C84: Loko Cheb
A85: 94 | B85: Novotný Antonín | C85: Rapid Brno
A86: 96 | B86: Čech Milan | C86: ČWA
A87: 99 | B87: Dvořák Rudolf | C87: Cere | D87: ano
A88: 101 | B88: Koblasa Stanislav | C88: Loko Cheb | D88: ano
A89: 104 | B89: Čech Petr | C89: ČWA | D89: ano
A90: 105 | B90: Škola Jaroslav | C90: Loko Cheb
A91: 109 | B91: Malina Tomáš | C91: identiti nechr | D91: ano
A92: 110 | B92: Kamenský Radim | C92: YC Velké Dářko | D92: ano
A93: 111 | B93: Kalabis Petr | C93: Rapid Brno | D93: ano
A94: 113 | B94: Kamenský Pavel | C94: YC Velké Dářko | D94: ano
A95: 114 | B95: Nejtek Petr | C95: Loko Cheb
A96: 115 | B96: Škola Jaroslav ml. | C96: Loko Cheb
A97: 116 | B97: Netík Pavel | C97: ŽĎAS Jihlava | D97: ano
A98: 117 | B98: Urbánek Zdeněk | C98: MEZ Mohelnice
A99: 118 | B99: Uldrych Josef
A100: 119 | B100: Altmanová Kat | C100: SSTK Plzeň | D100: ano
A101: 120 | B101: Hrubý Jiří | C101: JC PlzeŇ | D101: ano
A102: 121 | B102: Dvořáková Kateřina | C102: Loko Cheb
A103: 123 | B103: Toupal Jan | C103: ČWA | D103: ano
A104: 124 | B104: Hauer Radim | C104: PLK
A105: 125 | B105: Hrubá Dagmar | C105: Loko Cheb | D105: ano
A106: 126 | B106: Dvořák Michal | C106: ČWA | D106: ano
A107: 128 | B107: Dvořák Marek | D107: ano
A108: 130 | B108: Lavický Karel | C108: DIM Bezdrev | D108: ano
A109: 137 | B109: Motz Daniel | C109: ČWA | D109: ano
A110: 138 | B110: Hromádka Josef | C110: Loko Cheb | D110: ano
A111: 141 | B111: Sehnal Pavel | C111: ČWA | D111: ano
A112: 144 | B112: Haltmarová Dominika | C112: ČWA | D112: ano
A113: 147 | B113: Sehnal Pavel jun. | C113: ČWA | D113: ano
A114: 162 | B114: Kment Libor | C114: ČWA | D114: ano
A115: 165 | B115: Škola Jan | C115: Loko Cheb
A116: 166 | B116: Vejrek Miloš | C116: JC Regent | D116: ano
A117: 171 | B117: Mareš jakub | C117: ČWA | D117: ano
A118: 172 | B118: Kocman Zdeněk
A119: 177 | B119: Neumann Lukáš | C119: YC Rodop | D119: ano
A120: 178 | B120: Kvašnovský Michael | C120: ČWA | D120: ano
A121: 191 | B121: Hrubá Andrea | C121: ČWA
A122: 195 | B122: Dolejš Rudolf | C122: ČWA | D122: ano
A123: 202 | B123: Bodlák Pavel | D123: ano
A124: 205 | B124: Ehl Vladimír | C124: WCVD
A125: 206 | B125: Haken Vladimír | C125: WCVD
A126: 208 | B126: Ševčík Martin | C126: WCVD
A127: 211 | B127: Diviš Lukáš | C127: YC Brno | D127: ano
A128: 212 | B128: Pelikán Martin | C128: Rapid Brno
A129: 222 | B129: Vazač Jan | C129: ČWA | D129: ano
A130: 251 | B130: Hrubá Martina | C130: YC Velké Dářko | D130: ano
A131: 331 | B131: Rott Jakub | C131: Poseidon Plzeň
A132: 332 | B132: Hrubý Kryštof | C132: ČWA | D132: ano
A133: 333 | B133: Myška Filip | C133: identiti nechr | D133: ano
A134: 404 | B134: Hala Václav | C134: ČWA | D134: ano
A135: 480 | B135: Šmíd Zdeněk | C135: Mez Mohelnice | D135: ano
A136: 534 | B136: Valenta Jan | C136: ČWA | D136: ano
A137: 612 | B137: Modráčková Jana | C137: ČWA | D137: ano
A138: 711 | B138: Toth ml. | C138: ČWA
A139: 744 | B139: Říčanová Nicol | C139: YC SK Štětí | D139: ano
A140: 771 | B140: Štantejský Jan | C140: ČWA | D140: ano
A141: 777 | B141: Zíma Jakub | C141: ČWA | D141: ano
A142: 781 | B142: Skřepek Šimon | C142: Rapid Brno | D142: ano
A143: 784 | B143: Nevološ Adam | C143: YC SK Štětí | D143: ano
A144: 786 | B144: Beerová Eliška | C144: YC SK Štětí | D144: ano
A145: 787 | B145: Neveloš Tibor | C145: YC SK Štětí | D145: ano
A146: 788 | B146: Muller Ondřej | C146: YC SK Štětí | D146: ano
A147: 814 | B147: Švec Ladislav | C147: Č. Budějovice | D147: ano
A148: 888 | B148: Hulinský Martin | C148: ČWA | D148: ano
A149: 911 | B149: Chalupníková Kristýna
A150: 1006 | B150: Řehák Pavel | C150: ČWA
A151: 1111 | B151: Kir | C151: identiti nechr | D151: ano
A152: 1116 | B152: Netík Pavel jun | C152: YC Velké Dářko | D152: ano
A153: 1117 | B153: Mika Radek | D153: ano
A154: 1534 | B154: Šmídová Pavla | C154: ČWA | D154: ano
A155: 2403 | B155: Raška Ondřej | C155: ČWA | D155: ano
A156: 2222 | B156: Holý Marek | D156: ano
B157: Ledecká Ester | C157: ČWA
B158: Martinova Nicola | C158: ČWA | D158: ano
B159: Mikulec Martin | C159: TJ Rapid | D159: ano
B160: Kaš Petr | C160: TJ Rapid | D160: ano
B161: Sehnalová Teraza | D161: ano
B162: Marečková lenka | D162: ano
B163: Rašková Kateřina | D163: ano
